Local authority department which incurred the expenditure,Service Division,Cost Centre,Summary of the Purpose of Expenditure,Expense Type,Expense Code,Detailed Expense Type,Date of Transaction,Transaction Number,Beneficiary,Merchant Category Number,Merchant Category,Gross Amount,VAT,Net Amount
Children and Young Peoples Services,Head of Early Help Inclusion & Vulnerable Children.,071440,Barnard Castle One Point Hub,Supplies and Services,384999,Miscellaneous Expenses,01-Oct-2021,000007716226470,Amazon.co.uk 6N88A39M5,5969,Other expenses,49.00,8.17,40.83
Children and Young Peoples Services,Head of Childrens Social Care,085342,16 Hickstead Rise (previously 9 Cedar Ave),Supplies and Services,372009,Subscriptions E372,01-Oct-2021,000007716226772,Netflix.com,4899,Subscriptions 372009,13.99,0.00,13.99
Children and Young Peoples Services,Head of Early Help Inclusion & Vulnerable Children.,085965,Barnard,Supplies and Services,384302,Miscellaneous Expenses,01-Oct-2021,000007716226952,Amazon.co.uk VS64U8ZJ5,5969,Activity expenses,119.98,20.00,99.98
"Regeneration, Economy and Growth",Culture Sport and Tourism,054399,Local Delivery-Libraries,Supplies and Services,312009,Newspapers books and periodicals E312,01-Oct-2021,000007716227414,Amazon.co.uk CA65N5O95,5969,Newspapers books and periodicals,11.60,0.00,11.60
Children and Young Peoples Services,Head of Early Help Inclusion & Vulnerable Children.,088102,Consett & Stanley 0-19 Targeted Family Support,Supplies and Services,364301,Grants to Voluntary Organisations,01-Oct-2021,000007716227446,AMZNMktplace,5999,Hardship,14.99,2.50,12.49
Children and Young Peoples Services,Head of Childrens Social Care,085634,Families First Easington,Supplies and Services,304403,Equipment and Materials,01-Oct-2021,000007716227982,AMZNMktplace,5999,Other consumables,39.52,0.00,39.52
"Regeneration, Economy and Growth",Business Durham CL0850,030689,Inward Investment and Aftercare,Supplies and Services,336005,Advertising E336,01-Oct-2021,000007721927082,LINKEDIN IRELAND,7311,Advertising other than for staff,24.00,0.00,24.00
Children and Young Peoples Services,Head of Childrens Social Care,085341,High Etherley Satelite Home,Supplies and Services,324117,Provisions E324,01-Oct-2021,000007721927104,WILKO RETAIL LIMITED,5399,Catering costs - provisions,27.00,0.00,27.00
Children and Young Peoples Services,Head of Childrens Social Care,085341,High Etherley Satelite Home,Supplies and Services,328041,Clothing uniforms and laundry E328,01-Oct-2021,000007721927106,TK MAXX,5331,Clothing uniforms and laundry,39.99,0.00,39.99
Children and Young Peoples Services,Head of Childrens Social Care,085341,High Etherley Satelite Home,Supplies and Services,328041,Clothing uniforms and laundry E328,01-Oct-2021,000007721927108,TK MAXX,5331,Clothing uniforms and laundry,9.99,0.00,9.99
Children and Young Peoples Services,Head of Childrens Social Care,085341,High Etherley Satelite Home,Supplies and Services,328041,Clothing uniforms and laundry E328,01-Oct-2021,000007721927112,TK MAXX,5331,Clothing uniforms and laundry,11.98,0.00,11.98
"Regeneration, Economy and Growth",Corporate Property and Land,011275,Catering -Durham Leadership Centre,Supplies and Services,324117,Provisions E324,01-Oct-2021,000007721927204,HOPWELLS LTD,5811,Catering costs - provisions,170.12,0.00,170.12
Children and Young Peoples Services,Head of Education and Skills,075021,DurhamWorks Progression and Learning,Supplies and Services,364301,Grants to Voluntary Organisations,01-Oct-2021,000007721927302,AMZNMKTPLACE AMAZON.CO,5999,Hardship,14.89,2.49,12.40
Children and Young Peoples Services,Head of Education and Skills,075021,DurhamWorks Progression and Learning,Supplies and Services,364301,Grants to Voluntary Organisations,01-Oct-2021,000007721927306,WWW.GONORTHEAST.CO.UK,4111,Hardship,5.30,0.00,5.30
Children and Young Peoples Services,Head of Education and Skills,075021,DurhamWorks Progression and Learning,Supplies and Services,364301,Grants to Voluntary Organisations,01-Oct-2021,000007721927312,BOOHOO.COM,5691,Hardship,127.79,0.00,127.79
Children and Young Peoples Services,Head of Education and Skills,075021,DurhamWorks Progression and Learning,Supplies and Services,364301,Grants to Voluntary Organisations,01-Oct-2021,000007721927316,NEXT DIRECTORY,5965,Hardship,130.00,0.00,130.00
"Regeneration, Economy and Growth",Culture Sport and Tourism,054966,Gala Theatre - Gala Productions,Supplies and Services,338047,Services,01-Oct-2021,000007721927376,PAYPAL ROBINHOODLI,7311,Direct production costs,72.00,12.00,60.00
"Regeneration, Economy and Growth",Culture Sport and Tourism,054966,Gala Theatre - Gala Productions,Supplies and Services,338047,Services,01-Oct-2021,000007721927376 - 1,PAYPAL ROBINHOODLI,7311,Direct production costs,225.00,,225.00
"Regeneration, Economy and Growth",Culture Sport and Tourism,030712,VCD - Project Delivery,Supplies and Services,384199,Miscellaneous Expenses,01-Oct-2021,000007721927402,FACEBK 3FHTZ7TQH2,7311,Other hired and contracted services,7.00,0.00,7.00
Dedicated Schools Grant BG0015,DSG High Needs Block,079050,SENSS-Sensory,Supplies and Services,384999,Miscellaneous Expenses,01-Oct-2021,000007721927426,Amazon.co.uk 4W7A916X5,5969,Other expenses,39.00,6.50,32.50
"Regeneration, Economy and Growth",Culture Sport and Tourism,011265,Empire Theatre (Operations),Supplies and Services,324117,Provisions E324,01-Oct-2021,000007721927680,HOPWELLS LTD,5811,Catering costs - provisions,66.54,11.10,55.44
"Regeneration, Economy and Growth",Culture Sport and Tourism,011265,Empire Theatre (Operations),Supplies and Services,324117,Provisions E324,01-Oct-2021,000007721927682,HOPWELLS LTD,5811,Catering costs - provisions,7.39,1.23,6.16
"Regeneration, Economy and Growth",Development and Housing,030544,Rural Employability - Client Engagement,Transport,235057,Public Transport,01-Oct-2021,000007721927736,ARRIVA UK BUS,4131,Staff travelling,11.00,0.00,11.00
"Regeneration, Economy and Growth",Corporate Property and Land,021242,Catering - County Hall,Supplies and Services,324117,Provisions E324,01-Oct-2021,000007721927744,HOPWELLS LTD,5811,Catering costs - provisions,89.43,0.00,89.43
"Regeneration, Economy and Growth",Corporate Property and Land,021242,Catering - County Hall,Supplies and Services,324117,Provisions E324,01-Oct-2021,000007721927748,HOPWELLS LTD,5811,Catering costs - provisions,118.76,0.00,118.76
"Regeneration, Economy and Growth",Corporate Property and Land,021242,Catering - County Hall,Supplies and Services,324117,Provisions E324,01-Oct-2021,000007721927752,HOPWELLS LTD,5811,Catering costs - provisions,40.83,0.00,40.83
"Regeneration, Economy and Growth",Corporate Property and Land,021242,Catering - County Hall,Supplies and Services,324117,Provisions E324,01-Oct-2021,000007721927758,HOPWELLS LTD,5811,Catering costs - provisions,30.37,0.00,30.37
"Regeneration, Economy and Growth",Corporate Property and Land,021242,Catering - County Hall,Supplies and Services,324117,Provisions E324,01-Oct-2021,000007721927764,JR HOLLAND FOODSERVICE,5499,Catering costs - provisions,78.49,0.00,78.49
"Regeneration, Economy and Growth",Corporate Property and Land,021242,Catering - County Hall,Supplies and Services,324117,Provisions E324,01-Oct-2021,000007721927770,HOPWELLS LTD,5811,Catering costs - provisions,-7.16,0.00,-7.16
"Regeneration, Economy and Growth",Culture Sport and Tourism,054812,Gala Theatre - Catering etc,Supplies and Services,324117,Provisions E324,01-Oct-2021,000007721927850,HOPWELLS LTD,5811,Catering costs - provisions,51.19,0.00,51.19
"Regeneration, Economy and Growth",Culture Sport and Tourism,054812,Gala Theatre - Catering etc,Supplies and Services,324117,Provisions E324,01-Oct-2021,000007721927854,JR HOLLAND FOODSERVICE,5499,Catering costs - provisions,38.65,0.00,38.65
Children and Young Peoples Services,Head of Early Help Inclusion & Vulnerable Children.,085957,Secure Management,Supplies and Services,304403,Equipment and Materials,01-Oct-2021,000007721927888,AMZ AbbeyShake,5999,Other consumables,-13.65,-2.28,-11.37
"Regeneration, Economy and Growth",Corporate Property and Land,021242,Catering - County Hall,Supplies and Services,328041,Clothing uniforms and laundry E328,01-Oct-2021,000007721927898,T K MAXX,5331,Clothing uniforms and laundry,-7.99,0.00,-7.99
"Regeneration, Economy and Growth",Corporate Property and Land,021242,Catering - County Hall,Supplies and Services,324117,Provisions E324,01-Oct-2021,000007721927900,SAINSBURYS LOCAL,5411,Catering costs - provisions,5.75,0.00,5.75
Children and Young Peoples Services,Head of Childrens Social Care,085358,Orchard House Sacriston Solo Home,Supplies and Services,348037,Subsistence E348,01-Oct-2021,000007721928046,LANCASTER N/E COSTA,5812,Subsistence,6.90,0.00,6.90
Children and Young Peoples Services,Head of Childrens Social Care,085358,Orchard House Sacriston Solo Home,Supplies and Services,324117,Provisions E324,01-Oct-2021,000007721928050,WM MORRISONS STORE,5411,Catering costs - provisions,18.45,0.00,18.45
Children and Young Peoples Services,Head of Childrens Social Care,085358,Orchard House Sacriston Solo Home,Supplies and Services,348037,Subsistence E348,01-Oct-2021,000007721928052,MCDONALDS,5814,Subsistence,16.36,0.00,16.36
Resources BK0010,Digital and Customer Services,070204,School Services - Systems,Supplies and Services,372009,Subscriptions E372,01-Oct-2021,000007721928102,WEB NETWORKSOLUTIONS,5968,Subscriptions 372009,71.57,0.00,71.57
Children and Young Peoples Services,Head of Childrens Social Care,085342,16 Hickstead Rise (previously 9 Cedar Ave),Supplies and Services,384999,Miscellaneous Expenses,01-Oct-2021,000007721928118,Amazon.co.uk FF8SX4SS5,5969,Other expenses,12.00,0.00,12.00
Neighbourhoods and Climate Change,Environmental Services,011058,C&G - Wharton Park,Supplies and Services,332047,Printing Stationery and Gen Off Exps,01-Oct-2021,000007721928190,BAKER ROSS,5970,Stationery,23.85,0.00,23.85
Neighbourhoods and Climate Change,Environmental Services,010301,C&G - North Grounds Maintenance,Supplies and Services,304999,Equipment and Materials,01-Oct-2021,000007721928302,Harelaw sawmill delive,5251,Misc equipment tools and materials,162.18,0.00,162.18
Children and Young Peoples Services,Head of Early Help Inclusion & Vulnerable Children.,085965,Barnard,Supplies and Services,324117,Provisions E324,01-Oct-2021,000007721928372,TESCO STORES 6329,5411,Catering costs - provisions,87.13,0.00,87.13
Resources BK0010,Procurement Sales & Business Services,065503,Business Support - Spectrum,Supplies and Services,304999,Equipment and Materials,01-Oct-2021,000007721928408,WESTMINSTER INSIGHT,5815,Misc equipment tools and materials,256.50,0.00,256.50
Neighbourhoods and Climate Change,Environmental Services,011060,C&G - Hardwick Park Catering,Supplies and Services,324117,Provisions E324,01-Oct-2021,000007721928452,FREEMAN CATERING BUTCH,5422,Catering costs - provisions,46.48,0.00,46.48
Neighbourhoods and Climate Change,Environmental Services,011060,C&G - Hardwick Park Catering,Supplies and Services,324117,Provisions E324,01-Oct-2021,000007721928456,HOPWELLS LTD,5811,Catering costs - provisions,299.88,49.98,249.90
Neighbourhoods and Climate Change,Environmental Services,011060,C&G - Hardwick Park Catering,Supplies and Services,324117,Provisions E324,01-Oct-2021,000007721928456 - 1,HOPWELLS LTD,5811,Catering costs - provisions,57.21,,57.21
Neighbourhoods and Climate Change,Environmental Services,031238,North Pennines - Tees Swale,Supplies and Services,304403,Equipment and Materials,01-Oct-2021,000007721928546,AMZNMktplace,5999,Other consumables,21.40,3.57,17.83
Neighbourhoods and Climate Change,Environmental Services,031238,North Pennines - Tees Swale,Supplies and Services,304403,Equipment and Materials,01-Oct-2021,000007721928548,AMZNMktplace,5999,Other consumables,73.48,12.25,61.23
Neighbourhoods and Climate Change,Environmental Services,031238,North Pennines - Tees Swale,Supplies and Services,304403,Equipment and Materials,01-Oct-2021,000007721928550,AMZNMktplace,5999,Other consumables,12.96,2.16,10.80
Neighbourhoods and Climate Change,Environmental Services,031238,North Pennines - Tees Swale,Supplies and Services,304403,Equipment and Materials,01-Oct-2021,000007721928550 - 1,AMZNMktplace,5999,Other consumables,0.04,,0.04
Neighbourhoods and Climate Change,Environmental Services,031238,North Pennines - Tees Swale,Supplies and Services,304403,Equipment and Materials,01-Oct-2021,000007721928556,AMZNMktplace,5999,Other consumables,60.50,10.08,50.42
"Regeneration, Economy and Growth",Corporate Property and Land,021234,Catering - Locomotion,Supplies and Services,324117,Provisions E324,01-Oct-2021,000007721928578,FREEMAN CATERING BUTCH,5422,Catering costs - provisions,25.82,0.00,25.82
"Regeneration, Economy and Growth",Corporate Property and Land,021234,Catering - Locomotion,Supplies and Services,324117,Provisions E324,01-Oct-2021,000007721928582,HOPWELLS LTD,5811,Catering costs - provisions,217.91,0.00,217.91
"Regeneration, Economy and Growth",Corporate Property and Land,021234,Catering - Locomotion,Supplies and Services,324117,Provisions E324,01-Oct-2021,000007721928588,HOPWELLS LTD,5811,Catering costs - provisions,24.25,0.00,24.25
"Regeneration, Economy and Growth",Corporate Property and Land,021234,Catering - Locomotion,Supplies and Services,324117,Provisions E324,01-Oct-2021,000007721928590,HOPWELLS LTD,5811,Catering costs - provisions,15.96,2.66,13.30
"Regeneration, Economy and Growth",Corporate Property and Land,021234,Catering - Locomotion,Supplies and Services,324117,Provisions E324,01-Oct-2021,000007721928590 - 1,HOPWELLS LTD,5811,Catering costs - provisions,154.16,,154.16
"Regeneration, Economy and Growth",Corporate Property and Land,021234,Catering - Locomotion,Supplies and Services,324117,Provisions E324,01-Oct-2021,000007721928594,HOPWELLS LTD,5811,Catering costs - provisions,45.00,7.50,37.50
"Regeneration, Economy and Growth",Corporate Property and Land,021234,Catering - Locomotion,Supplies and Services,324117,Provisions E324,01-Oct-2021,000007721928594 - 1,HOPWELLS LTD,5811,Catering costs - provisions,117.38,,117.38
"Regeneration, Economy and Growth",Corporate Property and Land,021234,Catering - Locomotion,Supplies and Services,324117,Provisions E324,01-Oct-2021,000007721928598,JR HOLLAND FOODSERVICE,5499,Catering costs - provisions,25.40,0.00,25.40
"Regeneration, Economy and Growth",Corporate Property and Land,021234,Catering - Locomotion,Supplies and Services,324117,Provisions E324,01-Oct-2021,000007721928602,HOPWELLS LTD,5811,Catering costs - provisions,-5.56,0.00,-5.56
Children and Young Peoples Services,Head of Childrens Social Care,085331,New Lea Childrens Home,Supplies and Services,324117,Provisions E324,01-Oct-2021,000007721928670,B&M 388 - METRO,5399,Catering costs - provisions,9.99,0.00,9.99
Children and Young Peoples Services,Head of Childrens Social Care,085331,New Lea Childrens Home,Supplies and Services,324117,Provisions E324,01-Oct-2021,000007721928672,B&M 388 - METRO,5399,Catering costs - provisions,29.89,0.00,29.89
Children and Young Peoples Services,Head of Childrens Social Care,085331,New Lea Childrens Home,Supplies and Services,324117,Provisions E324,01-Oct-2021,000007721928676,ASDA SUPERSTORE,5411,Catering costs - provisions,12.47,0.00,12.47
Children and Young Peoples Services,Head of Childrens Social Care,085331,New Lea Childrens Home,Supplies and Services,328041,Clothing uniforms and laundry E328,01-Oct-2021,000007721928678,NEXT RETAIL LTD,5651,Clothing uniforms and laundry,57.20,0.00,57.20
Children and Young Peoples Services,Head of Childrens Social Care,085331,New Lea Childrens Home,Supplies and Services,308011,Furniture,01-Oct-2021,000007721928682,THE RANGE,5719,Furniture repair and replacement,258.85,0.00,258.85
"Regeneration, Economy and Growth",Corporate Property and Land,010525,Catering - Green Lane,Supplies and Services,324117,Provisions E324,01-Oct-2021,000007721928820,FREEMAN CATERING BUTCH,5422,Catering costs - provisions,24.68,0.00,24.68
"Regeneration, Economy and Growth",Corporate Property and Land,010525,Catering - Green Lane,Supplies and Services,324117,Provisions E324,01-Oct-2021,000007721928822,HOPWELLS LTD,5811,Catering costs - provisions,54.08,0.00,54.08
"Regeneration, Economy and Growth",Development and Housing,030771,Durham Advance Flexible Fund,Supplies and Services,328041,Clothing uniforms and laundry E328,01-Oct-2021,000007721928862,Yours Clothing,5691,Clothing uniforms and laundry,39.97,0.00,39.97
Adult and Health Services,Head of Adults,055301,Stanley Pathways,Supplies and Services,304259,Equipment and Materials,01-Oct-2021,000007721929154,CURRYS ONLINE,5732,Equipment-purchase and rental,199.00,0.00,199.00
Children and Young Peoples Services,Head of Childrens Social Care,085351,Framwellgate Moor CU,Supplies and Services,304403,Equipment and Materials,01-Oct-2021,000007721929220,AMZNMKTPLACE AMAZON.CO,5999,Other consumables,7.92,1.32,6.60
Children and Young Peoples Services,Head of Childrens Social Care,085351,Framwellgate Moor CU,Supplies and Services,304403,Equipment and Materials,01-Oct-2021,000007721929220 - 1,AMZNMKTPLACE AMAZON.CO,5999,Other consumables,0.08,,0.08
"Regeneration, Economy and Growth",Corporate Property and Land,030691,Catering - Durham Dales Centre,Supplies and Services,324117,Provisions E324,01-Oct-2021,000007721929234,FREEMAN CATERING BUTCH,5422,Catering costs - provisions,79.63,0.00,79.63
"Regeneration, Economy and Growth",Corporate Property and Land,030691,Catering - Durham Dales Centre,Supplies and Services,324117,Provisions E324,01-Oct-2021,000007721929238,HOPWELLS LTD,5811,Catering costs - provisions,44.52,7.42,37.10
"Regeneration, Economy and Growth",Corporate Property and Land,030691,Catering - Durham Dales Centre,Supplies and Services,324117,Provisions E324,01-Oct-2021,000007721929238 - 1,HOPWELLS LTD,5811,Catering costs - provisions,187.03,,187.03
"Regeneration, Economy and Growth",Corporate Property and Land,030691,Catering - Durham Dales Centre,Supplies and Services,324117,Provisions E324,01-Oct-2021,000007721929242,HOPWELLS LTD,5811,Catering costs - provisions,209.11,0.00,209.11
"Regeneration, Economy and Growth",Corporate Property and Land,030691,Catering - Durham Dales Centre,Supplies and Services,324117,Provisions E324,01-Oct-2021,000007721929246,JR HOLLAND FOODSERVICE,5499,Catering costs - provisions,167.49,0.00,167.49
Adult and Health Services,Head of Adults,055643,Hawthorn House LD Respite Unit,Supplies and Services,324117,Provisions E324,01-Oct-2021,000007721929310,FREEMAN CATERING BUTCH,5422,Catering costs - provisions,30.13,0.00,30.13
Adult and Health Services,Head of Adults,055643,Hawthorn House LD Respite Unit,Supplies and Services,324117,Provisions E324,01-Oct-2021,000007721929316,HOPWELLS LTD,5811,Catering costs - provisions,86.01,0.00,86.01
Adult and Health Services,Head of Adults,055643,Hawthorn House LD Respite Unit,Supplies and Services,324117,Provisions E324,01-Oct-2021,000007721929324,HOPWELLS LTD,5811,Catering costs - provisions,6.96,1.16,5.80
Adult and Health Services,Head of Adults,055643,Hawthorn House LD Respite Unit,Supplies and Services,324117,Provisions E324,01-Oct-2021,000007721929324 - 1,HOPWELLS LTD,5811,Catering costs - provisions,63.95,,63.95
Adult and Health Services,Head of Adults,055643,Hawthorn House LD Respite Unit,Supplies and Services,324117,Provisions E324,01-Oct-2021,000007721929330,JR HOLLAND FOODSERVICE,5499,Catering costs - provisions,24.60,0.00,24.60
Adult and Health Services,Head of Adults,055643,Hawthorn House LD Respite Unit,Supplies and Services,324117,Provisions E324,01-Oct-2021,000007721929332,JR HOLLAND FOODSERVICE,5499,Catering costs - provisions,20.26,0.00,20.26
"Regeneration, Economy and Growth",Culture Sport and Tourism,010664,Freemans Quay Leisure Centre,Supplies and Services,324117,Provisions E324,01-Oct-2021,000007721929348,WILKO RETAIL LIMITED,5399,Catering costs - provisions,38.10,0.00,38.10
"Regeneration, Economy and Growth",Culture Sport and Tourism,010664,Freemans Quay Leisure Centre,Supplies and Services,304221,Equipment and Materials,01-Oct-2021,000007721929352,SCREWFIX DIRECT,5211,Direct materials,46.00,0.00,46.00
Children and Young Peoples Services,Head of Early Help Inclusion & Vulnerable Children.,088102,Consett & Stanley 0-19 Targeted Family Support,Supplies and Services,340001,Postages E340,01-Oct-2021,000007721929430,POST OFFICE COUNTER,9402,Postages,6.85,0.00,6.85
Children and Young Peoples Services,Head of Early Help Inclusion & Vulnerable Children.,088102,Consett & Stanley 0-19 Targeted Family Support,Supplies and Services,384302,Miscellaneous Expenses,01-Oct-2021,000007721929432,ALDI STORES,5411,Activity expenses,2.49,0.00,2.49
Children and Young Peoples Services,Head of Early Help Inclusion & Vulnerable Children.,088102,Consett & Stanley 0-19 Targeted Family Support,Supplies and Services,324117,Provisions E324,01-Oct-2021,000007721929436,BESTWAY WHOLESALE,5451,Catering costs - provisions,58.67,0.00,58.67
Children and Young Peoples Services,Head of Childrens Social Care,085363,LAC & Permanence Team 3,Supplies and Services,338045,Services,01-Oct-2021,000007721929442,GENERAL REGISTER OFFIC,7399,Legal expenses 338045,23.00,0.00,23.00
Children and Young Peoples Services,Head of Early Help Inclusion & Vulnerable Children.,085965,Barnard,Transfer Payments,515002,Social Services Clients,01-Oct-2021,000007721929546,Nike,5655,Pocket money,50.97,0.00,50.97
"Regeneration, Economy and Growth",Culture Sport and Tourism,054235,Bishop Auckland Town Hall Cafe,Supplies and Services,324117,Provisions E324,01-Oct-2021,000007721929600,JR HOLLAND FOODSERVICE,5499,Catering costs - provisions,447.76,0.00,447.76
"Regeneration, Economy and Growth",Culture Sport and Tourism,011204,Festival and Events,Supplies and Services,304221,Equipment and Materials,01-Oct-2021,000007721929622,B & Q 1120,5200,Direct materials,5.80,0.00,5.80
"Regeneration, Economy and Growth",Culture Sport and Tourism,011204,Festival and Events,Supplies and Services,324117,Provisions E324,01-Oct-2021,000007721929626,WM MORRISONS STORE,5411,Catering costs - provisions,44.73,0.00,44.73
"Regeneration, Economy and Growth",Culture Sport and Tourism,011204,Festival and Events,Supplies and Services,348037,Subsistence E348,01-Oct-2021,000007721929628,GREGGS,5812,Subsistence,8.30,0.00,8.30
Children and Young Peoples Services,Head of Childrens Social Care,085332,Middlestone Moor CU,Supplies and Services,304999,Equipment and Materials,01-Oct-2021,000007721929664,Microsoft Console 1-Mo,5816,Misc equipment tools and materials,7.99,0.00,7.99
Neighbourhoods and Climate Change,Environmental Services,010301,C&G - North Grounds Maintenance,Supplies and Services,304999,Equipment and Materials,01-Oct-2021,000007721929724,Harelaw sawmill delive,5251,Misc equipment tools and materials,45.00,0.00,45.00
Neighbourhoods and Climate Change,Environmental Services,010301,C&G - North Grounds Maintenance,Supplies and Services,304221,Equipment and Materials,01-Oct-2021,000007721929726,TOOLSTATION LIMITED,5211,Direct materials,25.77,0.00,25.77
Children and Young Peoples Services,Head of Childrens Social Care,085333,Coxhoe Satelite Home,Supplies and Services,324117,Provisions E324,01-Oct-2021,000007721929782,TESCO STORES 2916,5411,Catering costs - provisions,92.30,0.00,92.30
Children and Young Peoples Services,Head of Education and Skills,071802,Louisa Cent Nursery,Supplies and Services,324117,Provisions E324,01-Oct-2021,000007721929792,ASDA GROCERIES ONLINE,5411,Catering costs - provisions,189.19,0.00,189.19
Children and Young Peoples Services,Head of Childrens Social Care,085332,Middlestone Moor CU,Supplies and Services,328041,Clothing uniforms and laundry E328,01-Oct-2021,000007721929930,SP BO+TEE STORE,5621,Clothing uniforms and laundry,55.00,0.00,55.00
Children and Young Peoples Services,Head of Childrens Social Care,085332,Middlestone Moor CU,Supplies and Services,304259,Equipment and Materials,01-Oct-2021,000007721929934,J D SPORTS,5941,Equipment-purchase and rental,65.10,0.00,65.10
Children and Young Peoples Services,Head of Early Help Inclusion & Vulnerable Children.,088107,Ferryhill & Newton Aycliffe 0-19 Community Family Hub,Supplies and Services,304999,Equipment and Materials,01-Oct-2021,000007721929960,WESTMINSTER INSIGHT,5815,Misc equipment tools and materials,270.00,0.00,270.00
Children and Young Peoples Services,Head of Early Help Inclusion & Vulnerable Children.,085962,Aycliffe Secure - Durham,Supplies and Services,304403,Equipment and Materials,01-Oct-2021,000007721929984,AMZNMktplace,5999,Other consumables,35.73,5.96,29.77
Children and Young Peoples Services,Head of Childrens Social Care,085334,West Rainton Satelite Home,Supplies and Services,348037,Subsistence E348,01-Oct-2021,000007721930088,WETHERSPOONS,5812,Subsistence,11.05,0.00,11.05
Children and Young Peoples Services,Head of Childrens Social Care,085334,West Rainton Satelite Home,Supplies and Services,304999,Equipment and Materials,01-Oct-2021,000007721930090,Namco Uk Ltd,7929,Misc equipment tools and materials,10.00,0.00,10.00
"Regeneration, Economy and Growth",Communications Management,060270,Communications and Marketing,Supplies and Services,336005,Advertising E336,01-Oct-2021,000007721930118,GOOGLE ADS8772529636,7311,Advertising other than for staff,438.90,0.00,438.90
Resources BK0010,Procurement Sales & Business Services,065501,Business Support - Executive Support,Supplies and Services,304403,Equipment and Materials,01-Oct-2021,000007721930122,AMZNMKTPLACE AMAZON.CO,5999,Other consumables,-17.99,-3.00,-14.99
"Regeneration, Economy and Growth",Corporate Property and Land,021235,Catering - Wharton Park,Supplies and Services,324117,Provisions E324,01-Oct-2021,000007721930236,HOPWELLS LTD,5811,Catering costs - provisions,154.08,25.68,128.40
"Regeneration, Economy and Growth",Corporate Property and Land,021235,Catering - Wharton Park,Supplies and Services,324117,Provisions E324,01-Oct-2021,000007721930236 - 1,HOPWELLS LTD,5811,Catering costs - provisions,47.28,,47.28
"Regeneration, Economy and Growth",Corporate Property and Land,021235,Catering - Wharton Park,Supplies and Services,324117,Provisions E324,01-Oct-2021,000007721930240,JR HOLLAND FOODSERVICE,5499,Catering costs - provisions,11.76,0.00,11.76
"Regeneration, Economy and Growth",Corporate Property and Land,021235,Catering - Wharton Park,Supplies and Services,324117,Provisions E324,01-Oct-2021,000007721930244,HOPWELLS LTD,5811,Catering costs - provisions,-41.82,-6.97,-34.85
Children and Young Peoples Services,Head of Childrens Social Care,085551,Short Break Services-Park Hse Sher,Supplies and Services,328041,Clothing uniforms and laundry E328,01-Oct-2021,000007721930320,NEXT RETAIL LTD,5651,Clothing uniforms and laundry,38.10,0.00,38.10
Children and Young Peoples Services,Head of Childrens Social Care,085551,Short Break Services-Park Hse Sher,Supplies and Services,324117,Provisions E324,01-Oct-2021,000007721930324,ICELAND FOODS,5411,Catering costs - provisions,-9.00,0.00,-9.00
Children and Young Peoples Services,Head of Childrens Social Care,085333,Coxhoe Satelite Home,Transport,235057,Public Transport,01-Oct-2021,000007721930382,ARRIVA DURHAM COUNTY L,4131,Staff travelling,2.90,0.00,2.90
Children and Young Peoples Services,Head of Childrens Social Care,085333,Coxhoe Satelite Home,Supplies and Services,348037,Subsistence E348,01-Oct-2021,000007721930388,INSHANGHAI,5812,Subsistence,41.20,0.00,41.20
Children and Young Peoples Services,Head of Childrens Social Care,085333,Coxhoe Satelite Home,Supplies and Services,328041,Clothing uniforms and laundry E328,01-Oct-2021,000007721930390,POUNDLAND LTD,5310,Clothing uniforms and laundry,11.20,0.00,11.20
"Regeneration, Economy and Growth",Business Durham CL0850,030689,Inward Investment and Aftercare,Supplies and Services,304403,Equipment and Materials,02-Oct-2021,000007721927086,ADOBE CREATIVE CLOUD,5734,Other consumables,49.94,0.00,49.94
"Regeneration, Economy and Growth",Business Durham CL0850,030689,Inward Investment and Aftercare,Supplies and Services,342222,Computers and Communications,02-Oct-2021,000007721927088,FASTHOSTS INTERNET,4816,Comp hardware purch-network servers,67.20,0.00,67.20
"Regeneration, Economy and Growth",Business Durham CL0850,030689,Inward Investment and Aftercare,Supplies and Services,342222,Computers and Communications,02-Oct-2021,000007721927092,FASTHOSTS INTERNET,4816,Comp hardware purch-network servers,75.06,0.00,75.06
"Regeneration, Economy and Growth",Culture Sport and Tourism,030712,VCD - Project Delivery,Supplies and Services,384199,Miscellaneous Expenses,02-Oct-2021,000007721927406,FACEBK 6B7CF87RH2,7311,Other hired and contracted services,12.00,0.00,12.00
"Regeneration, Economy and Growth",Culture Sport and Tourism,030712,VCD - Project Delivery,Supplies and Services,384199,Miscellaneous Expenses,02-Oct-2021,000007721927408,MAILCHIMP MONTHLY,5968,Other hired and contracted services,210.03,0.00,210.03
Children and Young Peoples Services,Head of Childrens Social Care,085341,High Etherley Satelite Home,Transport,215995,Running Costs of Vehicles,02-Oct-2021,000007721927562,GULF WEST RAINTON,5541,Vehicle running expenses,5.00,0.00,5.00
Children and Young Peoples Services,Head of Childrens Social Care,085341,High Etherley Satelite Home,Supplies and Services,348037,Subsistence E348,02-Oct-2021,000007721927564,MCDONALD`S,5812,Subsistence,10.88,0.00,10.88
Children and Young Peoples Services,Head of Childrens Social Care,085358,Orchard House Sacriston Solo Home,Supplies and Services,324117,Provisions E324,02-Oct-2021,000007721928056,ASDA GROCERIES ONLINE,5411,Catering costs - provisions,162.07,0.00,162.07
Children and Young Peoples Services,Head of Early Help Inclusion & Vulnerable Children.,085965,Barnard,Supplies and Services,384302,Miscellaneous Expenses,02-Oct-2021,000007721928376,ARGOS LTD,5310,Activity expenses,253.94,42.32,211.62
Children and Young Peoples Services,Head of Early Help Inclusion & Vulnerable Children.,085956,Lumley,Supplies and Services,324117,Provisions E324,02-Oct-2021,000007721928380,TESCO STORES 6329,5411,Catering costs - provisions,55.49,0.00,55.49
Children and Young Peoples Services,Head of Childrens Social Care,085334,West Rainton Satelite Home,Supplies and Services,304221,Equipment and Materials,02-Oct-2021,000007721928636,SCREWFIX DIR LTD,5211,Direct materials,39.99,0.00,39.99
Children and Young Peoples Services,Head of Childrens Social Care,085331,New Lea Childrens Home,Supplies and Services,304999,Equipment and Materials,02-Oct-2021,000007721928686,HOME BARGAINS,5251,Misc equipment tools and materials,5.26,0.00,5.26
Children and Young Peoples Services,Head of Childrens Social Care,085331,New Lea Childrens Home,Supplies and Services,324117,Provisions E324,02-Oct-2021,000007721928690,ASDA SUPERSTORE,5411,Catering costs - provisions,131.37,0.00,131.37
Children and Young Peoples Services,Head of Childrens Social Care,085341,High Etherley Satelite Home,Supplies and Services,344033,Telephones,02-Oct-2021,000007721928958,THREE,4814,Telephones general-all costs,10.00,0.00,10.00
Children and Young Peoples Services,Head of Childrens Social Care,085341,High Etherley Satelite Home,Supplies and Services,304259,Equipment and Materials,02-Oct-2021,000007721928962,DARLINGTON BC INTERNET,9399,Equipment-purchase and rental,14.00,0.00,14.00
Children and Young Peoples Services,Head of Childrens Social Care,085334,West Rainton Satelite Home,Supplies and Services,328041,Clothing uniforms and laundry E328,02-Oct-2021,000007721929388,PRIMARK 670 GATESHEAD,5651,Clothing uniforms and laundry,131.00,0.00,131.00
Children and Young Peoples Services,Head of Childrens Social Care,085334,West Rainton Satelite Home,Supplies and Services,324117,Provisions E324,02-Oct-2021,000007721929392,SWEETS GALORE,5441,Catering costs - provisions,25.78,0.00,25.78
Children and Young Peoples Services,Head of Childrens Social Care,085334,West Rainton Satelite Home,Supplies and Services,308011,Furniture,02-Oct-2021,000007721929396,IKEA LTD 143 GATESHEAD,5712,Furniture repair and replacement,60.00,0.00,60.00
Children and Young Peoples Services,Head of Childrens Social Care,085334,West Rainton Satelite Home,Supplies and Services,348037,Subsistence E348,02-Oct-2021,000007721929404,BIG LUKES WORLD BUFFET,5812,Subsistence,11.04,1.84,9.20
Children and Young Peoples Services,Head of Childrens Social Care,085334,West Rainton Satelite Home,Supplies and Services,348037,Subsistence E348,02-Oct-2021,000007721929404 - 1,BIG LUKES WORLD BUFFET,5812,Subsistence,27.69,,27.69
Children and Young Peoples Services,Head of Childrens Social Care,085334,West Rainton Satelite Home,Supplies and Services,304259,Equipment and Materials,02-Oct-2021,000007721929406,JD SPORTS 193,5941,Equipment-purchase and rental,192.10,0.00,192.10
Children and Young Peoples Services,Head of Childrens Social Care,085332,Middlestone Moor CU,Supplies and Services,348037,Subsistence E348,02-Oct-2021,000007721929666,COSTA COFFEE,5814,Subsistence,8.60,0.00,8.60
Children and Young Peoples Services,Head of Childrens Social Care,085332,Middlestone Moor CU,Supplies and Services,348037,Subsistence E348,02-Oct-2021,000007721929670,COSTA COFFEE,5814,Subsistence,11.25,0.00,11.25
Children and Young Peoples Services,Head of Childrens Social Care,085332,Middlestone Moor CU,Supplies and Services,304259,Equipment and Materials,02-Oct-2021,000007721929674,DOLPHIN CENTRE CATERIN,9399,Equipment-purchase and rental,25.90,0.00,25.90
Children and Young Peoples Services,Head of Early Help Inclusion & Vulnerable Children.,085962,Aycliffe Secure - Durham,Supplies and Services,304403,Equipment and Materials,02-Oct-2021,000007721929986,AMZNMktplace,5999,Other consumables,2.98,0.50,2.48
"Regeneration, Economy and Growth",Communications Management,060270,Communications and Marketing,Supplies and Services,336005,Advertising E336,02-Oct-2021,000007721930124,FACEBK Z62UL574B2,7311,Advertising other than for staff,500.00,0.00,500.00
Children and Young Peoples Services,Head of Education and Skills,071801,Selby Cottage Childcare Centre,Supplies and Services,304999,Equipment and Materials,03-Oct-2021,000007721927128,APPLE.COM/BILL,5815,Misc equipment tools and materials,9.99,0.00,9.99
Children and Young Peoples Services,Head of Childrens Social Care,085561,Social Work Academy,Supplies and Services,304403,Equipment and Materials,03-Oct-2021,000007721927160,AMZNMktplace,5999,Other consumables,36.00,6.00,30.00
Children and Young Peoples Services,Head of Childrens Social Care,085561,Social Work Academy,Supplies and Services,304403,Equipment and Materials,03-Oct-2021,000007721927160 - 1,AMZNMktplace,5999,Other consumables,99.96,,99.96
Dedicated Schools Grant BG0015,DSG Schools Block,417608,Greenfield Community College 004176 - RE,Supplies and Services,332047,Printing Stationery and Gen Off Exps,03-Oct-2021,000007721927176,AMZNMktplace,5999,Stationery,21.03,3.51,17.52
Dedicated Schools Grant BG0015,DSG Schools Block,417613,Greenfield Community College 004176 - Child Development,Supplies and Services,304403,Equipment and Materials,03-Oct-2021,000007721927180,AMZNMktplace,5999,Other consumables,8.99,1.50,7.49
"Regeneration, Economy and Growth",Culture Sport and Tourism,054798,dli Museum - WW1 Education Programme,Supplies and Services,304259,Equipment and Materials,03-Oct-2021,000007721927380,Amazon.co.uk 5I0IL8NI5,5969,Equipment-purchase and rental,6.17,0.00,6.17
"Regeneration, Economy and Growth",Culture Sport and Tourism,054798,dli Museum - WW1 Education Programme,Supplies and Services,304259,Equipment and Materials,03-Oct-2021,000007721927386,AMZNMktplace,5999,Equipment-purchase and rental,18.00,3.00,15.00
"Regeneration, Economy and Growth",Culture Sport and Tourism,030705,Visit County Durham 030705,Supplies and Services,342033,Computers and Communications,03-Oct-2021,000007721927412,FASTHOSTS INTERNET,4816,Computer hardware,7.54,1.26,6.28
Children and Young Peoples Services,Head of Education and Skills,078100,Curric and Professional Development 078100,Supplies and Services,304403,Equipment and Materials,03-Oct-2021,000007721927484,ADOBE STOCK,5734,Other consumables,23.99,0.00,23.99
Neighbourhoods and Climate Change,Environmental Services,026591,C&G - Hardwick Park,Supplies and Services,332047,Printing Stationery and Gen Off Exps,03-Oct-2021,000007721928194,AMZNMKTPLACE AMAZON.CO,5999,Stationery,25.98,4.34,21.64
Children and Young Peoples Services,Head of Early Help Inclusion & Vulnerable Children.,085954,Walworth,Supplies and Services,324117,Provisions E324,03-Oct-2021,000007721928384,TESCO STORES 6329,5411,Catering costs - provisions,101.64,0.00,101.64
Children and Young Peoples Services,Head of Childrens Social Care,085334,West Rainton Satelite Home,Supplies and Services,348037,Subsistence E348,03-Oct-2021,000007721928638,BIG LUKES WORLD BUFFET,5812,Subsistence,45.98,0.00,45.98
Children and Young Peoples Services,Head of Childrens Social Care,085334,West Rainton Satelite Home,Supplies and Services,304259,Equipment and Materials,03-Oct-2021,000007721928640,DOLPHIN CENTRE,9399,Equipment-purchase and rental,7.70,0.00,7.70
Children and Young Peoples Services,Head of Childrens Social Care,085334,West Rainton Satelite Home,Supplies and Services,344033,Telephones,03-Oct-2021,000007721928644,O2 UK PAY & GO,4814,Telephones general-all costs,10.00,0.00,10.00
Children and Young Peoples Services,Head of Childrens Social Care,085334,West Rainton Satelite Home,Transport,215995,Running Costs of Vehicles,03-Oct-2021,000007721928648,SHELL REDHEUGH BRI,5541,Vehicle running expenses,10.01,0.00,10.01
Children and Young Peoples Services,Head of Childrens Social Care,085334,West Rainton Satelite Home,Supplies and Services,304999,Equipment and Materials,03-Oct-2021,000007721928652,Namco Uk Ltd,7929,Misc equipment tools and materials,20.00,0.00,20.00
Children and Young Peoples Services,Head of Childrens Social Care,085334,West Rainton Satelite Home,Supplies and Services,304999,Equipment and Materials,03-Oct-2021,000007721928656,Namco Uk Ltd,7929,Misc equipment tools and materials,5.00,0.00,5.00
Children and Young Peoples Services,Head of Childrens Social Care,085331,New Lea Childrens Home,Supplies and Services,324117,Provisions E324,03-Oct-2021,000007721928694,ASDA SUPERSTORE,5411,Catering costs - provisions,44.25,0.00,44.25
Children and Young Peoples Services,Head of Childrens Social Care,085331,New Lea Childrens Home,Supplies and Services,324117,Provisions E324,03-Oct-2021,000007721928696,ASDA SUPERSTORE,5411,Catering costs - provisions,23.53,0.00,23.53
Children and Young Peoples Services,Head of Childrens Social Care,085331,New Lea Childrens Home,Supplies and Services,348037,Subsistence E348,03-Oct-2021,000007721928700,MCDONALDS 1555,5814,Subsistence,12.73,0.00,12.73
Children and Young Peoples Services,Head of Education and Skills,071802,Louisa Cent Nursery,Supplies and Services,304999,Equipment and Materials,03-Oct-2021,000007721929086,HOME BARGAINS,5251,Misc equipment tools and materials,5.45,0.00,5.45
"Regeneration, Economy and Growth",Culture Sport and Tourism,011204,Festival and Events,Supplies and Services,324117,Provisions E324,03-Oct-2021,000007721929632,SQ LE MINI MACARON,5499,Catering costs - provisions,30.00,0.00,30.00
Children and Young Peoples Services,Head of Childrens Social Care,085332,Middlestone Moor CU,Supplies and Services,324117,Provisions E324,03-Oct-2021,000007721929678,PPOINT_ WASHINGTON VIL,5411,Catering costs - provisions,5.19,0.00,5.19
Children and Young Peoples Services,Head of Childrens Social Care,085351,Framwellgate Moor CU,Supplies and Services,328041,Clothing uniforms and laundry E328,03-Oct-2021,000007721929770,YORK MAZE,7996,Clothing uniforms and laundry,150.00,0.00,150.00
Children and Young Peoples Services,Head of Childrens Social Care,085351,Framwellgate Moor CU,Supplies and Services,324117,Provisions E324,03-Oct-2021,000007721929774,SAINSBURYS LOCAL,5411,Catering costs - provisions,12.40,0.00,12.40
Children and Young Peoples Services,Head of Childrens Social Care,085634,Families First Easington,Supplies and Services,304999,Equipment and Materials,03-Oct-2021,000007721930504,BOOTS UK ECOMM,5912,Misc equipment tools and materials,75.00,0.00,75.00
Children and Young Peoples Services,Head of Childrens Social Care,085634,Families First Easington,Supplies and Services,384999,Miscellaneous Expenses,03-Oct-2021,000007721930508,Amazon.co.uk H940005E5,5969,Other expenses,62.37,0.00,62.37
"Regeneration, Economy and Growth",Corporate Property and Land,021242,Catering - County Hall,Supplies and Services,324117,Provisions E324,03-Oct-2021,000007727715060,BATLEYS PERTH,5300,Catering costs - provisions,66.06,11.01,55.05
"Regeneration, Economy and Growth",Corporate Property and Land,021242,Catering - County Hall,Supplies and Services,324117,Provisions E324,03-Oct-2021,000007727715060 - 1,BATLEYS PERTH,5300,Catering costs - provisions,87.33,,87.33
"Regeneration, Economy and Growth",Corporate Property and Land,010525,Catering - Green Lane,Supplies and Services,324117,Provisions E324,03-Oct-2021,000007727715294,BATLEYS PERTH,5300,Catering costs - provisions,75.60,12.60,63.00
"Regeneration, Economy and Growth",Corporate Property and Land,010525,Catering - Green Lane,Supplies and Services,324117,Provisions E324,03-Oct-2021,000007727715294 - 1,BATLEYS PERTH,5300,Catering costs - provisions,46.59,,46.59
Adult and Health Services,Head of Adults,055643,Hawthorn House LD Respite Unit,Supplies and Services,324117,Provisions E324,03-Oct-2021,000007727715494,BATLEYS PERTH,5300,Catering costs - provisions,5.64,0.94,4.70
Adult and Health Services,Head of Adults,055643,Hawthorn House LD Respite Unit,Supplies and Services,324117,Provisions E324,03-Oct-2021,000007727715494 - 1,BATLEYS PERTH,5300,Catering costs - provisions,109.58,,109.58
Dedicated Schools Grant BG0015,DSG Schools Block,417608,Greenfield Community College 004176 - RE,Supplies and Services,332047,Printing Stationery and Gen Off Exps,04-Oct-2021,000007721927186,AMZNMktplace,5999,Stationery,21.03,3.51,17.52
Resources BK0010,Digital and Customer Services,070204,School Services - Systems,Supplies and Services,372009,Subscriptions E372,04-Oct-2021,000007721928106,WEB NETWORKSOLUTIONS,5968,Subscriptions 372009,1.97,0.00,1.97
Neighbourhoods and Climate Change,Environmental Services,026591,C&G - Hardwick Park,Supplies and Services,332047,Printing Stationery and Gen Off Exps,04-Oct-2021,000007721928198,AMZNMktplace,5999,Stationery,12.30,2.05,10.25
Neighbourhoods and Climate Change,Environmental Services,026591,C&G - Hardwick Park,Supplies and Services,332047,Printing Stationery and Gen Off Exps,04-Oct-2021,000007721928198 - 1,AMZNMktplace,5999,Stationery,0.03,,0.03
Resources BK0010,Finance & Transactional Services,060050,Service Management,Supplies and Services,384999,Miscellaneous Expenses,04-Oct-2021,000007721930128,Amazon.co.uk EJ8475455,5969,Other expenses,15.79,2.64,13.15
Resources BK0010,Finance & Transactional Services,060050,Service Management,Supplies and Services,384999,Miscellaneous Expenses,04-Oct-2021,000007721930130,Amazon.co.uk XZ8HP2VJ5,5969,Other expenses,13.00,2.17,10.83
"Regeneration, Economy and Growth",Business Durham CL0850,030689,Inward Investment and Aftercare,Supplies and Services,336005,Advertising E336,04-Oct-2021,000007727714928,GOOGLE ADS6853017821,7311,Advertising other than for staff,167.04,0.00,167.04
"Regeneration, Economy and Growth",Business Durham CL0850,030689,Inward Investment and Aftercare,Supplies and Services,342222,Computers and Communications,04-Oct-2021,000007727714930,FASTHOSTS INTERNET,4816,Comp hardware purch-network servers,7.54,0.00,7.54
"Regeneration, Economy and Growth",Transport and Contracted Services,032250,Traffic Signals and UTMC 032250,Supplies and Services,324117,Provisions E324,04-Oct-2021,000007727714940,ASDA GEORGE COM LEEDS,5411,Catering costs - provisions,32.95,0.00,32.95
"Regeneration, Economy and Growth",Transport and Contracted Services,032250,Traffic Signals and UTMC 032250,Supplies and Services,324117,Provisions E324,04-Oct-2021,000007727714942,ASDA GEORGE COM LEEDS,5411,Catering costs - provisions,32.95,0.00,32.95
"Regeneration, Economy and Growth",Transport and Contracted Services,032250,Traffic Signals and UTMC 032250,Supplies and Services,324117,Provisions E324,04-Oct-2021,000007727714944,ASDA GEORGE COM LEEDS,5411,Catering costs - provisions,32.95,0.00,32.95
"Regeneration, Economy and Growth",Transport and Contracted Services,032250,Traffic Signals and UTMC 032250,Supplies and Services,324117,Provisions E324,04-Oct-2021,000007727714946,ASDA GEORGE COM LEEDS,5411,Catering costs - provisions,32.95,0.00,32.95
Children and Young Peoples Services,Head of Education and Skills,075021,DurhamWorks Progression and Learning,Supplies and Services,364301,Grants to Voluntary Organisations,04-Oct-2021,000007727714970,WWW.GONORTHEAST.CO.UK,4111,Hardship,20.00,0.00,20.00
"Regeneration, Economy and Growth",Culture Sport and Tourism,030712,VCD - Project Delivery,Supplies and Services,384199,Miscellaneous Expenses,04-Oct-2021,000007727714974,FACEBK N36TH7XQH2,7311,Other hired and contracted services,10.15,0.00,10.15
Children and Young Peoples Services,Head of Childrens Social Care,085332,Middlestone Moor CU,Supplies and Services,324117,Provisions E324,04-Oct-2021,000007727714978,TESCO STORES 2371,5411,Catering costs - provisions,87.56,0.00,87.56
"Regeneration, Economy and Growth",Development and Housing,030776,LINKCD Flexible Fund,Supplies and Services,312009,Newspapers books and periodicals E312,04-Oct-2021,000007727715038,AMZN Mktp UK 6N11D6XT5,5942,Newspapers books and periodicals,10.69,1.78,8.91
Children and Young Peoples Services,Head of Early Help Inclusion & Vulnerable Children.,071440,Barnard Castle One Point Hub,Supplies and Services,384999,Miscellaneous Expenses,04-Oct-2021,000007727715044,Amazon.co.uk GP3NX0165,5969,Other expenses,37.98,6.34,31.64
Children and Young Peoples Services,Head of Early Help Inclusion & Vulnerable Children.,071440,Barnard Castle One Point Hub,Supplies and Services,304403,Equipment and Materials,04-Oct-2021,000007727715050,AMZNMktplace,5999,Other consumables,10.99,1.83,9.16
Children and Young Peoples Services,Head of Early Help Inclusion & Vulnerable Children.,071440,Barnard Castle One Point Hub,Supplies and Services,384999,Miscellaneous Expenses,04-Oct-2021,000007727715052,Amazon.co.uk 1606M6O65,5969,Other expenses,37.98,6.34,31.64
"Regeneration, Economy and Growth",Corporate Property and Land,021242,Catering - County Hall,Supplies and Services,324117,Provisions E324,04-Oct-2021,000007727715062,JR HOLLAND FOODSERVICE,5499,Catering costs - provisions,31.35,0.00,31.35
"Regeneration, Economy and Growth",Development and Housing,031578,Client Travel Reimbursements,Transport,235073,Public Transport,04-Oct-2021,000007727715100,BLUE LINE TAXIS,4121,Travel-clients/students/children,25.70,0.00,25.70
Children and Young Peoples Services,Head of Early Help Inclusion & Vulnerable Children.,085952,Secure Education,Supplies and Services,384999,Miscellaneous Expenses,04-Oct-2021,000007727715106,SP FOCUSGAMESLTD,5945,Other expenses,82.56,0.00,82.56
Children and Young Peoples Services,Head of Early Help Inclusion & Vulnerable Children.,085957,Secure Management,Supplies and Services,304403,Equipment and Materials,04-Oct-2021,000007727715108,AMZNMktplace,5999,Other consumables,12.92,2.15,10.77
Children and Young Peoples Services,Head of Early Help Inclusion & Vulnerable Children.,085952,Secure Education,Supplies and Services,324117,Provisions E324,04-Oct-2021,000007727715110,TESCO STORES 6329,5411,Catering costs - provisions,133.63,0.00,133.63
Children and Young Peoples Services,Head of Childrens Social Care,085362,LAC & Permanence Team 2,Supplies and Services,338045,Services,04-Oct-2021,000007727715128,SUNDERLAND CC,7523,Legal expenses 338045,11.00,0.00,11.00
Children and Young Peoples Services,Head of Early Help Inclusion & Vulnerable Children.,074000,National Supporting Families Programme,Transfer Payments,525033,Other,04-Oct-2021,000007727715148,FRANKS THE FLOORING ST,5713,Grants to individuals,250.00,0.00,250.00
Children and Young Peoples Services,Head of Childrens Social Care,085358,Orchard House Sacriston Solo Home,Supplies and Services,344033,Telephones,04-Oct-2021,000007727715172,giffgaff,4814,Telephones general-all costs,10.00,0.00,10.00
Children and Young Peoples Services,Head of Childrens Social Care,085358,Orchard House Sacriston Solo Home,Transport,215995,Running Costs of Vehicles,04-Oct-2021,000007727715174,MOUNT PLEASANT GARAGE,5541,Vehicle running expenses,270.00,0.00,270.00
Neighbourhoods and Climate Change,Environmental Services,010864,Fleet - Hackworth Road Fleet,Transport,215013,Running Costs of Vehicles,04-Oct-2021,000007727715178,POST OFFICE COUNTER,9402,Vehicle Excise Duty (VED),302.50,0.00,302.50
Children and Young Peoples Services,Head of Education and Skills,071732,Dean Bank Childcare,Supplies and Services,324117,Provisions E324,04-Oct-2021,000007727715210,ASDA GROCERIES ONLINE,5411,Catering costs - provisions,44.49,0.00,44.49
Children and Young Peoples Services,Head of Education and Skills,071732,Dean Bank Childcare,Supplies and Services,324117,Provisions E324,04-Oct-2021,000007727715212,ASDA GROCERIES ONLINE,5411,Catering costs - provisions,52.78,0.00,52.78
Children and Young Peoples Services,Head of Education and Skills,071732,Dean Bank Childcare,Supplies and Services,324117,Provisions E324,04-Oct-2021,000007727715214,ASDA GROCERIES ONLINE,5411,Catering costs - provisions,-1.05,0.00,-1.05
"Regeneration, Economy and Growth",Development and Housing,031623,Rough Sleeping,Supplies and Services,352001,Conference Expenses,04-Oct-2021,000007727715242,AYCLIFFE BIZ,7011,Conferencesseminars fees etc,266.00,0.00,266.00
Resources BK0010,Procurement Sales & Business Services,065503,Business Support - Spectrum,Supplies and Services,304403,Equipment and Materials,04-Oct-2021,000007727715268,AMZNMktplace,5999,Other consumables,-49.32,0.00,-49.32
Children and Young Peoples Services,Head of Childrens Social Care,085334,West Rainton Satelite Home,Supplies and Services,324117,Provisions E324,04-Oct-2021,000007727715288,TESCO STORES 2371,5411,Catering costs - provisions,165.29,0.00,165.29
"Regeneration, Economy and Growth",Corporate Property and Land,010525,Catering - Green Lane,Supplies and Services,324117,Provisions E324,04-Oct-2021,000007727715296,JR HOLLAND FOODSERVICE,5499,Catering costs - provisions,26.62,0.00,26.62
Resources BK0010,Legal & Democratic Services,060131,County Records,Supplies and Services,304999,Equipment and Materials,04-Oct-2021,000007727715306,BIGDUG LIMITED,5072,Misc equipment tools and materials,482.22,0.00,482.22
Dedicated Schools Grant BG0015,DSG Schools Block,418507,Belmont Community School 004185 - Performing Arts,Supplies and Services,304403,Equipment and Materials,04-Oct-2021,000007727715326,AMZNMktplace,5999,Other consumables,57.00,9.50,47.50
Dedicated Schools Grant BG0015,DSG Schools Block,418507,Belmont Community School 004185 - Performing Arts,Supplies and Services,304403,Equipment and Materials,04-Oct-2021,000007727715326 - 1,AMZNMktplace,5999,Other consumables,0.10,,0.10
Children and Young Peoples Services,Head of Early Help Inclusion & Vulnerable Children.,088109,Spennymoor & Shildon 0-19 Community Family Hub,Supplies and Services,384302,Miscellaneous Expenses,04-Oct-2021,000007727715336,ASDA STORES,5411,Activity expenses,11.95,0.00,11.95
Children and Young Peoples Services,Head of Childrens Social Care,085351,Framwellgate Moor CU,Supplies and Services,304403,Equipment and Materials,04-Oct-2021,000007727715444,AMZNMktplace,5999,Other consumables,87.84,14.64,73.20
Children and Young Peoples Services,Head of Childrens Social Care,085351,Framwellgate Moor CU,Supplies and Services,304403,Equipment and Materials,04-Oct-2021,000007727715444 - 1,AMZNMktplace,5999,Other consumables,0.08,,0.08
"Regeneration, Economy and Growth",Corporate Property and Land,030691,Catering - Durham Dales Centre,Supplies and Services,324117,Provisions E324,04-Oct-2021,000007727715462,JR HOLLAND FOODSERVICE,5499,Catering costs - provisions,27.08,0.00,27.08
"Regeneration, Economy and Growth",Corporate Property and Land,030691,Catering - Durham Dales Centre,Supplies and Services,324117,Provisions E324,04-Oct-2021,000007727715466,JR HOLLAND FOODSERVICE,5499,Catering costs - provisions,-66.19,0.00,-66.19
Adult and Health Services,Head of Adults,055643,Hawthorn House LD Respite Unit,Supplies and Services,324117,Provisions E324,04-Oct-2021,000007727715502,JR HOLLAND FOODSERVICE,5499,Catering costs - provisions,16.42,0.00,16.42
Children and Young Peoples Services,Head of Education and Skills,070264,EDC Premises,Supplies and Services,384999,Miscellaneous Expenses,04-Oct-2021,000007727715510,Amazon.co.uk 899071D85,5969,Other expenses,11.35,0.00,11.35
Children and Young Peoples Services,Head of Early Help Inclusion & Vulnerable Children.,071487,Reducing Anti-Social Behaviour,Supplies and Services,352001,Conference Expenses,04-Oct-2021,000007727715534,WESTMINSTER INSIGHT,5815,Conferencesseminars fees etc,256.50,0.00,256.50
Resources BK0010,Digital and Customer Services,065335,School Services - Implementations,Supplies and Services,304639,Equipment and Materials,04-Oct-2021,000007727715538,REPLACEBASE,5732,Technicians-supplies,52.86,0.00,52.86
"Regeneration, Economy and Growth",Culture Sport and Tourism,054235,Bishop Auckland Town Hall Cafe,Supplies and Services,324117,Provisions E324,04-Oct-2021,000007727715564,JR HOLLAND FOODSERVICE,5499,Catering costs - provisions,9.40,0.00,9.40
Children and Young Peoples Services,Head of Early Help Inclusion & Vulnerable Children.,085801,CDYJS - Support,Supplies and Services,324117,Provisions E324,04-Oct-2021,000007727715596,TESCO GIFT CARD,5411,Catering costs - provisions,50.00,0.00,50.00
Children and Young Peoples Services,Head of Early Help Inclusion & Vulnerable Children.,085801,CDYJS - Support,Supplies and Services,332047,Printing Stationery and Gen Off Exps,04-Oct-2021,000007727715598,VUE BSL LTD,7832,Stationery,31.50,0.00,31.50
Children and Young Peoples Services,Head of Childrens Social Care,085333,Coxhoe Satelite Home,Supplies and Services,324117,Provisions E324,04-Oct-2021,000007727715610,TESCO STORES 2916,5411,Catering costs - provisions,110.17,0.00,110.17
Children and Young Peoples Services,Head of Early Help Inclusion & Vulnerable Children.,088107,Ferryhill & Newton Aycliffe 0-19 Community Family Hub,Third Party Payments,430100,Rendered by Private Contractors,04-Oct-2021,000007727715640,EB TACKLING YOUTH VIO,7399,Payments to sub-contractors,29.98,0.00,29.98
Neighbourhoods and Climate Change,Environmental Services,031200,North Pennines Core,Supplies and Services,340001,Postages E340,04-Oct-2021,000007727715656,POST OFFICE COUNTER,9402,Postages,4.73,0.00,4.73
"Regeneration, Economy and Growth",Development and Housing,031500,Housing Solutions - Core,Supplies and Services,352001,Conference Expenses,04-Oct-2021,000007727715660,H52STANLEY,7011,Conferencesseminars fees etc,66.95,0.00,66.95
"Regeneration, Economy and Growth",Culture Sport and Tourism,054233,Bishop Auckland Town Hall Library,Supplies and Services,324117,Provisions E324,04-Oct-2021,000007727715662,WILKO RETAIL LIMITED,5399,Catering costs - provisions,11.40,0.00,11.40
"Regeneration, Economy and Growth",Culture Sport and Tourism,054233,Bishop Auckland Town Hall Library,Supplies and Services,324117,Provisions E324,04-Oct-2021,000007727715666,HERON FOODS,5411,Catering costs - provisions,5.34,0.00,5.34
Adult and Health Services,Head of Adults,055309,Peterlee Pathways,Supplies and Services,324117,Provisions E324,04-Oct-2021,000007727715718,LIDL GB,5411,Catering costs - provisions,3.20,0.00,3.20
Resources BK0010,Procurement Sales & Business Services,065503,Business Support - Spectrum,Supplies and Services,304403,Equipment and Materials,04-Oct-2021,000007727715736,AMZNMKTPLACE AMAZON.CO,5999,Other consumables,41.99,7.00,34.99
Resources BK0010,Procurement Sales & Business Services,065503,Business Support - Spectrum,Supplies and Services,384999,Miscellaneous Expenses,04-Oct-2021,000007727715738,Amazon.co.uk KS18E53O5,5969,Other expenses,24.45,4.08,20.37
Children and Young Peoples Services,Head of Early Help Inclusion & Vulnerable Children.,071440,Barnard Castle One Point Hub,Supplies and Services,304403,Equipment and Materials,04-Oct-2021,000007730990702,AMZNMKTPLACE AMAZON.CO,5999,Other consumables,4.70,0.78,3.92
"Regeneration, Economy and Growth",Development and Housing,030544,Rural Employability - Client Engagement,Supplies and Services,324117,Provisions E324,04-Oct-2021,000007730990818,SAINSBURYS S/MKTS,5411,Catering costs - provisions,2.40,0.00,2.40
"Regeneration, Economy and Growth",Culture Sport and Tourism,054812,Gala Theatre - Catering etc,Supplies and Services,324117,Provisions E324,04-Oct-2021,000007730990824,BATLEYS PERTH,5300,Catering costs - provisions,159.90,26.65,133.25
"Regeneration, Economy and Growth",Culture Sport and Tourism,054812,Gala Theatre - Catering etc,Supplies and Services,324117,Provisions E324,04-Oct-2021,000007730990824 - 1,BATLEYS PERTH,5300,Catering costs - provisions,17.76,,17.76
"Regeneration, Economy and Growth",Culture Sport and Tourism,054812,Gala Theatre - Catering etc,Supplies and Services,324117,Provisions E324,04-Oct-2021,000007730990826,BATLEYS PERTH,5300,Catering costs - provisions,38.88,6.48,32.40
"Regeneration, Economy and Growth",Development and Housing,031576,B& B - Temp Accom,Supplies and Services,364320,Grants to Voluntary Organisations,04-Oct-2021,000007730990842,CROXDALE INN,5812,Accommodation assistance,45.00,0.00,45.00
Children and Young Peoples Services,Head of Childrens Social Care,085358,Orchard House Sacriston Solo Home,Supplies and Services,328041,Clothing uniforms and laundry E328,04-Oct-2021,000007730990928,ARGOS LTD,5310,Clothing uniforms and laundry,29.99,0.00,29.99
Children and Young Peoples Services,Head of Education and Skills,071732,Dean Bank Childcare,Supplies and Services,324117,Provisions E324,04-Oct-2021,000007730990984,SAINSBURYS S/MKTS,5411,Catering costs - provisions,16.14,0.00,16.14
Children and Young Peoples Services,Head of Education and Skills,071732,Dean Bank Childcare,Supplies and Services,324117,Provisions E324,04-Oct-2021,000007730990986,Wm Morrisons Store Pic,5411,Catering costs - provisions,8.00,0.00,8.00
"Regeneration, Economy and Growth",Culture Sport and Tourism,054967,Theatre - Technical Staffing,Supplies and Services,304403,Equipment and Materials,04-Oct-2021,000007730990994,AMZNMKTPLACE AMAZON.CO,5999,Other consumables,30.59,0.00,30.59
Dedicated Schools Grant BG0015,DSG Schools Block,418518,Belmont Community School 004185 - School ICT costs,Supplies and Services,304335,Equipment and Materials,04-Oct-2021,000007730991286,BIOTECTS LTD,5111,ICT supplies etc,60.36,10.06,50.30
Children and Young Peoples Services,Head of Early Help Inclusion & Vulnerable Children.,088108,Spennymoor & Shildon 0-19 Targeted Family Support,Supplies and Services,364301,Grants to Voluntary Organisations,04-Oct-2021,000007730991306,SAINSBURYS S/MKTS,5411,Hardship,14.00,0.00,14.00
"Regeneration, Economy and Growth",Development and Housing,031581,Prevention Fund,Supplies and Services,384999,Miscellaneous Expenses,04-Oct-2021,000007730991322,Durham County CNCL,9399,Other expenses,35.00,0.00,35.00
"Regeneration, Economy and Growth",Corporate Property and Land,030691,Catering - Durham Dales Centre,Supplies and Services,324117,Provisions E324,04-Oct-2021,000007730991424,BATLEYS PERTH,5300,Catering costs - provisions,10.74,1.79,8.95
"Regeneration, Economy and Growth",Corporate Property and Land,030691,Catering - Durham Dales Centre,Supplies and Services,324117,Provisions E324,04-Oct-2021,000007730991424 - 1,BATLEYS PERTH,5300,Catering costs - provisions,111.38,,111.38
Children and Young Peoples Services,Head of Childrens Social Care,085363,LAC & Permanence Team 3,Supplies and Services,338045,Services,04-Oct-2021,000007730991492,Durham County CNCL,9399,Legal expenses 338045,-22.00,0.00,-22.00
Adult and Health Services,Head of Adults,055310,Positive Journeys (Tudhoe),Supplies and Services,304259,Equipment and Materials,04-Oct-2021,000007730991746,J D SPORTS,5941,Equipment-purchase and rental,30.00,0.00,30.00
Resources BK0010,Procurement Sales & Business Services,065503,Business Support - Spectrum,Supplies and Services,328041,Clothing uniforms and laundry E328,04-Oct-2021,000007730991846,ARGOS LTD,5310,Clothing uniforms and laundry,191.94,0.00,191.94
Dedicated Schools Grant BG0015,DSG Schools Block,418507,Belmont Community School 004185 - Performing Arts,Supplies and Services,304403,Equipment and Materials,05-Oct-2021,000007727715330,AMZNMktplace,5999,Other consumables,13.98,2.33,11.65
Children and Young Peoples Services,Head of Childrens Social Care,085341,High Etherley Satelite Home,Supplies and Services,324117,Provisions E324,05-Oct-2021,000007730990450,TESCO STORES 6329,5411,Catering costs - provisions,19.44,0.00,19.44
Children and Young Peoples Services,Head of Childrens Social Care,085633,Families First Chester-Le-Street,Supplies and Services,364340,Grants to Voluntary Organisations,05-Oct-2021,000007730990470,WWW.GONORTHEAST.CO.UK,4111,Contact expenses,4.00,0.00,4.00
Children and Young Peoples Services,Head of Childrens Social Care,085633,Families First Chester-Le-Street,Supplies and Services,364340,Grants to Voluntary Organisations,05-Oct-2021,000007730990474,WWW.GONORTHEAST.CO.UK,4111,Contact expenses,4.00,0.00,4.00
Children and Young Peoples Services,Head of Education and Skills,071801,Selby Cottage Childcare Centre,Supplies and Services,324117,Provisions E324,05-Oct-2021,000007730990480,JR HOLLAND FOODSERVICE,5499,Catering costs - provisions,294.56,0.00,294.56
Children and Young Peoples Services,Head of Education and Skills,071801,Selby Cottage Childcare Centre,Supplies and Services,324117,Provisions E324,05-Oct-2021,000007730990484,ASDA GROCERIES ONLINE,5411,Catering costs - provisions,70.73,0.00,70.73
Children and Young Peoples Services,Head of Education and Skills,071801,Selby Cottage Childcare Centre,Supplies and Services,324117,Provisions E324,05-Oct-2021,000007730990490,TESCO STORES 2278,5411,Catering costs - provisions,3.74,0.00,3.74
"Regeneration, Economy and Growth",Communications Management,060270,Communications and Marketing,Supplies and Services,332047,Printing Stationery and Gen Off Exps,05-Oct-2021,000007730990498,PAYPAL TEESDALEMER,5943,Stationery,28.60,0.00,28.60
"Regeneration, Economy and Growth",Development and Housing,031623,Rough Sleeping,Transport,235073,Public Transport,05-Oct-2021,000007730990602,Blueline Group 5881234,4121,Travel-clients/students/children,40.00,0.00,40.00
Children and Young Peoples Services,Head of Childrens Social Care,085341,High Etherley Satelite Home,Supplies and Services,304999,Equipment and Materials,05-Oct-2021,000007730990606,PLANET LEISURE,7933,Misc equipment tools and materials,10.45,0.00,10.45
Children and Young Peoples Services,Head of Childrens Social Care,085341,High Etherley Satelite Home,Supplies and Services,304999,Equipment and Materials,05-Oct-2021,000007730990612,PLANET LEISURE,7933,Misc equipment tools and materials,2.95,0.00,2.95
Neighbourhoods and Climate Change,Environmental Services,010367,C&G - South Grounds Maintenance,Supplies and Services,304221,Equipment and Materials,05-Oct-2021,000007730990658,MKM PETERLEE,5211,Direct materials,91.34,0.00,91.34
"Regeneration, Economy and Growth",Culture Sport and Tourism,011265,Empire Theatre (Operations),Supplies and Services,324117,Provisions E324,05-Oct-2021,000007730990686,JR HOLLAND FOODSERVICE,5499,Catering costs - provisions,28.20,0.00,28.20
Children and Young Peoples Services,Head of Early Help Inclusion & Vulnerable Children.,071440,Barnard Castle One Point Hub,Supplies and Services,304403,Equipment and Materials,05-Oct-2021,000007730990710,AMZNMktplace,5999,Other consumables,2.69,0.00,2.69
Children and Young Peoples Services,Head of Early Help Inclusion & Vulnerable Children.,071440,Barnard Castle One Point Hub,Supplies and Services,304403,Equipment and Materials,05-Oct-2021,000007730990714,AMZNMktplace,5999,Other consumables,2.69,0.00,2.69
Children and Young Peoples Services,Head of Early Help Inclusion & Vulnerable Children.,071440,Barnard Castle One Point Hub,Supplies and Services,304403,Equipment and Materials,05-Oct-2021,000007730990718,AMZNMktplace,5999,Other consumables,19.99,3.33,16.66
Children and Young Peoples Services,Head of Early Help Inclusion & Vulnerable Children.,071440,Barnard Castle One Point Hub,Supplies and Services,304403,Equipment and Materials,05-Oct-2021,000007730990722,AMZNMktplace,5999,Other consumables,6.99,0.00,6.99
Children and Young Peoples Services,Head of Early Help Inclusion & Vulnerable Children.,071440,Barnard Castle One Point Hub,Supplies and Services,304403,Equipment and Materials,05-Oct-2021,000007730990726,AMZNMktplace,5999,Other consumables,8.02,1.34,6.68
Children and Young Peoples Services,Head of Early Help Inclusion & Vulnerable Children.,071440,Barnard Castle One Point Hub,Supplies and Services,304403,Equipment and Materials,05-Oct-2021,000007730990732,AMZNMktplace,5999,Other consumables,8.02,1.34,6.68
Children and Young Peoples Services,Head of Early Help Inclusion & Vulnerable Children.,071440,Barnard Castle One Point Hub,Supplies and Services,304403,Equipment and Materials,05-Oct-2021,000007730990740,AMZNMktplace,5999,Other consumables,4.70,0.78,3.92
"Regeneration, Economy and Growth",Development and Housing,030544,Rural Employability - Client Engagement,Transport,235057,Public Transport,05-Oct-2021,000007730990758,WWW.GONORTHEAST.CO.UK,4111,Staff travelling,34.00,0.00,34.00
"Regeneration, Economy and Growth",Corporate Property and Land,021242,Catering - County Hall,Supplies and Services,324117,Provisions E324,05-Oct-2021,000007730990768,JR HOLLAND FOODSERVICE,5499,Catering costs - provisions,14.20,0.00,14.20
"Regeneration, Economy and Growth",Culture Sport and Tourism,054812,Gala Theatre - Catering etc,Supplies and Services,324117,Provisions E324,05-Oct-2021,000007730990828,JR HOLLAND FOODSERVICE,5499,Catering costs - provisions,53.88,0.00,53.88
"Regeneration, Economy and Growth",Development and Housing,031576,B& B - Temp Accom,Supplies and Services,364320,Grants to Voluntary Organisations,05-Oct-2021,000007730990834,CROXDALE INN,5812,Accommodation assistance,135.00,0.00,135.00
"Regeneration, Economy and Growth",Development and Housing,031576,B& B - Temp Accom,Supplies and Services,364320,Grants to Voluntary Organisations,05-Oct-2021,000007730990844,CROXDALE INN,5812,Accommodation assistance,90.00,0.00,90.00
Children and Young Peoples Services,Head of Early Help Inclusion & Vulnerable Children.,085957,Secure Management,Supplies and Services,340001,Postages E340,05-Oct-2021,000007730990852,POST OFFICE COUNTER,9402,Postages,6.57,0.00,6.57
Children and Young Peoples Services,Head of Early Help Inclusion & Vulnerable Children.,085955,Auckland,Supplies and Services,304403,Equipment and Materials,05-Oct-2021,000007730990856,AMZNMktplace,5999,Other consumables,19.90,3.32,16.58
Children and Young Peoples Services,Head of Early Help Inclusion & Vulnerable Children.,085955,Auckland,Supplies and Services,304403,Equipment and Materials,05-Oct-2021,000007730990860,AMZNMktplace,5999,Other consumables,22.81,3.81,19.00
Children and Young Peoples Services,Head of Early Help Inclusion & Vulnerable Children.,085955,Auckland,Supplies and Services,304403,Equipment and Materials,05-Oct-2021,000007730990864,AMZNMKTPLACE AMAZON.CO,5999,Other consumables,40.62,6.77,33.85
Children and Young Peoples Services,Head of Early Help Inclusion & Vulnerable Children.,085955,Auckland,Supplies and Services,304403,Equipment and Materials,05-Oct-2021,000007730990864 - 1,AMZNMKTPLACE AMAZON.CO,5999,Other consumables,36.45,,36.45
Children and Young Peoples Services,Head of Early Help Inclusion & Vulnerable Children.,085955,Auckland,Supplies and Services,304403,Equipment and Materials,05-Oct-2021,000007730990866,AMZNMktplace,5999,Other consumables,60.96,10.17,50.79
Children and Young Peoples Services,Head of Early Help Inclusion & Vulnerable Children.,085955,Auckland,Supplies and Services,304403,Equipment and Materials,05-Oct-2021,000007730990870,AMZNMktplace,5999,Other consumables,11.33,1.89,9.44
Neighbourhoods and Climate Change,Environmental Services,026591,C&G - Hardwick Park,Supplies and Services,332047,Printing Stationery and Gen Off Exps,05-Oct-2021,000007730991010,AMZNMKTPLACE AMAZON.CO,5999,Stationery,31.98,5.34,26.64
Neighbourhoods and Climate Change,Environmental Services,026591,C&G - Hardwick Park,Supplies and Services,332047,Printing Stationery and Gen Off Exps,05-Oct-2021,000007730991014,WHSMITH.CO.UK,5943,Stationery,39.90,0.00,39.90
Neighbourhoods and Climate Change,Environmental Services,010301,C&G - North Grounds Maintenance,Supplies and Services,304221,Equipment and Materials,05-Oct-2021,000007730991054,AZTEC CHEMICALS LTD,5169,Direct materials,422.81,70.47,352.34
Children and Young Peoples Services,Head of Early Help Inclusion & Vulnerable Children.,085954,Walworth,Transfer Payments,515002,Social Services Clients,05-Oct-2021,000007730991068,GOGETTA NDO,5691,Pocket money,84.99,0.00,84.99
Children and Young Peoples Services,Head of Early Help Inclusion & Vulnerable Children.,085954,Walworth,Transfer Payments,515002,Social Services Clients,05-Oct-2021,000007730991072,SP HOODRICH LTD,5691,Pocket money,110.00,0.00,110.00
Children and Young Peoples Services,Head of Early Help Inclusion & Vulnerable Children.,085956,Lumley,Transfer Payments,515002,Social Services Clients,05-Oct-2021,000007730991076,Amazon.co.uk AQ3QQ0585,5969,Pocket money,38.86,6.48,32.38
Children and Young Peoples Services,Head of Early Help Inclusion & Vulnerable Children.,085956,Lumley,Supplies and Services,384302,Miscellaneous Expenses,05-Oct-2021,000007730991078,AMZNMktplace,5999,Activity expenses,6.99,1.17,5.82
Children and Young Peoples Services,Head of Early Help Inclusion & Vulnerable Children.,085956,Lumley,Supplies and Services,384302,Miscellaneous Expenses,05-Oct-2021,000007730991080,AMZNMktplace,5999,Activity expenses,6.49,0.00,6.49
Children and Young Peoples Services,Head of Early Help Inclusion & Vulnerable Children.,085956,Lumley,Transfer Payments,515002,Social Services Clients,05-Oct-2021,000007730991084,PRETTYLITTLETHING.COM,5691,Pocket money,20.00,0.00,20.00
Children and Young Peoples Services,Head of Early Help Inclusion & Vulnerable Children.,085956,Lumley,Transfer Payments,515002,Social Services Clients,05-Oct-2021,000007730991086,Amazon.co.uk GN8MS4LV5,5969,Pocket money,5.47,0.92,4.55
Neighbourhoods and Climate Change,Environmental Services,031228,North Pennines - Fellfoot Forward,Supplies and Services,348037,Subsistence E348,05-Oct-2021,000007730991130,SHEPHERDS INN,5812,Subsistence,59.95,0.00,59.95
Neighbourhoods and Climate Change,Environmental Services,011060,C&G - Hardwick Park Catering,Supplies and Services,324117,Provisions E324,05-Oct-2021,000007730991136,JR HOLLAND FOODSERVICE,5499,Catering costs - provisions,31.78,0.00,31.78
Neighbourhoods and Climate Change,Environmental Services,011060,C&G - Hardwick Park Catering,Supplies and Services,304221,Equipment and Materials,05-Oct-2021,000007730991142,GM PACKAGING UK LTD,5099,Direct materials,167.69,0.00,167.69
Children and Young Peoples Services,Head of Education and Skills,075021,DurhamWorks Progression and Learning,Supplies and Services,364301,Grants to Voluntary Organisations,05-Oct-2021,000007730991164,WWW.GONORTHEAST.CO.UK,4111,Hardship,95.00,0.00,95.00
Children and Young Peoples Services,Head of Education and Skills,075021,DurhamWorks Progression and Learning,Supplies and Services,364301,Grants to Voluntary Organisations,05-Oct-2021,000007730991168,WWW.GONORTHEAST.CO.UK,4111,Hardship,4.50,0.00,4.50
Children and Young Peoples Services,Head of Education and Skills,075021,DurhamWorks Progression and Learning,Supplies and Services,364301,Grants to Voluntary Organisations,05-Oct-2021,000007730991172,WWW.GONORTHEAST.CO.UK,4111,Hardship,4.50,0.00,4.50
Children and Young Peoples Services,Head of Education and Skills,075021,DurhamWorks Progression and Learning,Supplies and Services,364301,Grants to Voluntary Organisations,05-Oct-2021,000007730991174,WWW.GONORTHEAST.CO.UK,4111,Hardship,4.50,0.00,4.50
Children and Young Peoples Services,Head of Education and Skills,075021,DurhamWorks Progression and Learning,Supplies and Services,364301,Grants to Voluntary Organisations,05-Oct-2021,000007730991178,WWW.GONORTHEAST.CO.UK,4111,Hardship,17.00,0.00,17.00
Neighbourhoods and Climate Change,Environmental Services,031238,North Pennines - Tees Swale,Supplies and Services,304999,Equipment and Materials,05-Oct-2021,000007730991194,NEW ROW FARM NURSERIES,780,Misc equipment tools and materials,100.00,0.00,100.00
"Regeneration, Economy and Growth",Corporate Property and Land,021234,Catering - Locomotion,Supplies and Services,384999,Miscellaneous Expenses,05-Oct-2021,000007730991202,ON A ROLL SANDWICH COM,5199,Other expenses,203.51,0.00,203.51
Children and Young Peoples Services,Head of Childrens Social Care,085334,West Rainton Satelite Home,Transport,235057,Public Transport,05-Oct-2021,000007730991216,TT2 LTD,4784,Staff travelling,1.90,0.00,1.90
Children and Young Peoples Services,Head of Childrens Social Care,085334,West Rainton Satelite Home,Transport,235057,Public Transport,05-Oct-2021,000007730991224,TT2 LTD,4784,Staff travelling,1.90,0.00,1.90
Dedicated Schools Grant BG0015,DSG Schools Block,418507,Belmont Community School 004185 - Performing Arts,Supplies and Services,304403,Equipment and Materials,05-Oct-2021,000007730991292,AMZNMKTPLACE AMAZON.CO,5999,Other consumables,26.94,4.50,22.44
Dedicated Schools Grant BG0015,DSG Schools Block,418516,Belmont Community School 004185 - Non Curriculum,Premises,145023,Cleaning and Domestic Supplies,05-Oct-2021,000007730991298,AMZNMKTPLACE AMAZON.CO,5999,Cleaning and domestic materials,153.00,25.50,127.50
Neighbourhoods and Climate Change,Environmental Services,010367,C&G - South Grounds Maintenance,Supplies and Services,304999,Equipment and Materials,05-Oct-2021,000007730991332,NEW ROW FARM NURSERIES,780,Misc equipment tools and materials,135.00,0.00,135.00
Adult and Health Services,Head of Adults,055301,Stanley Pathways,Supplies and Services,304403,Equipment and Materials,05-Oct-2021,000007730991368,AMZNMktplace,5999,Other consumables,4.99,0.83,4.16
Adult and Health Services,Head of Adults,055301,Stanley Pathways,Supplies and Services,304403,Equipment and Materials,05-Oct-2021,000007730991374,AMZNMKTPLACE AMAZON.CO,5999,Other consumables,35.00,5.83,29.17
Adult and Health Services,Head of Adults,055301,Stanley Pathways,Supplies and Services,304403,Equipment and Materials,05-Oct-2021,000007730991380,AMZNMKTPLACE AMAZON.CO,5999,Other consumables,2.99,0.50,2.49
Adult and Health Services,Head of Adults,055301,Stanley Pathways,Supplies and Services,304403,Equipment and Materials,05-Oct-2021,000007730991384,AMZNMKTPLACE AMAZON.CO,5999,Other consumables,11.04,1.84,9.20
"Regeneration, Economy and Growth",Corporate Property and Land,030691,Catering - Durham Dales Centre,Supplies and Services,324117,Provisions E324,05-Oct-2021,000007730991432,JR HOLLAND FOODSERVICE,5499,Catering costs - provisions,27.75,0.00,27.75
Children and Young Peoples Services,Head of Early Help Inclusion & Vulnerable Children.,085955,Auckland,Supplies and Services,304259,Equipment and Materials,05-Oct-2021,000007730991544,Connect Distribution S,5722,Equipment-purchase and rental,39.15,6.53,32.62
Dedicated Schools Grant BG0015,DSG High Needs Block,079040,HNB Management and support,Supplies and Services,304403,Equipment and Materials,05-Oct-2021,000007730991550,AMZNMktplace,5999,Other consumables,92.16,15.36,76.80
Dedicated Schools Grant BG0015,DSG High Needs Block,079040,HNB Management and support,Supplies and Services,304403,Equipment and Materials,05-Oct-2021,000007730991550 - 1,AMZNMktplace,5999,Other consumables,0.24,,0.24
Children and Young Peoples Services,Head of Early Help Inclusion & Vulnerable Children.,088111,Easington & Peterlee 0-19 Community Family Hub,Supplies and Services,304259,Equipment and Materials,05-Oct-2021,000007730991552,CURRYS ONLINE,5732,Equipment-purchase and rental,329.00,0.00,329.00
"Regeneration, Economy and Growth",Culture Sport and Tourism,054235,Bishop Auckland Town Hall Cafe,Supplies and Services,324117,Provisions E324,05-Oct-2021,000007730991556,JR HOLLAND FOODSERVICE,5499,Catering costs - provisions,10.10,0.00,10.10
"Regeneration, Economy and Growth",Culture Sport and Tourism,011204,Festival and Events,Supplies and Services,364320,Grants to Voluntary Organisations,05-Oct-2021,000007730991560,REDWORTH HALL,7011,Accommodation assistance,"1,305.85",0.00,1305.85
Neighbourhoods and Climate Change,Environmental Services,010301,C&G - North Grounds Maintenance,Supplies and Services,304999,Equipment and Materials,05-Oct-2021,000007730991576,GUSTHARTS,5072,Misc equipment tools and materials,368.58,0.00,368.58
Children and Young Peoples Services,Head of Childrens Social Care,085333,Coxhoe Satelite Home,Supplies and Services,324117,Provisions E324,05-Oct-2021,000007730991580,WALKERS BUTCHERS & BAK,5499,Catering costs - provisions,14.30,0.00,14.30
Children and Young Peoples Services,Head of Childrens Social Care,085333,Coxhoe Satelite Home,Supplies and Services,324117,Provisions E324,05-Oct-2021,000007730991586,TESCO STORES 2916,5411,Catering costs - provisions,24.99,0.00,24.99
Children and Young Peoples Services,Head of Childrens Social Care,085332,Middlestone Moor CU,Supplies and Services,304999,Equipment and Materials,05-Oct-2021,000007730991658,HOME BARGAINS SPENNYMO,5251,Misc equipment tools and materials,5.98,0.00,5.98
"Regeneration, Economy and Growth",Culture Sport and Tourism,054820,Gala Theatre - Overheads,Supplies and Services,324117,Provisions E324,05-Oct-2021,000007730991680,ALLIANCE DISPOSABLES,5811,Catering costs - provisions,42.07,0.00,42.07
Adult and Health Services,Head of Adults,055310,Positive Journeys (Tudhoe),Supplies and Services,304999,Equipment and Materials,05-Oct-2021,000007730991750,HOME BARGAINS SPENNYMO,5251,Misc equipment tools and materials,4.65,0.00,4.65
Adult and Health Services,Head of Adults,055310,Positive Journeys (Tudhoe),Supplies and Services,304259,Equipment and Materials,05-Oct-2021,000007730991752,AMZN Digital,5735,Equipment-purchase and rental,-1.48,0.00,-1.48
Resources BK0010,Procurement Sales & Business Services,065503,Business Support - Spectrum,Supplies and Services,304403,Equipment and Materials,05-Oct-2021,000007730991848,AMZNMKTPLACE AMAZON.CO,5999,Other consumables,29.99,5.00,24.99
Children and Young Peoples Services,Head of Childrens Social Care,085332,Middlestone Moor CU,Supplies and Services,324117,Provisions E324,05-Oct-2021,000007734963200,ICELAND FOODS,5411,Catering costs - provisions,123.52,0.00,123.52
Neighbourhoods and Climate Change,Environmental Services,010367,C&G - South Grounds Maintenance,Supplies and Services,304221,Equipment and Materials,05-Oct-2021,000007734963298,SCREWFIX DIRECT,5211,Direct materials,26.98,0.00,26.98
Children and Young Peoples Services,Head of Early Help Inclusion & Vulnerable Children.,071440,Barnard Castle One Point Hub,Supplies and Services,328041,Clothing uniforms and laundry E328,05-Oct-2021,000007734963370,WWW.THEWORKS.CO.UK,5310,Clothing uniforms and laundry,37.00,0.00,37.00
Children and Young Peoples Services,Head of Early Help Inclusion & Vulnerable Children.,085955,Auckland,Supplies and Services,304403,Equipment and Materials,05-Oct-2021,000007734963494,AMZNMKTPLACE AMAZON.CO,5999,Other consumables,23.58,3.93,19.65
Children and Young Peoples Services,Head of Early Help Inclusion & Vulnerable Children.,085955,Auckland,Supplies and Services,304403,Equipment and Materials,05-Oct-2021,000007734963500,AMZNMKTPLACE AMAZON.CO,5999,Other consumables,67.91,11.32,56.59
"Regeneration, Economy and Growth",Corporate Property and Land,021242,Catering - County Hall,Supplies and Services,304403,Equipment and Materials,05-Oct-2021,000007734963528,AMZNMKTPLACE AMAZON.CO,5999,Other consumables,51.48,0.00,51.48
"Regeneration, Economy and Growth",Development and Housing,030772,CLLD South,Supplies and Services,328041,Clothing uniforms and laundry E328,05-Oct-2021,000007734963566,ORIGINAL FACTORY S,5311,Clothing uniforms and laundry,18.10,0.00,18.10
Children and Young Peoples Services,Head of Childrens Social Care,085362,LAC & Permanence Team 2,Supplies and Services,364340,Grants to Voluntary Organisations,05-Oct-2021,000007734963574,NX Website,4131,Contact expenses,24.90,0.00,24.90
Children and Young Peoples Services,Head of Education and Skills,071732,Dean Bank Childcare,Supplies and Services,324117,Provisions E324,05-Oct-2021,000007734963632,CO-OP GROUP 010503,5411,Catering costs - provisions,7.20,0.00,7.20
Resources BK0010,Legal & Democratic Services,067910,Democratic Representation 067910,Supplies and Services,384965,Miscellaneous Expenses,05-Oct-2021,000007734963648,CO-OP GROUP 310015,5411,Civic Functions,8.90,0.00,8.90
Neighbourhoods and Climate Change,Environmental Services,011060,C&G - Hardwick Park Catering,Supplies and Services,304083,Equipment and Materials,05-Oct-2021,000007734963658,SAINSBURYS S/MKTS,5411,Catering equipment,9.00,0.00,9.00
"Regeneration, Economy and Growth",Development and Housing,030771,Durham Advance Flexible Fund,Supplies and Services,304221,Equipment and Materials,05-Oct-2021,000007734963720,SCREWFIX DIR LTD,5211,Direct materials,39.99,0.00,39.99
Children and Young Peoples Services,Head of Early Help Inclusion & Vulnerable Children.,071445,Chester le Street One Point Hub,Supplies and Services,324117,Provisions E324,05-Oct-2021,000007734963724,BESTWAY WHOLESALE,5451,Catering costs - provisions,140.06,0.00,140.06
Children and Young Peoples Services,Head of Early Help Inclusion & Vulnerable Children.,085954,Walworth,Transfer Payments,515002,Social Services Clients,05-Oct-2021,000007734963732,JD SPORTS INTERNET,5941,Pocket money,80.00,0.00,80.00
Children and Young Peoples Services,Head of Childrens Social Care,085551,Short Break Services-Park Hse Sher,Supplies and Services,324117,Provisions E324,05-Oct-2021,000007734963888,ALDI 59 774,5411,Catering costs - provisions,62.63,0.00,62.63
Neighbourhoods and Climate Change,Environmental Services,010367,C&G - South Grounds Maintenance,Supplies and Services,304221,Equipment and Materials,05-Oct-2021,000007734963912,HOMEBASE LTD 822,5200,Direct materials,109.00,0.00,109.00
Adult and Health Services,Head of Adults,055301,Stanley Pathways,Supplies and Services,304403,Equipment and Materials,05-Oct-2021,000007734963944,AMZNMKTPLACE AMAZON.CO,5999,Other consumables,7.33,1.22,6.11
Adult and Health Services,Head of Adults,055301,Stanley Pathways,Supplies and Services,304403,Equipment and Materials,05-Oct-2021,000007734963946,AMZNMKTPLACE AMAZON.CO,5999,Other consumables,50.58,8.43,42.15
Adult and Health Services,Head of Adults,055301,Stanley Pathways,Supplies and Services,304403,Equipment and Materials,05-Oct-2021,000007734963946 - 1,AMZNMKTPLACE AMAZON.CO,5999,Other consumables,0.04,,0.04
Neighbourhoods and Climate Change,Environmental Services,010367,C&G - South Grounds Maintenance,Supplies and Services,304221,Equipment and Materials,05-Oct-2021,000007734963972,SCREWFIX DIRECT,5211,Direct materials,37.97,0.00,37.97
Children and Young Peoples Services,Head of Early Help Inclusion & Vulnerable Children.,085955,Auckland,Supplies and Services,304259,Equipment and Materials,05-Oct-2021,000007734964086,AMZNMKTPLACE AMAZON.CO,5999,Equipment-purchase and rental,14.99,2.50,12.49
"Regeneration, Economy and Growth",Transport and Contracted Services,031704,Care Connect - CCTV Countywide,Supplies and Services,384956,Miscellaneous Expenses,05-Oct-2021,000007734964132,SECURITY INDUSTRY,7393,Licences,190.00,0.00,190.00
Children and Young Peoples Services,Head of Childrens Social Care,085380,Operations Manager LAC Resources,Supplies and Services,324117,Provisions E324,05-Oct-2021,000007734964262,WM Morrisons Store,5411,Catering costs - provisions,14.39,0.00,14.39
"Regeneration, Economy and Growth",Development and Housing,031634,LOCAL LETTINGS AGENCY,Premises,120037,Energy Costs,05-Oct-2021,000007734964370,BRITISH GAS OTP,4900,Other fuels,2.17,0.00,2.17
"Regeneration, Economy and Growth",Development and Housing,031634,LOCAL LETTINGS AGENCY,Premises,120037,Energy Costs,05-Oct-2021,000007734964376,BRITISH GAS OTP,4900,Other fuels,1.81,0.00,1.81
Children and Young Peoples Services,Head of Childrens Social Care,085551,Short Break Services-Park Hse Sher,Supplies and Services,324117,Provisions E324,05-Oct-2021,000007734964414,ALDI 12 774,5411,Catering costs - provisions,26.28,0.00,26.28
Children and Young Peoples Services,Head of Childrens Social Care,085551,Short Break Services-Park Hse Sher,Supplies and Services,308011,Furniture,05-Oct-2021,000007734964420,The Range,5719,Furniture repair and replacement,4.58,0.00,4.58
"Regeneration, Economy and Growth",Corporate Property and Land,021242,Catering - County Hall,Supplies and Services,324117,Provisions E324,05-Oct-2021,000007739244768,BATLEYS PERTH,5300,Catering costs - provisions,18.72,3.12,15.60
"Regeneration, Economy and Growth",Corporate Property and Land,021242,Catering - County Hall,Supplies and Services,324117,Provisions E324,05-Oct-2021,000007739244768 - 1,BATLEYS PERTH,5300,Catering costs - provisions,139.35,,139.35
Neighbourhoods and Climate Change,Environmental Services,011060,C&G - Hardwick Park Catering,Supplies and Services,324117,Provisions E324,05-Oct-2021,000007739245124,BATLEYS PERTH,5300,Catering costs - provisions,203.28,33.88,169.40
Neighbourhoods and Climate Change,Environmental Services,011060,C&G - Hardwick Park Catering,Supplies and Services,324117,Provisions E324,05-Oct-2021,000007739245124 - 1,BATLEYS PERTH,5300,Catering costs - provisions,111.37,,111.37
"Regeneration, Economy and Growth",Corporate Property and Land,021234,Catering - Locomotion,Supplies and Services,324117,Provisions E324,05-Oct-2021,000007739245272,BATLEYS PERTH,5300,Catering costs - provisions,202.32,33.72,168.60
"Regeneration, Economy and Growth",Corporate Property and Land,021234,Catering - Locomotion,Supplies and Services,324117,Provisions E324,05-Oct-2021,000007739245272 - 1,BATLEYS PERTH,5300,Catering costs - provisions,63.15,,63.15
"Regeneration, Economy and Growth",Corporate Property and Land,021234,Catering - Locomotion,Supplies and Services,324117,Provisions E324,05-Oct-2021,000007739245288,BATLEYS PERTH,5300,Catering costs - provisions,6.18,0.00,6.18
"Regeneration, Economy and Growth",Corporate Property and Land,021324,Catering - Meadowfield,Supplies and Services,324117,Provisions E324,05-Oct-2021,000007739245866,BATLEYS PERTH,5300,Catering costs - provisions,19.68,3.28,16.40
"Regeneration, Economy and Growth",Corporate Property and Land,021324,Catering - Meadowfield,Supplies and Services,324117,Provisions E324,05-Oct-2021,000007739245866 - 1,BATLEYS PERTH,5300,Catering costs - provisions,70.51,,70.51
Children and Young Peoples Services,Head of Early Help Inclusion & Vulnerable Children.,071440,Barnard Castle One Point Hub,Supplies and Services,384999,Miscellaneous Expenses,06-Oct-2021,000007730990738,Amazon.co.uk DH5YK0SU5,5969,Other expenses,10.00,1.67,8.33
Children and Young Peoples Services,Head of Education and Skills,071732,Dean Bank Childcare,Supplies and Services,304403,Equipment and Materials,06-Oct-2021,000007730990988,AMZNMktplace,5999,Other consumables,76.94,0.00,76.94
"Regeneration, Economy and Growth",Communications Management,060270,Communications and Marketing,Supplies and Services,336005,Advertising E336,06-Oct-2021,000007730991734,LINKEDIN IRELAND,7311,Advertising other than for staff,40.82,0.00,40.82
"Regeneration, Economy and Growth",Business Durham CL0850,030689,Inward Investment and Aftercare,Supplies and Services,342033,Computers and Communications,06-Oct-2021,000007734963096,STK Shutterstock,7333,Computer hardware,19.00,0.00,19.00
Children and Young Peoples Services,Head of Education and Skills,071801,Selby Cottage Childcare Centre,Supplies and Services,324117,Provisions E324,06-Oct-2021,000007734963110,TESCO STORES 2278,5411,Catering costs - provisions,57.64,0.00,57.64
Children and Young Peoples Services,Head of Education and Skills,071801,Selby Cottage Childcare Centre,Supplies and Services,304403,Equipment and Materials,06-Oct-2021,000007734963112,AMZNMktplace,5999,Other consumables,19.99,3.33,16.66
Neighbourhoods and Climate Change,Technical Services CM0300,018795,Highways Services - Stores,Supplies and Services,304403,Equipment and Materials,06-Oct-2021,000007734963118,AMZNMktplace,5999,Other consumables,177.12,29.52,147.60
Resources BK0010,Digital and Customer Services,065256,Nodes/Circuits,Supplies and Services,304403,Equipment and Materials,06-Oct-2021,000007734963124,AMZNMktplace,5999,Other consumables,17.98,3.00,14.98
Resources BK0010,Digital and Customer Services,065256,Nodes/Circuits,Supplies and Services,304403,Equipment and Materials,06-Oct-2021,000007734963126,AMZNMktplace,5999,Other consumables,33.98,5.66,28.32
Children and Young Peoples Services,Head of Childrens Social Care,085561,Social Work Academy,Supplies and Services,312009,Newspapers books and periodicals E312,06-Oct-2021,000007734963130,BLACKWELL`S,5942,Newspapers books and periodicals,67.96,0.00,67.96
Children and Young Peoples Services,Head of Childrens Social Care,085561,Social Work Academy,Supplies and Services,312009,Newspapers books and periodicals E312,06-Oct-2021,000007734963132,WATERSTONES.COM,5942,Newspapers books and periodicals,132.93,0.00,132.93
Resources BK0010,Digital and Customer Services,065256,Nodes/Circuits,Supplies and Services,304403,Equipment and Materials,06-Oct-2021,000007734963134,AMZNMktplace,5999,Other consumables,73.44,12.24,61.20
Children and Young Peoples Services,Head of Education and Skills,075021,DurhamWorks Progression and Learning,Supplies and Services,364301,Grants to Voluntary Organisations,06-Oct-2021,000007734963170,WWW.GONORTHEAST.CO.UK,4111,Hardship,5.30,0.00,5.30
Children and Young Peoples Services,Head of Education and Skills,075021,DurhamWorks Progression and Learning,Supplies and Services,364301,Grants to Voluntary Organisations,06-Oct-2021,000007734963176,WWW.GONORTHEAST.CO.UK,4111,Hardship,5.30,0.00,5.30
Children and Young Peoples Services,Head of Education and Skills,075021,DurhamWorks Progression and Learning,Supplies and Services,364301,Grants to Voluntary Organisations,06-Oct-2021,000007734963182,WWW.GONORTHEAST.CO.UK,4111,Hardship,5.30,0.00,5.30
Children and Young Peoples Services,Head of Education and Skills,075026,Kickstart Scheme,Supplies and Services,332048,Printing Stationery and Gen Off Exps,06-Oct-2021,000007734963186,Amazon.co.uk BN5GF9CN5,5969,Administrative stationery etc,12.62,2.10,10.52
"Regeneration, Economy and Growth",Culture Sport and Tourism,054798,dli Museum - WW1 Education Programme,Supplies and Services,304259,Equipment and Materials,06-Oct-2021,000007734963192,eBay O 19-07694-64073,5311,Equipment-purchase and rental,6.99,0.00,6.99
Children and Young Peoples Services,Head of Childrens Social Care,085332,Middlestone Moor CU,Supplies and Services,324117,Provisions E324,06-Oct-2021,000007734963204,HOME BARGAINS,5251,Catering costs - provisions,59.85,0.00,59.85
Children and Young Peoples Services,Head of Childrens Social Care,085332,Middlestone Moor CU,Supplies and Services,324117,Provisions E324,06-Oct-2021,000007734963208,TESCO STORES 2916,5411,Catering costs - provisions,10.35,0.00,10.35
Children and Young Peoples Services,Head of Childrens Social Care,085332,Middlestone Moor CU,Supplies and Services,304999,Equipment and Materials,06-Oct-2021,000007734963210,TESCO STORES 6329,5411,Misc equipment tools and materials,49.25,0.00,49.25
Children and Young Peoples Services,Head of Childrens Social Care,085332,Middlestone Moor CU,Supplies and Services,324117,Provisions E324,06-Oct-2021,000007734963214,ICELAND FOODS,5411,Catering costs - provisions,-2.40,0.00,-2.40
"Regeneration, Economy and Growth",Culture Sport and Tourism,011265,Empire Theatre (Operations),Supplies and Services,324117,Provisions E324,06-Oct-2021,000007734963314,JR HOLLAND FOODSERVICE,5499,Catering costs - provisions,7.50,0.00,7.50
Children and Young Peoples Services,Head of Early Help Inclusion & Vulnerable Children.,071440,Barnard Castle One Point Hub,Supplies and Services,304403,Equipment and Materials,06-Oct-2021,000007734963374,AMZNMKTPLACE AMAZON.CO,5999,Other consumables,28.04,4.67,23.37
Children and Young Peoples Services,Head of Early Help Inclusion & Vulnerable Children.,071440,Barnard Castle One Point Hub,Supplies and Services,304403,Equipment and Materials,06-Oct-2021,000007734963376,AMZNMktplace,5999,Other consumables,28.04,4.67,23.37
Children and Young Peoples Services,Head of Early Help Inclusion & Vulnerable Children.,071440,Barnard Castle One Point Hub,Supplies and Services,332047,Printing Stationery and Gen Off Exps,06-Oct-2021,000007734963382,VUE BSL LTD,7832,Stationery,251.50,0.00,251.50
Children and Young Peoples Services,Head of Early Help Inclusion & Vulnerable Children.,071440,Barnard Castle One Point Hub,Supplies and Services,384999,Miscellaneous Expenses,06-Oct-2021,000007734963384,Amazon.co.uk 9Z6945405,5969,Other expenses,10.00,1.67,8.33
Children and Young Peoples Services,Head of Early Help Inclusion & Vulnerable Children.,071440,Barnard Castle One Point Hub,Supplies and Services,304403,Equipment and Materials,06-Oct-2021,000007734963388,AMZNMktplace,5999,Other consumables,5.99,1.00,4.99
"Regeneration, Economy and Growth",Corporate Property and Land,021242,Catering - County Hall,Supplies and Services,324117,Provisions E324,06-Oct-2021,000007734963414,JR HOLLAND FOODSERVICE,5499,Catering costs - provisions,29.00,0.00,29.00
Children and Young Peoples Services,Head of Childrens Social Care,085380,Operations Manager LAC Resources,Supplies and Services,304999,Equipment and Materials,06-Oct-2021,000007734963422,WWW.PRESTIGEFLOWERS.CO,5193,Misc equipment tools and materials,35.98,0.00,35.98
"Regeneration, Economy and Growth",Development and Housing,030777,FLEX,Supplies and Services,324117,Provisions E324,06-Oct-2021,000007734963430,ASDA GROCERIES ONLINE,5411,Catering costs - provisions,32.08,0.00,32.08
"Regeneration, Economy and Growth",Development and Housing,030777,FLEX,Supplies and Services,324117,Provisions E324,06-Oct-2021,000007734963434,ASDA GROCERIES ONLINE,5411,Catering costs - provisions,-1.00,0.00,-1.00
"Regeneration, Economy and Growth",Development and Housing,030544,Rural Employability - Client Engagement,Supplies and Services,324117,Provisions E324,06-Oct-2021,000007734963488,TESCO STORES 2916,5411,Catering costs - provisions,5.05,0.00,5.05
Children and Young Peoples Services,Head of Early Help Inclusion & Vulnerable Children.,085955,Auckland,Supplies and Services,304403,Equipment and Materials,06-Oct-2021,000007734963496,AMZNMKTPLACE AMAZON.CO,5999,Other consumables,44.99,0.00,44.99
Children and Young Peoples Services,Head of Early Help Inclusion & Vulnerable Children.,085954,Walworth,Supplies and Services,304403,Equipment and Materials,06-Oct-2021,000007734963504,AMZNMKTPLACE AMAZON.CO,5999,Other consumables,9.48,0.00,9.48
Children and Young Peoples Services,Head of Early Help Inclusion & Vulnerable Children.,085955,Auckland,Supplies and Services,304403,Equipment and Materials,06-Oct-2021,000007734963510,AMZNMktplace,5999,Other consumables,75.25,12.55,62.70
Children and Young Peoples Services,Head of Early Help Inclusion & Vulnerable Children.,085954,Walworth,Supplies and Services,304403,Equipment and Materials,06-Oct-2021,000007734963514,AMZNMktplace,5999,Other consumables,13.02,2.17,10.85
Children and Young Peoples Services,Head of Early Help Inclusion & Vulnerable Children.,085954,Walworth,Supplies and Services,304403,Equipment and Materials,06-Oct-2021,000007734963514 - 1,AMZNMktplace,5999,Other consumables,87.93,,87.93
Children and Young Peoples Services,Head of Early Help Inclusion & Vulnerable Children.,085955,Auckland,Supplies and Services,304403,Equipment and Materials,06-Oct-2021,000007734963518,AMZNMktplace,5999,Other consumables,89.97,15.00,74.97
Children and Young Peoples Services,Head of Early Help Inclusion & Vulnerable Children.,085954,Walworth,Supplies and Services,304403,Equipment and Materials,06-Oct-2021,000007734963520,AMZNMktplace,5999,Other consumables,88.97,14.84,74.13
"Regeneration, Economy and Growth",Development and Housing,030772,CLLD South,Supplies and Services,324117,Provisions E324,06-Oct-2021,000007734963570,ONE STOP CORNER SHOP,5411,Catering costs - provisions,30.00,0.00,30.00
Children and Young Peoples Services,Head of Early Help Inclusion & Vulnerable Children.,074000,National Supporting Families Programme,Transfer Payments,525033,Other,06-Oct-2021,000007734963588,FRANKS FACTORY FLOORIN,5713,Grants to individuals,96.00,0.00,96.00
Children and Young Peoples Services,Head of Childrens Social Care,085358,Orchard House Sacriston Solo Home,Supplies and Services,304403,Equipment and Materials,06-Oct-2021,000007734963596,AMZNMktplace,5999,Other consumables,48.64,8.15,40.49
Resources BK0010,Digital and Customer Services,065481,Technical Services 065481,Supplies and Services,372009,Subscriptions E372,06-Oct-2021,000007734963606,WEB NETWORKSOLUTIONS,5968,Subscriptions 372009,108.63,0.00,108.63
Neighbourhoods and Climate Change,Environmental Services,026591,C&G - Hardwick Park,Supplies and Services,324117,Provisions E324,06-Oct-2021,000007734963662,THOMAS RIDLEY FOODSERV,5499,Catering costs - provisions,38.29,0.00,38.29
Adult and Health Services,Head of Adults,055202,Support and Recovery,Supplies and Services,304403,Equipment and Materials,06-Oct-2021,000007734963682,AMZNMKTPLACE AMAZON.CO,5999,Other consumables,21.99,3.67,18.32
Children and Young Peoples Services,Head of Early Help Inclusion & Vulnerable Children.,085810,CDYJS - Interventions Team,Supplies and Services,324117,Provisions E324,06-Oct-2021,000007734963708,TESCO STORES 6329,5411,Catering costs - provisions,19.99,0.00,19.99
Adult and Health Services,Head of Adults,055302,Durham Pathways,Supplies and Services,324117,Provisions E324,06-Oct-2021,000007734963714,ASDA SUPERSTORE 4987,5411,Catering costs - provisions,28.09,0.00,28.09
Children and Young Peoples Services,Head of Early Help Inclusion & Vulnerable Children.,085965,Barnard,Supplies and Services,384302,Miscellaneous Expenses,06-Oct-2021,000007734963736,AMZNMktplace,5999,Activity expenses,8.59,1.43,7.16
Children and Young Peoples Services,Head of Early Help Inclusion & Vulnerable Children.,085957,Secure Management,Supplies and Services,338057,Services,06-Oct-2021,000007734963740,WWW.JORDANWODROWS.CO.U,5111,Medical fees 338057,58.80,9.80,49.00
Children and Young Peoples Services,Head of Early Help Inclusion & Vulnerable Children.,085965,Barnard,Supplies and Services,332047,Printing Stationery and Gen Off Exps,06-Oct-2021,000007734963742,PAPERSTONE,5111,Stationery,22.00,3.67,18.33
Children and Young Peoples Services,Head of Early Help Inclusion & Vulnerable Children.,085962,Aycliffe Secure - Durham,Supplies and Services,324117,Provisions E324,06-Oct-2021,000007734963744,TESCO STORES 6329,5411,Catering costs - provisions,66.60,0.00,66.60
Children and Young Peoples Services,Head of Early Help Inclusion & Vulnerable Children.,085956,Lumley,Transfer Payments,515002,Social Services Clients,06-Oct-2021,000007734963748,Amazon.co.uk MF40769F5,5969,Pocket money,40.61,6.77,33.84
Children and Young Peoples Services,Head of Education and Skills,075021,DurhamWorks Progression and Learning,Supplies and Services,364301,Grants to Voluntary Organisations,06-Oct-2021,000007734963762,Blacks Outdoor Retail,5655,Hardship,61.45,0.00,61.45
Children and Young Peoples Services,Head of Education and Skills,075021,DurhamWorks Progression and Learning,Supplies and Services,364301,Grants to Voluntary Organisations,06-Oct-2021,000007734963766,WWW.GONORTHEAST.CO.UK,4111,Hardship,5.30,0.00,5.30
Children and Young Peoples Services,Head of Education and Skills,075021,DurhamWorks Progression and Learning,Supplies and Services,364301,Grants to Voluntary Organisations,06-Oct-2021,000007734963768,WWW.GONORTHEAST.CO.UK,4111,Hardship,5.30,0.00,5.30
Children and Young Peoples Services,Head of Education and Skills,075021,DurhamWorks Progression and Learning,Supplies and Services,364301,Grants to Voluntary Organisations,06-Oct-2021,000007734963772,WWW.GONORTHEAST.CO.UK,4111,Hardship,5.30,0.00,5.30
Children and Young Peoples Services,Head of Education and Skills,075021,DurhamWorks Progression and Learning,Supplies and Services,364301,Grants to Voluntary Organisations,06-Oct-2021,000007734963774,WWW.GONORTHEAST.CO.UK,4111,Hardship,20.00,0.00,20.00
Children and Young Peoples Services,Head of Education and Skills,075021,DurhamWorks Progression and Learning,Supplies and Services,364301,Grants to Voluntary Organisations,06-Oct-2021,000007734963776,WWW.GONORTHEAST.CO.UK,4111,Hardship,20.00,0.00,20.00
Children and Young Peoples Services,Head of Education and Skills,075021,DurhamWorks Progression and Learning,Supplies and Services,364301,Grants to Voluntary Organisations,06-Oct-2021,000007734963780,WWW.GONORTHEAST.CO.UK,4111,Hardship,20.00,0.00,20.00
Children and Young Peoples Services,Head of Education and Skills,075021,DurhamWorks Progression and Learning,Supplies and Services,364301,Grants to Voluntary Organisations,06-Oct-2021,000007734963784,WWW.GONORTHEAST.CO.UK,4111,Hardship,20.00,0.00,20.00
Children and Young Peoples Services,Head of Education and Skills,075021,DurhamWorks Progression and Learning,Supplies and Services,364301,Grants to Voluntary Organisations,06-Oct-2021,000007734963786,WWW.GONORTHEAST.CO.UK,4111,Hardship,20.00,0.00,20.00
Resources BK0010,People & Talent Management,010984,Training and Development,Supplies and Services,304999,Equipment and Materials,06-Oct-2021,000007734963790,WESTMINSTER INSIGHT,5815,Misc equipment tools and materials,486.00,0.00,486.00
Resources BK0010,People & Talent Management,010984,Training and Development,Employees,040149,Recruitment Instruction and Training,06-Oct-2021,000007734963796,WWW.CSCS.UK.COM,8699,Training-all costs,72.00,0.00,72.00
Children and Young Peoples Services,Head of Childrens Social Care,085334,West Rainton Satelite Home,Supplies and Services,324117,Provisions E324,06-Oct-2021,000007734963832,TESCO STORES 2371,5411,Catering costs - provisions,83.91,0.00,83.91
Children and Young Peoples Services,Head of Childrens Social Care,085331,New Lea Childrens Home,Supplies and Services,304259,Equipment and Materials,06-Oct-2021,000007734963838,PRICE BUSTERS,5722,Equipment-purchase and rental,3.99,0.00,3.99
Children and Young Peoples Services,Head of Childrens Social Care,085331,New Lea Childrens Home,Supplies and Services,304999,Equipment and Materials,06-Oct-2021,000007734963842,HOME BARGAINS,5251,Misc equipment tools and materials,21.82,0.00,21.82
Children and Young Peoples Services,Head of Childrens Social Care,085331,New Lea Childrens Home,Supplies and Services,304999,Equipment and Materials,06-Oct-2021,000007734963846,HOME BARGAINS,5251,Misc equipment tools and materials,3.97,0.00,3.97
Children and Young Peoples Services,Head of Childrens Social Care,085341,High Etherley Satelite Home,Supplies and Services,304403,Equipment and Materials,06-Oct-2021,000007734963894,AMZNMktplace,5999,Other consumables,15.98,2.66,13.32
Children and Young Peoples Services,Head of Childrens Social Care,085341,High Etherley Satelite Home,Supplies and Services,304403,Equipment and Materials,06-Oct-2021,000007734963898,FRUUGO,5999,Other consumables,28.55,0.00,28.55
Children and Young Peoples Services,Head of Childrens Social Care,085341,High Etherley Satelite Home,Supplies and Services,324117,Provisions E324,06-Oct-2021,000007734963902,ASDA GEORGE COM LEEDS,5411,Catering costs - provisions,141.00,0.00,141.00
Children and Young Peoples Services,Head of Childrens Social Care,085341,High Etherley Satelite Home,Supplies and Services,308011,Furniture,06-Oct-2021,000007734963908,Frank`s Flooring Spenn,5713,Furniture repair and replacement,390.00,0.00,390.00
"Regeneration, Economy and Growth",Corporate Property and Land,020061,Bldg Serv - R&M Div 61 - Building,Supplies and Services,304221,Equipment and Materials,06-Oct-2021,000007734963936,AMZNMKTPLACE AMAZON.CO,5999,Direct materials,212.94,35.52,177.42
Adult and Health Services,Head of Adults,055643,Hawthorn House LD Respite Unit,Supplies and Services,324117,Provisions E324,06-Oct-2021,000007734963976,JR HOLLAND FOODSERVICE,5499,Catering costs - provisions,9.64,0.00,9.64
Adult and Health Services,Head of Adults,055643,Hawthorn House LD Respite Unit,Supplies and Services,324117,Provisions E324,06-Oct-2021,000007734963980,JR HOLLAND FOODSERVICE,5499,Catering costs - provisions,8.59,0.00,8.59
Children and Young Peoples Services,Head of Childrens Social Care,085363,LAC & Permanence Team 3,Supplies and Services,338045,Services,06-Oct-2021,000007734964020,SUNDERLAND CC,9399,Legal expenses 338045,22.00,0.00,22.00
Resources BK0010,Digital and Customer Services,065335,School Services - Implementations,Supplies and Services,304639,Equipment and Materials,06-Oct-2021,000007734964046,Amazon.co.uk 4656S01I5,5969,Technicians-supplies,420.00,70.00,350.00
Resources BK0010,Digital and Customer Services,065335,School Services - Implementations,Supplies and Services,304639,Equipment and Materials,06-Oct-2021,000007734964046 - 1,Amazon.co.uk 4656S01I5,5969,Technicians-supplies,0.20,,0.20
Children and Young Peoples Services,Head of Early Help Inclusion & Vulnerable Children.,085957,Secure Management,Supplies and Services,304259,Equipment and Materials,06-Oct-2021,000007734964088,Amazon.co.uk CP02L8K65,5969,Equipment-purchase and rental,170.34,28.40,141.94
Children and Young Peoples Services,Head of Early Help Inclusion & Vulnerable Children.,085956,Lumley,Transfer Payments,515002,Social Services Clients,06-Oct-2021,000007734964092,PRETTYLITTLETHING.COM,5691,Pocket money,12.00,0.00,12.00
Resources BK0010,Legal & Democratic Services,067801,Registrars,Supplies and Services,304259,Equipment and Materials,06-Oct-2021,000007734964104,WWW.ICO.ORG.UK,9399,Equipment-purchase and rental,40.00,0.00,40.00
Resources BK0010,Procurement Sales & Business Services,065503,Business Support - Spectrum,Supplies and Services,304259,Equipment and Materials,06-Oct-2021,000007734964116,HM PASSPORT OFFICE,9399,Equipment-purchase and rental,75.50,0.00,75.50
"Regeneration, Economy and Growth",Business Durham CL0850,030690,Durham Dales Centre - Tourist Information Centre,Supplies and Services,304403,Equipment and Materials,06-Oct-2021,000007734964124,WWW.PUCKATOR.CO.UK,5947,Other consumables,471.25,0.00,471.25
"Regeneration, Economy and Growth",Business Durham CL0850,030690,Durham Dales Centre - Tourist Information Centre,Supplies and Services,304403,Equipment and Materials,06-Oct-2021,000007734964128,WWW.GAINSBOROUGHGIFTWA,5947,Other consumables,811.58,0.00,811.58
"Regeneration, Economy and Growth",Corporate Property and Land,021324,Catering - Meadowfield,Supplies and Services,324117,Provisions E324,06-Oct-2021,000007734964142,JR HOLLAND FOODSERVICE,5499,Catering costs - provisions,51.69,0.00,51.69
Children and Young Peoples Services,Head of Childrens Social Care,085351,Framwellgate Moor CU,Supplies and Services,328041,Clothing uniforms and laundry E328,06-Oct-2021,000007734964172,RIVER ISLAND 820,5691,Clothing uniforms and laundry,63.85,0.00,63.85
Children and Young Peoples Services,Head of Childrens Social Care,085332,Middlestone Moor CU,Supplies and Services,304403,Equipment and Materials,06-Oct-2021,000007734964248,AMZNMKTPLACE AMAZON.CO,5999,Other consumables,77.48,0.00,77.48
Children and Young Peoples Services,Head of Childrens Social Care,085332,Middlestone Moor CU,Transport,235057,Public Transport,06-Oct-2021,000007734964252,ARRIVA UK BUS,4131,Staff travelling,14.80,0.00,14.80
"Regeneration, Economy and Growth",Culture Sport and Tourism,054820,Gala Theatre - Overheads,Supplies and Services,324117,Provisions E324,06-Oct-2021,000007734964276,TESCO STORES 6029,5411,Catering costs - provisions,1.35,0.00,1.35
Resources BK0010,Procurement Sales & Business Services,065500,Business Support - Management,Supplies and Services,352001,Conference Expenses,06-Oct-2021,000007734964320,RADISSON BLU,3583,Conferencesseminars fees etc,648.00,0.00,648.00
Adult and Health Services,Head of Adults,055310,Positive Journeys (Tudhoe),Supplies and Services,384999,Miscellaneous Expenses,06-Oct-2021,000007734964358,Amazon.co.uk Z12FP5V95,5969,Other expenses,9.20,1.53,7.67
Adult and Health Services,Head of Adults,055310,Positive Journeys (Tudhoe),Supplies and Services,324117,Provisions E324,06-Oct-2021,000007734964360,ASDA SUPERSTORE 4987,5411,Catering costs - provisions,1.98,0.00,1.98
Children and Young Peoples Services,Head of Education and Skills,076001,Music Service,Third Party Payments,430100,Rendered by Private Contractors,06-Oct-2021,000007734964408,EB NORTH EAST MUSIC E,7399,Payments to sub-contractors,10.00,0.00,10.00
Children and Young Peoples Services,Head of Childrens Social Care,085333,Coxhoe Satelite Home,Supplies and Services,324117,Provisions E324,06-Oct-2021,000007734964440,ASDA SUPERSTORE 4987,5411,Catering costs - provisions,238.52,0.00,238.52
"Regeneration, Economy and Growth",Corporate Property and Land,030691,Catering - Durham Dales Centre,Supplies and Services,324117,Provisions E324,06-Oct-2021,000007734964472,TESCO STORES 6329,5411,Catering costs - provisions,37.60,0.00,37.60
Resources BK0010,Finance & Transactional Services,065180,Collections,Supplies and Services,338045,Services,06-Oct-2021,000007739244380,HMCOURTS-SERVICE.G,9222,Legal expenses 338045,998.50,0.00,998.50
Children and Young Peoples Services,Head of Childrens Social Care,085332,Middlestone Moor CU,Supplies and Services,324117,Provisions E324,06-Oct-2021,000007739244522,ALDI 74 774,5411,Catering costs - provisions,52.94,0.00,52.94
Children and Young Peoples Services,Head of Childrens Social Care,085341,High Etherley Satelite Home,Supplies and Services,324117,Provisions E324,06-Oct-2021,000007739244608,SAINSBURYS S/MKTS,5411,Catering costs - provisions,8.70,0.00,8.70
Neighbourhoods and Climate Change,Environmental Services,010367,C&G - South Grounds Maintenance,Supplies and Services,304221,Equipment and Materials,06-Oct-2021,000007739244660,SCREWFIX DIRECT,5211,Direct materials,44.88,0.00,44.88
Children and Young Peoples Services,Head of Early Help Inclusion & Vulnerable Children.,071440,Barnard Castle One Point Hub,Supplies and Services,304403,Equipment and Materials,06-Oct-2021,000007739244698,AMZNMKTPLACE AMAZON.CO,5999,Other consumables,5.99,1.00,4.99
Children and Young Peoples Services,Head of Early Help Inclusion & Vulnerable Children.,071440,Barnard Castle One Point Hub,Supplies and Services,304403,Equipment and Materials,06-Oct-2021,000007739244704,AMZNMKTPLACE AMAZON.CO,5999,Other consumables,13.90,2.32,11.58
Children and Young Peoples Services,Head of Early Help Inclusion & Vulnerable Children.,071440,Barnard Castle One Point Hub,Supplies and Services,304403,Equipment and Materials,06-Oct-2021,000007739244716,AMZNMKTPLACE AMAZON.CO,5999,Other consumables,6.99,0.00,6.99
Children and Young Peoples Services,Head of Early Help Inclusion & Vulnerable Children.,071440,Barnard Castle One Point Hub,Supplies and Services,304403,Equipment and Materials,06-Oct-2021,000007739244720,AMZNMKTPLACE AMAZON.CO,5999,Other consumables,10.99,1.83,9.16
Children and Young Peoples Services,Head of Early Help Inclusion & Vulnerable Children.,071440,Barnard Castle One Point Hub,Supplies and Services,304403,Equipment and Materials,06-Oct-2021,000007739244724,AMZNMKTPLACE AMAZON.CO,5999,Other consumables,23.99,4.00,19.99
Children and Young Peoples Services,Head of Early Help Inclusion & Vulnerable Children.,071440,Barnard Castle One Point Hub,Supplies and Services,304403,Equipment and Materials,06-Oct-2021,000007739244730,AMZNMKTPLACE AMAZON.CO,5999,Other consumables,23.99,4.00,19.99
Children and Young Peoples Services,Head of Early Help Inclusion & Vulnerable Children.,085954,Walworth,Supplies and Services,304403,Equipment and Materials,06-Oct-2021,000007739244832,AMZNMKTPLACE AMAZON.CO,5999,Other consumables,22.78,3.82,18.96
Children and Young Peoples Services,Head of Early Help Inclusion & Vulnerable Children.,085954,Walworth,Supplies and Services,304403,Equipment and Materials,06-Oct-2021,000007739244836,AMZNMKTPLACE AMAZON.CO,5999,Other consumables,7.99,0.00,7.99
Children and Young Peoples Services,Head of Education and Skills,071732,Dean Bank Childcare,Supplies and Services,324117,Provisions E324,06-Oct-2021,000007739244960,SAINSBURYS S/MKTS,5411,Catering costs - provisions,18.75,0.00,18.75
"Regeneration, Economy and Growth",Development and Housing,031623,Rough Sleeping,Supplies and Services,328041,Clothing uniforms and laundry E328,06-Oct-2021,000007739245040,ARGOS LTD,5310,Clothing uniforms and laundry,40.00,0.00,40.00
Children and Young Peoples Services,Head of Early Help Inclusion & Vulnerable Children.,085954,Walworth,Transfer Payments,515002,Social Services Clients,06-Oct-2021,000007739245084,JD SPORTS INTERNET,5941,Pocket money,75.00,0.00,75.00
Children and Young Peoples Services,Head of Early Help Inclusion & Vulnerable Children.,085965,Barnard,Supplies and Services,332047,Printing Stationery and Gen Off Exps,06-Oct-2021,000007739245094,AMZNMKTPLACE AMAZON.CO,5999,Stationery,25.80,4.30,21.50
Children and Young Peoples Services,Head of Education and Skills,075021,DurhamWorks Progression and Learning,Supplies and Services,364301,Grants to Voluntary Organisations,06-Oct-2021,000007739245204,HARTLEPOOL BC,9399,Hardship,11.00,0.00,11.00
Children and Young Peoples Services,Head of Childrens Social Care,085621,Families First Aycliffe,Supplies and Services,328041,Clothing uniforms and laundry E328,06-Oct-2021,000007739245338,ARGOS LTD,5310,Clothing uniforms and laundry,37.98,0.00,37.98
Children and Young Peoples Services,Head of Childrens Social Care,085334,West Rainton Satelite Home,Supplies and Services,384999,Miscellaneous Expenses,06-Oct-2021,000007739245348,DEERNESS GYMN ACADEMY,7997,Other expenses,5.00,0.00,5.00
Children and Young Peoples Services,Head of Childrens Social Care,085551,Short Break Services-Park Hse Sher,Supplies and Services,324117,Provisions E324,06-Oct-2021,000007739245448,CO-OP GROUP 010486,5411,Catering costs - provisions,3.70,0.00,3.70
Dedicated Schools Grant BG0015,DSG Schools Block,418507,Belmont Community School 004185 - Performing Arts,Supplies and Services,304403,Equipment and Materials,06-Oct-2021,000007739245490,AMZNMKTPLACE AMAZON.CO,5999,Other consumables,6.48,1.09,5.39
Dedicated Schools Grant BG0015,DSG Schools Block,418507,Belmont Community School 004185 - Performing Arts,Supplies and Services,304403,Equipment and Materials,06-Oct-2021,000007739245496,AMZNMKTPLACE AMAZON.CO,5999,Other consumables,11.99,2.00,9.99
Children and Young Peoples Services,Head of Childrens Social Care,085363,LAC & Permanence Team 3,Supplies and Services,338045,Services,06-Oct-2021,000007739245784,Durham County CNCL,9399,Legal expenses 338045,44.00,0.00,44.00
Children and Young Peoples Services,Head of Early Help Inclusion & Vulnerable Children.,088110,Easington & Peterlee 0-19 Targeted Family Support,Supplies and Services,304259,Equipment and Materials,06-Oct-2021,000007739245846,AO RETAIL LIMITED,5722,Equipment-purchase and rental,315.00,0.00,315.00
"Regeneration, Economy and Growth",Transport and Contracted Services,031704,Care Connect - CCTV Countywide,Supplies and Services,384956,Miscellaneous Expenses,06-Oct-2021,000007739245854,SECURITY INDUSTRY,7393,Licences,190.00,0.00,190.00
Children and Young Peoples Services,Head of Childrens Social Care,085351,Framwellgate Moor CU,Supplies and Services,308011,Furniture,06-Oct-2021,000007739245892,THE RANGE,5719,Furniture repair and replacement,55.12,0.00,55.12
"Regeneration, Economy and Growth",Culture Sport and Tourism,054233,Bishop Auckland Town Hall Library,Supplies and Services,324117,Provisions E324,06-Oct-2021,000007739246022,WM MORRISONS STORE,5411,Catering costs - provisions,15.37,0.00,15.37
"Regeneration, Economy and Growth",Culture Sport and Tourism,054233,Bishop Auckland Town Hall Library,Supplies and Services,324117,Provisions E324,06-Oct-2021,000007739246026,WM MORRISONS STORE,5411,Catering costs - provisions,28.99,0.00,28.99
Adult and Health Services,Head of Adults,055310,Positive Journeys (Tudhoe),Supplies and Services,324117,Provisions E324,06-Oct-2021,000007739246218,ALDI 59 774,5411,Catering costs - provisions,5.90,0.00,5.90
Children and Young Peoples Services,Head of Childrens Social Care,085334,West Rainton Satelite Home,Transport,215995,Running Costs of Vehicles,06-Oct-2021,000007739246280,GULF WEST RAINTON,5541,Vehicle running expenses,10.53,0.00,10.53
"Regeneration, Economy and Growth",Business Durham CL0850,030690,Durham Dales Centre - Tourist Information Centre,Supplies and Services,304221,Equipment and Materials,06-Oct-2021,000007744389680,A AND K HOSIERY LTD,5099,Direct materials,738.69,0.00,738.69
Children and Young Peoples Services,Head of Early Help Inclusion & Vulnerable Children.,071440,Barnard Castle One Point Hub,Supplies and Services,304259,Equipment and Materials,06-Oct-2021,000007753275262,WWW.HMV.COM,5735,Equipment-purchase and rental,23.98,4.00,19.98
"Regeneration, Economy and Growth",Business Durham CL0850,030689,Inward Investment and Aftercare,Supplies and Services,342033,Computers and Communications,07-Oct-2021,000007734963098,AdRoll_EMEA,7372,Computer hardware,11.13,0.00,11.13
"Regeneration, Economy and Growth",Business Durham CL0850,030689,Inward Investment and Aftercare,Supplies and Services,342033,Computers and Communications,07-Oct-2021,000007734963102,AdRoll_EMEA,7372,Computer hardware,0.31,0.00,0.31
Children and Young Peoples Services,Head of Education and Skills,071801,Selby Cottage Childcare Centre,Supplies and Services,304403,Equipment and Materials,07-Oct-2021,000007734963114,AMZNMktplace,5999,Other consumables,135.53,22.60,112.93
Dedicated Schools Grant BG0015,DSG Schools Block,417631,Greenfield Community College 004176 - Time 4 Success,Supplies and Services,332047,Printing Stationery and Gen Off Exps,07-Oct-2021,000007734963148,AMZNMktplace,5999,Stationery,20.89,3.51,17.38
Dedicated Schools Grant BG0015,DSG Schools Block,417631,Greenfield Community College 004176 - Time 4 Success,Supplies and Services,332047,Printing Stationery and Gen Off Exps,07-Oct-2021,000007734963150,AMZNMktplace,5999,Stationery,83.55,14.04,69.51
Children and Young Peoples Services,Head of Early Help Inclusion & Vulnerable Children.,071440,Barnard Castle One Point Hub,Supplies and Services,304403,Equipment and Materials,07-Oct-2021,000007734963392,AMZNMktplace,5999,Other consumables,13.90,2.32,11.58
Children and Young Peoples Services,Head of Early Help Inclusion & Vulnerable Children.,071440,Barnard Castle One Point Hub,Supplies and Services,304403,Equipment and Materials,07-Oct-2021,000007734963396,AMZNMktplace,5999,Other consumables,4.99,0.83,4.16
Resources BK0010,Digital and Customer Services,065481,Technical Services 065481,Supplies and Services,372009,Subscriptions E372,07-Oct-2021,000007734963610,WEB NETWORKSOLUTIONS,5968,Subscriptions 372009,2.99,0.00,2.99
"Regeneration, Economy and Growth",Business Durham CL0850,030714,Salvus House,Supplies and Services,384999,Miscellaneous Expenses,07-Oct-2021,000007734963696,Amazon.co.uk O89UI7125,5969,Other expenses,29.98,5.00,24.98
"Regeneration, Economy and Growth",Business Durham CL0850,030714,Salvus House,Supplies and Services,304403,Equipment and Materials,07-Oct-2021,000007734963700,AMZNMktplace,5999,Other consumables,11.40,1.90,9.50
"Regeneration, Economy and Growth",Business Durham CL0850,030714,Salvus House,Supplies and Services,304403,Equipment and Materials,07-Oct-2021,000007734963700 - 1,AMZNMktplace,5999,Other consumables,0.05,,0.05
"Regeneration, Economy and Growth",Business Durham CL0850,030689,Inward Investment and Aftercare,Supplies and Services,336005,Advertising E336,07-Oct-2021,000007739244336,LINKEDIN-710 8641614,7311,Advertising other than for staff,44.00,0.00,44.00
Children and Young Peoples Services,Head of Childrens Social Care,085341,High Etherley Satelite Home,Supplies and Services,324117,Provisions E324,07-Oct-2021,000007739244352,TESCO STORES 6329,5411,Catering costs - provisions,14.71,0.00,14.71
Children and Young Peoples Services,Head of Childrens Social Care,085341,High Etherley Satelite Home,Supplies and Services,324117,Provisions E324,07-Oct-2021,000007739244354,TESCO STORES 6329,5411,Catering costs - provisions,9.69,0.00,9.69
Children and Young Peoples Services,Head of Childrens Social Care,085341,High Etherley Satelite Home,Supplies and Services,304259,Equipment and Materials,07-Oct-2021,000007739244360,HALFORDS 0526,5940,Equipment-purchase and rental,20.49,0.00,20.49
Children and Young Peoples Services,Head of Education and Skills,071801,Selby Cottage Childcare Centre,Supplies and Services,304403,Equipment and Materials,07-Oct-2021,000007739244370,AMZNMktplace,5999,Other consumables,149.00,0.00,149.00
Resources BK0010,Digital and Customer Services,065230,IT Renewals Fund,Vehicles Equipment Furniture and Fittings,912701,Computer equipment,07-Oct-2021,000007739244390,PAYPAL CHRISTOPHER,5045,Computer equipment,79.99,0.00,79.99
Children and Young Peoples Services,Head of Early Help Inclusion & Vulnerable Children.,079599,Psychological-HQ,Supplies and Services,304403,Equipment and Materials,07-Oct-2021,000007739244394,AMZNMktplace,5999,Other consumables,7.99,1.33,6.66
Resources BK0010,Digital and Customer Services,070110,School Services - Man Info System (MIS) Support Team,Supplies and Services,342033,Computers and Communications,07-Oct-2021,000007739244398,WPMU DEV INCSUBFEE.COM,7372,Computer hardware,14.03,0.00,14.03
Dedicated Schools Grant BG0015,DSG Schools Block,417611,Greenfield Community College 004176 - Technology,Supplies and Services,332047,Printing Stationery and Gen Off Exps,07-Oct-2021,000007739244406,AMZNMktplace,5999,Stationery,38.16,6.36,31.80
Dedicated Schools Grant BG0015,DSG Schools Block,417611,Greenfield Community College 004176 - Technology,Supplies and Services,332047,Printing Stationery and Gen Off Exps,07-Oct-2021,000007739244406 - 1,AMZNMktplace,5999,Stationery,0.24,,0.24
Dedicated Schools Grant BG0015,DSG Schools Block,417611,Greenfield Community College 004176 - Technology,Supplies and Services,332047,Printing Stationery and Gen Off Exps,07-Oct-2021,000007739244408,AMZNMktplace,5999,Stationery,53.40,8.90,44.50
Dedicated Schools Grant BG0015,DSG Schools Block,417611,Greenfield Community College 004176 - Technology,Supplies and Services,332047,Printing Stationery and Gen Off Exps,07-Oct-2021,000007739244408 - 1,AMZNMktplace,5999,Stationery,0.20,,0.20
Dedicated Schools Grant BG0015,DSG Schools Block,417627,Greenfield Community College 004176 - School Meals,Supplies and Services,324117,Provisions E324,07-Oct-2021,000007739244410,WWW.FLEXILABELS.CO.UK,5943,Catering costs - provisions,83.45,13.91,69.54
"Regeneration, Economy and Growth",Culture Sport and Tourism,054798,dli Museum - WW1 Education Programme,Supplies and Services,304259,Equipment and Materials,07-Oct-2021,000007739244446,eBay O 17-07700-61403,5311,Equipment-purchase and rental,29.16,0.00,29.16
"Regeneration, Economy and Growth",Culture Sport and Tourism,030712,VCD - Project Delivery,Supplies and Services,384199,Miscellaneous Expenses,07-Oct-2021,000007739244466,FACEBK T6AZT8PQH2,7311,Other hired and contracted services,17.00,0.00,17.00
"Regeneration, Economy and Growth",Culture Sport and Tourism,030712,VCD - Project Delivery,Supplies and Services,384199,Miscellaneous Expenses,07-Oct-2021,000007739244470,HEADLAM HALL HOTEL,7011,Other hired and contracted services,300.00,0.00,300.00
"Regeneration, Economy and Growth",Culture Sport and Tourism,011263,Louisa Centre 011263,Supplies and Services,324117,Provisions E324,07-Oct-2021,000007739244552,JR HOLLAND FOODSERVICE,5499,Catering costs - provisions,9.92,0.00,9.92
Children and Young Peoples Services,Head of Education and Skills,078100,Curric and Professional Development 078100,Supplies and Services,342033,Computers and Communications,07-Oct-2021,000007739244558,STK Shutterstock,7333,Computer hardware,22.80,0.00,22.80
Children and Young Peoples Services,Head of Childrens Social Care,085341,High Etherley Satelite Home,Supplies and Services,348037,Subsistence E348,07-Oct-2021,000007739244614,COSTA COFFEE 43039235,5814,Subsistence,9.05,0.00,9.05
Children and Young Peoples Services,Head of Childrens Social Care,085341,High Etherley Satelite Home,Supplies and Services,304259,Equipment and Materials,07-Oct-2021,000007739244618,CAR PARK,9399,Equipment-purchase and rental,6.00,0.00,6.00
Children and Young Peoples Services,Head of Childrens Social Care,085341,High Etherley Satelite Home,Supplies and Services,304999,Equipment and Materials,07-Oct-2021,000007739244624,PLANET LEISURE,7933,Misc equipment tools and materials,6.85,0.00,6.85
Children and Young Peoples Services,Head of Childrens Social Care,085341,High Etherley Satelite Home,Supplies and Services,324117,Provisions E324,07-Oct-2021,000007739244626,TESCO STORES 2916,5411,Catering costs - provisions,22.60,0.00,22.60
Resources BK0010,Procurement Sales & Business Services,065503,Business Support - Spectrum,Supplies and Services,384999,Miscellaneous Expenses,07-Oct-2021,000007739244678,Amazon.co.uk 2U8QU2UQ5,5969,Other expenses,59.92,0.00,59.92
Children and Young Peoples Services,Head of Early Help Inclusion & Vulnerable Children.,071440,Barnard Castle One Point Hub,Supplies and Services,304403,Equipment and Materials,07-Oct-2021,000007739244706,AMZNMKTPLACE AMAZON.CO,5999,Other consumables,12.99,2.17,10.82
Children and Young Peoples Services,Head of Early Help Inclusion & Vulnerable Children.,071440,Barnard Castle One Point Hub,Supplies and Services,304403,Equipment and Materials,07-Oct-2021,000007739244708,AMZNMKTPLACE AMAZON.CO,5999,Other consumables,16.99,2.83,14.16
Children and Young Peoples Services,Head of Early Help Inclusion & Vulnerable Children.,071440,Barnard Castle One Point Hub,Supplies and Services,304403,Equipment and Materials,07-Oct-2021,000007739244714,AMZNMKTPLACE AMAZON.CO,5999,Other consumables,12.24,2.05,10.19
Children and Young Peoples Services,Head of Early Help Inclusion & Vulnerable Children.,071440,Barnard Castle One Point Hub,Supplies and Services,304403,Equipment and Materials,07-Oct-2021,000007739244734,AMZNMktplace,5999,Other consumables,12.24,2.05,10.19
Children and Young Peoples Services,Head of Early Help Inclusion & Vulnerable Children.,071440,Barnard Castle One Point Hub,Supplies and Services,304403,Equipment and Materials,07-Oct-2021,000007739244740,AMZNMktplace,5999,Other consumables,12.99,2.17,10.82
Children and Young Peoples Services,Head of Early Help Inclusion & Vulnerable Children.,071440,Barnard Castle One Point Hub,Supplies and Services,304403,Equipment and Materials,07-Oct-2021,000007739244744,AMZNMKTPLACE AMAZON.CO,5999,Other consumables,4.99,0.83,4.16
Children and Young Peoples Services,Head of Early Help Inclusion & Vulnerable Children.,071440,Barnard Castle One Point Hub,Supplies and Services,332047,Printing Stationery and Gen Off Exps,07-Oct-2021,000007739244752,VUE BSL LTD,7832,Stationery,251.50,0.00,251.50
Children and Young Peoples Services,Head of Early Help Inclusion & Vulnerable Children.,071440,Barnard Castle One Point Hub,Supplies and Services,304403,Equipment and Materials,07-Oct-2021,000007739244760,AMZNMktplace,5999,Other consumables,16.99,2.83,14.16
Neighbourhoods and Climate Change,Environmental Services,010367,C&G - South Grounds Maintenance,Supplies and Services,304221,Equipment and Materials,07-Oct-2021,000007739244812,BTL TIMBER AND HARDWAR,5099,Direct materials,125.10,0.00,125.10
"Regeneration, Economy and Growth",Development and Housing,030544,Rural Employability - Client Engagement,Supplies and Services,348037,Subsistence E348,07-Oct-2021,000007739244818,COFFEE @ CHESNEYS,5812,Subsistence,5.00,0.00,5.00
Children and Young Peoples Services,Head of Early Help Inclusion & Vulnerable Children.,085954,Walworth,Supplies and Services,304403,Equipment and Materials,07-Oct-2021,000007739244828,AMZNMKTPLACE AMAZON.CO,5999,Other consumables,7.07,0.00,7.07
Children and Young Peoples Services,Head of Early Help Inclusion & Vulnerable Children.,085952,Secure Education,Supplies and Services,304403,Equipment and Materials,07-Oct-2021,000007739244838,AMZNMktplace,5999,Other consumables,8.70,0.00,8.70
"Regeneration, Economy and Growth",Development and Housing,030772,CLLD South,Supplies and Services,328041,Clothing uniforms and laundry E328,07-Oct-2021,000007739244864,SHOE ZONE,5661,Clothing uniforms and laundry,13.09,0.00,13.09
"Regeneration, Economy and Growth",Development and Housing,030772,CLLD South,Supplies and Services,328041,Clothing uniforms and laundry E328,07-Oct-2021,000007739244868,PEACOCK STORES LTD,5331,Clothing uniforms and laundry,19.00,0.00,19.00
Children and Young Peoples Services,Head of Childrens Social Care,085358,Orchard House Sacriston Solo Home,Supplies and Services,372009,Subscriptions E372,07-Oct-2021,000007739244912,NETFLIX.COM,4899,Subscriptions 372009,13.99,0.00,13.99
"Regeneration, Economy and Growth",Development and Housing,031623,Rough Sleeping,Transport,235057,Public Transport,07-Oct-2021,000007739245050,GO NORTH EAST LIMITED,4131,Staff travelling,30.00,0.00,30.00
"Regeneration, Economy and Growth",Development and Housing,030771,Durham Advance Flexible Fund,Transport,235057,Public Transport,07-Oct-2021,000007739245056,WWW.GONORTHEAST.CO.UK,4111,Staff travelling,25.00,0.00,25.00
"Regeneration, Economy and Growth",Development and Housing,030771,Durham Advance Flexible Fund,Transport,235057,Public Transport,07-Oct-2021,000007739245064,WWW.GONORTHEAST.CO.UK,4111,Staff travelling,25.00,0.00,25.00
"Regeneration, Economy and Growth",Development and Housing,030771,Durham Advance Flexible Fund,Supplies and Services,304259,Equipment and Materials,07-Oct-2021,000007739245070,M and M Direct Ltd,5941,Equipment-purchase and rental,51.98,0.00,51.98
Children and Young Peoples Services,Head of Early Help Inclusion & Vulnerable Children.,085956,Lumley,Supplies and Services,312009,Newspapers books and periodicals E312,07-Oct-2021,000007739245090,SP SPIFFY,5399,Newspapers books and periodicals,32.64,0.00,32.64
Children and Young Peoples Services,Head of Early Help Inclusion & Vulnerable Children.,085954,Walworth,Supplies and Services,384302,Miscellaneous Expenses,07-Oct-2021,000007739245100,Amazon.co.uk 8291Z65B5,5969,Activity expenses,49.99,8.33,41.66
Neighbourhoods and Climate Change,Environmental Services,011060,C&G - Hardwick Park Catering,Supplies and Services,324117,Provisions E324,07-Oct-2021,000007739245136,JR HOLLAND FOODSERVICE,5499,Catering costs - provisions,87.09,0.00,87.09
Neighbourhoods and Climate Change,Environmental Services,011060,C&G - Hardwick Park Catering,Supplies and Services,304221,Equipment and Materials,07-Oct-2021,000007739245142,GM PACKAGING UK LTD,5099,Direct materials,-167.69,0.00,-167.69
Children and Young Peoples Services,Head of Education and Skills,075021,DurhamWorks Progression and Learning,Supplies and Services,364301,Grants to Voluntary Organisations,07-Oct-2021,000007739245188,WWW.GONORTHEAST.CO.UK,4111,Hardship,20.00,0.00,20.00
Children and Young Peoples Services,Head of Education and Skills,075021,DurhamWorks Progression and Learning,Supplies and Services,364301,Grants to Voluntary Organisations,07-Oct-2021,000007739245194,WWW.GONORTHEAST.CO.UK,4111,Hardship,20.00,0.00,20.00
Children and Young Peoples Services,Head of Education and Skills,075021,DurhamWorks Progression and Learning,Supplies and Services,364301,Grants to Voluntary Organisations,07-Oct-2021,000007739245200,SPORTSDIRECT.COM,5691,Hardship,67.98,0.00,67.98
Resources BK0010,People & Talent Management,010984,Training and Development,Employees,040149,Recruitment Instruction and Training,07-Oct-2021,000007739245220,PAYPAL TRAVELLERMO,8999,Training-all costs,178.00,0.00,178.00
Neighbourhoods and Climate Change,Environmental Services,031238,North Pennines - Tees Swale,Supplies and Services,340001,Postages E340,07-Oct-2021,000007739245238,POST OFFICE COUNTER,9402,Postages,11.69,0.00,11.69
"Regeneration, Economy and Growth",Corporate Property and Land,021234,Catering - Locomotion,Supplies and Services,324117,Provisions E324,07-Oct-2021,000007739245298,JR HOLLAND FOODSERVICE,5499,Catering costs - provisions,30.14,0.00,30.14
"Regeneration, Economy and Growth",Development and Housing,030554,International Relations 030554,Transport,235057,Public Transport,07-Oct-2021,000007739245516,PRINCE BISHOP SHOPPING,7523,Staff travelling,3.30,0.00,3.30
Children and Young Peoples Services,Head of Childrens Social Care,085341,High Etherley Satelite Home,Supplies and Services,304403,Equipment and Materials,07-Oct-2021,000007739245574,AMZNMKTPLACE AMAZON.CO,5999,Other consumables,99.99,16.67,83.32
Children and Young Peoples Services,Head of Childrens Social Care,085341,High Etherley Satelite Home,Supplies and Services,304403,Equipment and Materials,07-Oct-2021,000007739245580,AMZNMKTPLACE AMAZON.CO,5999,Other consumables,33.61,5.60,28.01
Children and Young Peoples Services,Head of Childrens Social Care,085341,High Etherley Satelite Home,Supplies and Services,348037,Subsistence E348,07-Oct-2021,000007739245586,Pizza Hut,5812,Subsistence,14.28,0.00,14.28
"Regeneration, Economy and Growth",Corporate Property and Land,015015,FM-Civic Bldgs-Spectrum 8 Seaham,Premises,145015,Cleaning and Domestic Supplies,07-Oct-2021,000007739245654,CURRYS ONLINE,5732,Cleaning and domestic equipment,758.00,126.33,631.67
Adult and Health Services,Head of Adults,055301,Stanley Pathways,Supplies and Services,304403,Equipment and Materials,07-Oct-2021,000007739245680,AMZNMKTPLACE AMAZON.CO,5999,Other consumables,4.25,0.71,3.54
Children and Young Peoples Services,Head of Education and Skills,078554,Adult Skills-Main,Supplies and Services,384999,Miscellaneous Expenses,07-Oct-2021,000007739245690,Amazon.co.uk 330212RJ5,5969,Other expenses,30.48,5.08,25.40
"Regeneration, Economy and Growth",Culture Sport and Tourism,011291,Peterlee Leisure Centre,Supplies and Services,304259,Equipment and Materials,07-Oct-2021,000007739245710,AMZNMktplace,5999,Equipment-purchase and rental,169.99,28.33,141.66
"Regeneration, Economy and Growth",Culture Sport and Tourism,054399,Local Delivery-Libraries,Supplies and Services,312009,Newspapers books and periodicals E312,07-Oct-2021,000007739245734,Amazon.co.uk AQ7569C05,5969,Newspapers books and periodicals,10.99,0.00,10.99
"Regeneration, Economy and Growth",Culture Sport and Tourism,054399,Local Delivery-Libraries,Supplies and Services,312009,Newspapers books and periodicals E312,07-Oct-2021,000007739245738,Amazon.co.uk FG5A82IL5,5969,Newspapers books and periodicals,24.57,0.00,24.57
"Regeneration, Economy and Growth",Culture Sport and Tourism,054399,Local Delivery-Libraries,Supplies and Services,312009,Newspapers books and periodicals E312,07-Oct-2021,000007739245742,Amazon.co.uk F00U16P55,5969,Newspapers books and periodicals,8.99,0.00,8.99
"Regeneration, Economy and Growth",Culture Sport and Tourism,054399,Local Delivery-Libraries,Supplies and Services,312009,Newspapers books and periodicals E312,07-Oct-2021,000007739245746,Amazon.co.uk 2Q2VL9V05,5969,Newspapers books and periodicals,43.96,0.00,43.96
Children and Young Peoples Services,Head of Childrens Social Care,085363,LAC & Permanence Team 3,Supplies and Services,338045,Services,07-Oct-2021,000007739245786,GATESHEAD COUNCIL MOTO,9399,Legal expenses 338045,22.00,0.00,22.00
Resources BK0010,Legal & Democratic Services,069354,Legal Planning & Development,Supplies and Services,384999,Miscellaneous Expenses,07-Oct-2021,000007739245828,Amazon.co.uk Z30AI8YX5,5969,Other expenses,146.99,24.50,122.49
Children and Young Peoples Services,Head of Early Help Inclusion & Vulnerable Children.,085801,CDYJS - Support,Supplies and Services,332047,Printing Stationery and Gen Off Exps,07-Oct-2021,000007739245896,Vue Entertainment Ltd,7832,Stationery,9.98,0.00,9.98
Children and Young Peoples Services,Head of Childrens Social Care,085333,Coxhoe Satelite Home,Supplies and Services,324117,Provisions E324,07-Oct-2021,000007739245904,TESCO STORES 2916,5411,Catering costs - provisions,96.28,0.00,96.28
"Regeneration, Economy and Growth",Development and Housing,030554,International Relations 030554,Supplies and Services,352001,Conference Expenses,07-Oct-2021,000007739245936,MARRIOTT,3509,Conferencesseminars fees etc,5.40,0.00,5.40
Children and Young Peoples Services,Head of Childrens Social Care,085332,Middlestone Moor CU,Supplies and Services,304403,Equipment and Materials,07-Oct-2021,000007739245972,MAXWELLS D I Y,5231,Other consumables,18.60,0.00,18.60
Resources BK0010,Procurement Sales & Business Services,065501,Business Support - Executive Support,Supplies and Services,384999,Miscellaneous Expenses,07-Oct-2021,000007739246172,ALPHATEC BUSINESS,5946,Other expenses,315.00,0.00,315.00
Resources BK0010,Procurement Sales & Business Services,065501,Business Support - Executive Support,Supplies and Services,308011,Furniture,07-Oct-2021,000007739246180,Amazon.co.uk EU1R84X85,5969,Furniture repair and replacement,98.64,16.44,82.20
Resources BK0010,Finance & Transactional Services,060050,Service Management,Supplies and Services,308011,Furniture,07-Oct-2021,000007739246180 - 1,Amazon.co.uk EU1R84X85,5969,Furniture repair and replacement,0.06,,0.06
Resources BK0010,COVID19 - Resources,091007,COVID19 - Resources,Supplies and Services,340001,Postages E340,07-Oct-2021,000007739246182,ROYAL MAIL REDIRECTION,9402,Postages,216.00,0.00,216.00
Adult and Health Services,Head of Adults,055310,Positive Journeys (Tudhoe),Supplies and Services,384999,Miscellaneous Expenses,07-Oct-2021,000007739246226,Amazon.co.uk B40AJ33X5,5969,Other expenses,7.70,1.28,6.42
Children and Young Peoples Services,Head of Childrens Social Care,085341,High Etherley Satelite Home,Supplies and Services,328041,Clothing uniforms and laundry E328,07-Oct-2021,000007739246262,INTERFLORA BRITISH UNI,5992,Clothing uniforms and laundry,43.00,0.00,43.00
Children and Young Peoples Services,Head of Early Help Inclusion & Vulnerable Children.,088113,Seaham  0-19 Community Family Hub,Supplies and Services,304999,Equipment and Materials,07-Oct-2021,000007739246328,HOME BARGAINS,5251,Misc equipment tools and materials,8.70,0.00,8.70
Children and Young Peoples Services,Head of Childrens Social Care,085634,Families First Easington,Supplies and Services,332047,Printing Stationery and Gen Off Exps,07-Oct-2021,000007739246456,BOARDSDIRECT.CO.UK,5111,Stationery,263.34,0.00,263.34
Neighbourhoods and Climate Change,Environmental Services,010367,C&G - South Grounds Maintenance,Supplies and Services,304221,Equipment and Materials,07-Oct-2021,000007744388260,SCREWFIX DIRECT,5211,Direct materials,62.98,0.00,62.98
Children and Young Peoples Services,Head of Childrens Social Care,085331,New Lea Childrens Home,Supplies and Services,324117,Provisions E324,07-Oct-2021,000007744388288,ALDI STORES,5411,Catering costs - provisions,9.82,0.00,9.82
Children and Young Peoples Services,Head of Early Help Inclusion & Vulnerable Children.,071440,Barnard Castle One Point Hub,Supplies and Services,328041,Clothing uniforms and laundry E328,07-Oct-2021,000007744388310,WWW.THEWORKS.CO.UK,5310,Clothing uniforms and laundry,44.00,0.00,44.00
"Regeneration, Economy and Growth",Corporate Property and Land,021242,Catering - County Hall,Supplies and Services,324117,Provisions E324,07-Oct-2021,000007744388332,BATLEYS PERTH,5300,Catering costs - provisions,9.18,1.53,7.65
"Regeneration, Economy and Growth",Corporate Property and Land,021242,Catering - County Hall,Supplies and Services,324117,Provisions E324,07-Oct-2021,000007744388332 - 1,BATLEYS PERTH,5300,Catering costs - provisions,15.78,,15.78
"Regeneration, Economy and Growth",Corporate Property and Land,021242,Catering - County Hall,Supplies and Services,324117,Provisions E324,07-Oct-2021,000007744388340,BATLEYS PERTH,5300,Catering costs - provisions,-41.64,0.00,-41.64
"Regeneration, Economy and Growth",Development and Housing,030544,Rural Employability - Client Engagement,Supplies and Services,324117,Provisions E324,07-Oct-2021,000007744388410,SAINSBURYS S/MKTS,5411,Catering costs - provisions,3.35,0.00,3.35
"Regeneration, Economy and Growth",Culture Sport and Tourism,054812,Gala Theatre - Catering etc,Supplies and Services,324117,Provisions E324,07-Oct-2021,000007744388416,BATLEYS PERTH,5300,Catering costs - provisions,8.83,1.47,7.36
"Regeneration, Economy and Growth",Culture Sport and Tourism,054812,Gala Theatre - Catering etc,Supplies and Services,324117,Provisions E324,07-Oct-2021,000007744388424,BATLEYS PERTH,5300,Catering costs - provisions,-12.38,-2.06,-10.32
Children and Young Peoples Services,Head of Early Help Inclusion & Vulnerable Children.,085957,Secure Management,Supplies and Services,304403,Equipment and Materials,07-Oct-2021,000007744388452,AMZNMKTPLACE AMAZON.CO,5999,Other consumables,5.65,0.94,4.71
Neighbourhoods and Climate Change,Environmental Services,011060,C&G - Hardwick Park Catering,Supplies and Services,324117,Provisions E324,07-Oct-2021,000007744388914,BATLEYS PERTH,5300,Catering costs - provisions,343.92,57.32,286.60
Neighbourhoods and Climate Change,Environmental Services,011060,C&G - Hardwick Park Catering,Supplies and Services,324117,Provisions E324,07-Oct-2021,000007744388914 - 1,BATLEYS PERTH,5300,Catering costs - provisions,143.19,,143.19
Children and Young Peoples Services,Head of Education and Skills,075024,Durham Directions,Supplies and Services,364301,Grants to Voluntary Organisations,07-Oct-2021,000007744388964,SCREWFIX DIRECT,5211,Hardship,4.98,0.83,4.15
Children and Young Peoples Services,Head of Education and Skills,075024,Durham Directions,Supplies and Services,364301,Grants to Voluntary Organisations,07-Oct-2021,000007744388964 - 1,SCREWFIX DIRECT,5211,Hardship,15.81,,15.81
"Regeneration, Economy and Growth",Corporate Property and Land,021234,Catering - Locomotion,Supplies and Services,324117,Provisions E324,07-Oct-2021,000007744389020,BATLEYS PERTH,5300,Catering costs - provisions,-46.58,-7.76,-38.82
Children and Young Peoples Services,Head of Childrens Social Care,085621,Families First Aycliffe,Supplies and Services,304221,Equipment and Materials,07-Oct-2021,000007744389048,SCREWFIX DIRECT,5211,Direct materials,38.98,0.00,38.98
Children and Young Peoples Services,Head of Early Help Inclusion & Vulnerable Children.,071441,Bishop Auckland One Point Hub,Supplies and Services,304259,Equipment and Materials,07-Oct-2021,000007744389192,SCREWFIX DIRECT,5211,Equipment-purchase and rental,7.49,0.00,7.49
"Regeneration, Economy and Growth",Business Durham CL0850,030672,Operations Team,Supplies and Services,352001,Conference Expenses,07-Oct-2021,000007744389248,HILTON,3504,Conferencesseminars fees etc,126.00,0.00,126.00
"Regeneration, Economy and Growth",Transport and Contracted Services,031704,Care Connect - CCTV Countywide,Supplies and Services,384956,Miscellaneous Expenses,07-Oct-2021,000007744389700,SECURITY INDUSTRY,7393,Licences,190.00,0.00,190.00
Children and Young Peoples Services,Head of Childrens Social Care,085334,West Rainton Satelite Home,Supplies and Services,304221,Equipment and Materials,07-Oct-2021,000007744389748,B & Q 1120,5200,Direct materials,21.37,0.00,21.37
Neighbourhoods and Climate Change,Environmental Services,010301,C&G - North Grounds Maintenance,Supplies and Services,304221,Equipment and Materials,07-Oct-2021,000007744389762,TOOLSTATION LTD,5211,Direct materials,44.94,0.00,44.94
Children and Young Peoples Services,Head of Childrens Social Care,085351,Framwellgate Moor CU,Supplies and Services,308011,Furniture,07-Oct-2021,000007744389800,WWW.THERANGE.CO.UK,5712,Furniture repair and replacement,27.94,0.00,27.94
Children and Young Peoples Services,Head of Childrens Social Care,085351,Framwellgate Moor CU,Supplies and Services,338099,Services,07-Oct-2021,000007744389806,PARKDEAN RESORTS H,7033,Other services,619.00,0.00,619.00
"Regeneration, Economy and Growth",Culture Sport and Tourism,054233,Bishop Auckland Town Hall Library,Supplies and Services,324117,Provisions E324,07-Oct-2021,000007744390010,WM MORRISONS STORE,5411,Catering costs - provisions,23.72,0.00,23.72
"Regeneration, Economy and Growth",Corporate Property and Land,021235,Catering - Wharton Park,Supplies and Services,324117,Provisions E324,07-Oct-2021,000007744390222,BATLEYS PERTH,5300,Catering costs - provisions,171.78,28.63,143.15
"Regeneration, Economy and Growth",Corporate Property and Land,021235,Catering - Wharton Park,Supplies and Services,324117,Provisions E324,07-Oct-2021,000007744390222 - 1,BATLEYS PERTH,5300,Catering costs - provisions,14.23,,14.23
Children and Young Peoples Services,Head of Childrens Social Care,085334,West Rainton Satelite Home,Supplies and Services,324117,Provisions E324,07-Oct-2021,000007744390236,CO-OP GROUP 310016,5411,Catering costs - provisions,38.50,0.00,38.50
Children and Young Peoples Services,Head of Childrens Social Care,085333,Coxhoe Satelite Home,Supplies and Services,324117,Provisions E324,07-Oct-2021,000007744390320,ALDI 74 774,5411,Catering costs - provisions,32.15,0.00,32.15
Resources BK0010,Digital and Customer Services,070110,School Services - Man Info System (MIS) Support Team,Supplies and Services,342033,Computers and Communications,08-Oct-2021,000007739244400,WPMU DEV INCSUBFEE.COM,7372,Computer hardware,0.39,0.00,0.39
Children and Young Peoples Services,Head of Education and Skills,071732,Dean Bank Childcare,Supplies and Services,384999,Miscellaneous Expenses,08-Oct-2021,000007739244966,Amazon.co.uk DS79V7W55,5969,Other expenses,63.68,0.00,63.68
Children and Young Peoples Services,Head of Early Help Inclusion & Vulnerable Children.,085954,Walworth,Supplies and Services,304083,Equipment and Materials,08-Oct-2021,000007739245102,Amazon.co.uk 6J2709GY5,5969,Catering equipment,34.00,5.67,28.33
Resources BK0010,People & Talent Management,010984,Training and Development,Supplies and Services,384999,Miscellaneous Expenses,08-Oct-2021,000007739245228,Amazon.co.uk 5Y2WC0GI5,5969,Other expenses,60.64,0.00,60.64
Children and Young Peoples Services,Head of Childrens Social Care,085341,High Etherley Satelite Home,Supplies and Services,304403,Equipment and Materials,08-Oct-2021,000007739245590,AMZNMktplace,5999,Other consumables,13.59,2.27,11.32
"Regeneration, Economy and Growth",Culture Sport and Tourism,054399,Local Delivery-Libraries,Supplies and Services,312009,Newspapers books and periodicals E312,08-Oct-2021,000007739245748,Amazon.co.uk 475IZ0Z35,5969,Newspapers books and periodicals,10.99,0.00,10.99
Children and Young Peoples Services,Head of Early Help Inclusion & Vulnerable Children.,088107,Ferryhill & Newton Aycliffe 0-19 Community Family Hub,Supplies and Services,384999,Miscellaneous Expenses,08-Oct-2021,000007739245998,Amazon.co.uk VS1ID41P5,5969,Other expenses,9.60,1.60,8.00
Children and Young Peoples Services,Head of Early Help Inclusion & Vulnerable Children.,088107,Ferryhill & Newton Aycliffe 0-19 Community Family Hub,Supplies and Services,384999,Miscellaneous Expenses,08-Oct-2021,000007739245998 - 1,Amazon.co.uk VS1ID41P5,5969,Other expenses,26.11,,26.11
"Regeneration, Economy and Growth",Business Durham CL0850,030694,Plexus 2,Supplies and Services,304403,Equipment and Materials,08-Oct-2021,000007739246386,AMZNMktplace,5999,Other consumables,13.94,2.32,11.62
Children and Young Peoples Services,Head of Education and Skills,071801,Selby Cottage Childcare Centre,Supplies and Services,304999,Equipment and Materials,08-Oct-2021,000007744387834,Amazon Prime 1S67A9BK5,5968,Misc equipment tools and materials,7.99,0.00,7.99
Children and Young Peoples Services,Head of Education and Skills,071801,Selby Cottage Childcare Centre,Supplies and Services,324117,Provisions E324,08-Oct-2021,000007744387844,WILKO RETAIL LIMITED,5399,Catering costs - provisions,14.60,0.00,14.60
Children and Young Peoples Services,Head of Education and Skills,071801,Selby Cottage Childcare Centre,Supplies and Services,324117,Provisions E324,08-Oct-2021,000007744387846,TESCO STORES 2278,5411,Catering costs - provisions,2.30,0.00,2.30
Dedicated Schools Grant BG0015,DSG Schools Block,417607,Greenfield Community College 004176 - Performing Arts,Supplies and Services,304335,Equipment and Materials,08-Oct-2021,000007744387908,APPLE.COM/BILL,5735,ICT supplies etc,437.46,0.00,437.46
Children and Young Peoples Services,Head of Childrens Social Care,085501,Child Care Cases Legal Expenses,Supplies and Services,304403,Equipment and Materials,08-Oct-2021,000007744387962,DARLINGTON BC INTERNET,9399,Other consumables,11.00,0.00,11.00
Children and Young Peoples Services,Head of Education and Skills,075021,DurhamWorks Progression and Learning,Supplies and Services,364301,Grants to Voluntary Organisations,08-Oct-2021,000007744387966,SPORTSDIRECT.COM,5691,Hardship,35.99,0.00,35.99
Neighbourhoods and Climate Change,Environmental Services,010383,C&G - South Street Cleansing,Supplies and Services,304221,Equipment and Materials,08-Oct-2021,000007744387994,S&A BUILDERS MERCHANTS,5211,Direct materials,65.92,0.00,65.92
"Regeneration, Economy and Growth",Culture Sport and Tourism,030712,VCD - Project Delivery,Supplies and Services,384199,Miscellaneous Expenses,08-Oct-2021,000007744388022,PAYPAL WEBALON,5817,Other hired and contracted services,5.79,0.00,5.79
Adult and Health Services,Head of Adults,055302,Durham Pathways,Supplies and Services,324117,Provisions E324,08-Oct-2021,000007744388088,WILKO RETAIL LIMITED,5399,Catering costs - provisions,37.90,0.00,37.90
Adult and Health Services,Head of Adults,055302,Durham Pathways,Supplies and Services,324117,Provisions E324,08-Oct-2021,000007744388096,ASDA STORES LTD 4313,5411,Catering costs - provisions,13.50,0.00,13.50
Adult and Health Services,Head of Adults,055302,Durham Pathways,Supplies and Services,324117,Provisions E324,08-Oct-2021,000007744388104,LIDL GB DURHAM,5411,Catering costs - provisions,3.29,0.00,3.29
"Regeneration, Economy and Growth",Development and Housing,030544,Rural Employability - Client Engagement,Transport,235057,Public Transport,08-Oct-2021,000007744388320,ARRIVA UK BUS,4131,Staff travelling,22.00,0.00,22.00
"Regeneration, Economy and Growth",Culture Sport and Tourism,054812,Gala Theatre - Catering etc,Supplies and Services,324117,Provisions E324,08-Oct-2021,000007744388422,JR HOLLAND FOODSERVICE,5499,Catering costs - provisions,39.93,0.00,39.93
Children and Young Peoples Services,Head of Early Help Inclusion & Vulnerable Children.,085955,Auckland,Supplies and Services,304403,Equipment and Materials,08-Oct-2021,000007744388448,AMZNMktplace,5999,Other consumables,4.99,0.00,4.99
Children and Young Peoples Services,Head of Early Help Inclusion & Vulnerable Children.,085954,Walworth,Supplies and Services,304403,Equipment and Materials,08-Oct-2021,000007744388454,AMZNMKTPLACE AMAZON.CO,5999,Other consumables,3.33,0.56,2.77
Children and Young Peoples Services,Head of Early Help Inclusion & Vulnerable Children.,085952,Secure Education,Supplies and Services,304403,Equipment and Materials,08-Oct-2021,000007744388460,AMZNMktplace,5999,Other consumables,46.95,7.83,39.12
Neighbourhoods and Climate Change,Environmental Services,010367,C&G - South Grounds Maintenance,Supplies and Services,304221,Equipment and Materials,08-Oct-2021,000007744388580,B & Q 1332,5200,Direct materials,33.00,0.00,33.00
Children and Young Peoples Services,Head of Education and Skills,071732,Dean Bank Childcare,Supplies and Services,304403,Equipment and Materials,08-Oct-2021,000007744388686,AMZNMktplace,5999,Other consumables,12.99,0.00,12.99
"Regeneration, Economy and Growth",Business Durham CL0850,030671,Business Space 030671,Supplies and Services,332047,Printing Stationery and Gen Off Exps,08-Oct-2021,000007744388776,NORTH EAST STATIONERY,5111,Stationery,100.80,0.00,100.80
Children and Young Peoples Services,Head of Early Help Inclusion & Vulnerable Children.,085965,Barnard,Supplies and Services,324117,Provisions E324,08-Oct-2021,000007744388862,TESCO STORES 6329,5411,Catering costs - provisions,117.15,0.00,117.15
Neighbourhoods and Climate Change,Environmental Services,010919,C&G - Countryside Site Management,Supplies and Services,304259,Equipment and Materials,08-Oct-2021,000007744388890,S&A BUILDERS MERCHANTS,5039,Equipment-purchase and rental,45.90,0.00,45.90
Neighbourhoods and Climate Change,Environmental Services,011060,C&G - Hardwick Park Catering,Supplies and Services,324117,Provisions E324,08-Oct-2021,000007744388924,FREEMAN CATERING BUTCH,5422,Catering costs - provisions,32.02,0.00,32.02
Resources BK0010,People & Talent Management,010984,Training and Development,Employees,040149,Recruitment Instruction and Training,08-Oct-2021,000007744388972,WWW.CSCS.UK.COM,8699,Training-all costs,36.00,0.00,36.00
Neighbourhoods and Climate Change,Environmental Services,011058,C&G - Wharton Park,Third Party Payments,430100,Rendered by Private Contractors,08-Oct-2021,000007744388986,WWW.SIGN-HOLDERS.CO.UK,5999,Payments to sub-contractors,66.72,0.00,66.72
Children and Young Peoples Services,Head of Childrens Social Care,085334,West Rainton Satelite Home,Supplies and Services,324117,Provisions E324,08-Oct-2021,000007744389060,CO-OP GROUP 108250,5411,Catering costs - provisions,3.00,0.00,3.00
Children and Young Peoples Services,Head of Childrens Social Care,085334,West Rainton Satelite Home,Transport,215995,Running Costs of Vehicles,08-Oct-2021,000007744389062,GULF WEST RAINTON,5541,Vehicle running expenses,8.18,0.00,8.18
Children and Young Peoples Services,Head of Childrens Social Care,085334,West Rainton Satelite Home,Transport,215995,Running Costs of Vehicles,08-Oct-2021,000007744389064,GULF WEST RAINTON,5541,Vehicle running expenses,1.20,0.00,1.20
"Regeneration, Economy and Growth",Corporate Property and Land,010525,Catering - Green Lane,Supplies and Services,324117,Provisions E324,08-Oct-2021,000007744389100,JR HOLLAND FOODSERVICE,5499,Catering costs - provisions,-10.20,0.00,-10.20
Children and Young Peoples Services,Head of Childrens Social Care,085551,Short Break Services-Park Hse Sher,Supplies and Services,324117,Provisions E324,08-Oct-2021,000007744389160,ASDA STORES,5411,Catering costs - provisions,18.78,0.00,18.78
Children and Young Peoples Services,Head of Early Help Inclusion & Vulnerable Children.,071441,Bishop Auckland One Point Hub,Supplies and Services,304259,Equipment and Materials,08-Oct-2021,000007744389194,HOME BARGAINS,5251,Equipment-purchase and rental,24.58,0.00,24.58
Children and Young Peoples Services,Head of Childrens Social Care,085333,Coxhoe Satelite Home,Supplies and Services,344033,Telephones,08-Oct-2021,000007744389272,giffgaff,4814,Telephones general-all costs,20.00,0.00,20.00
"Regeneration, Economy and Growth",Corporate Property and Land,030691,Catering - Durham Dales Centre,Supplies and Services,324117,Provisions E324,08-Oct-2021,000007744389342,JR HOLLAND FOODSERVICE,5499,Catering costs - provisions,80.51,0.00,80.51
Resources BK0010,Procurement Sales & Business Services,065503,Business Support - Spectrum,Transport,235057,Public Transport,08-Oct-2021,000007744389396,WWW.GONORTHEAST.CO.UK,4111,Staff travelling,4.00,0.00,4.00
Resources BK0010,Procurement Sales & Business Services,065503,Business Support - Spectrum,Transport,235057,Public Transport,08-Oct-2021,000007744389402,WWW.GONORTHEAST.CO.UK,4111,Staff travelling,4.00,0.00,4.00
Adult and Health Services,Head of Adults,055643,Hawthorn House LD Respite Unit,Supplies and Services,324117,Provisions E324,08-Oct-2021,000007744389410,JR HOLLAND FOODSERVICE,5499,Catering costs - provisions,20.26,0.00,20.26
Adult and Health Services,Head of Adults,055643,Hawthorn House LD Respite Unit,Supplies and Services,324117,Provisions E324,08-Oct-2021,000007744389418,JR HOLLAND FOODSERVICE,5499,Catering costs - provisions,4.88,0.00,4.88
Adult and Health Services,Head of Adults,055643,Hawthorn House LD Respite Unit,Supplies and Services,324117,Provisions E324,08-Oct-2021,000007744389422,JR HOLLAND FOODSERVICE,5499,Catering costs - provisions,16.60,0.00,16.60
"Regeneration, Economy and Growth",Culture Sport and Tourism,010664,Freemans Quay Leisure Centre,Supplies and Services,304221,Equipment and Materials,08-Oct-2021,000007744389450,SCREWFIX DIRECT,5211,Direct materials,22.99,0.00,22.99
Children and Young Peoples Services,Head of Early Help Inclusion & Vulnerable Children.,088102,Consett & Stanley 0-19 Targeted Family Support,Supplies and Services,384302,Miscellaneous Expenses,08-Oct-2021,000007744389490,ASDA SUPERSTORE,5411,Activity expenses,3.50,0.00,3.50
Resources BK0010,Digital and Customer Services,065335,School Services - Implementations,Supplies and Services,304303,Equipment and Materials,08-Oct-2021,000007744389520,AMZNMktplace,5999,Network for resale,256.80,42.80,214.00
Resources BK0010,Digital and Customer Services,065335,School Services - Implementations,Supplies and Services,304639,Equipment and Materials,08-Oct-2021,000007744389524,AMZ cherrypickelectron,5999,Technicians-supplies,-12.90,-2.15,-10.75
Children and Young Peoples Services,Head of Early Help Inclusion & Vulnerable Children.,085954,Walworth,Supplies and Services,384302,Miscellaneous Expenses,08-Oct-2021,000007744389586,SPORTSDIRECT.COM,5691,Activity expenses,204.99,34.17,170.82
Resources BK0010,Procurement Sales & Business Services,065503,Business Support - Spectrum,Supplies and Services,304259,Equipment and Materials,08-Oct-2021,000007744389616,HARTLEPOOL BC,9399,Equipment-purchase and rental,11.00,0.00,11.00
Resources BK0010,Procurement Sales & Business Services,065503,Business Support - Spectrum,Supplies and Services,328041,Clothing uniforms and laundry E328,08-Oct-2021,000007744389624,ARGOS LTD,5310,Clothing uniforms and laundry,189.99,0.00,189.99
Resources BK0010,Procurement Sales & Business Services,065503,Business Support - Spectrum,Supplies and Services,328041,Clothing uniforms and laundry E328,08-Oct-2021,000007744389628,ARGOS LTD,5310,Clothing uniforms and laundry,479.98,0.00,479.98
Children and Young Peoples Services,Head of Childrens Social Care,085631,Families First Peterlee,Transport,235073,Public Transport,08-Oct-2021,000007744389644,Hotel at Booking.com,7011,Travel-clients/students/children,631.75,0.00,631.75
Children and Young Peoples Services,Head of Early Help Inclusion & Vulnerable Children.,088111,Easington & Peterlee 0-19 Community Family Hub,Supplies and Services,304259,Equipment and Materials,08-Oct-2021,000007744389660,AMZNMktplace,5999,Equipment-purchase and rental,14.99,2.50,12.49
Children and Young Peoples Services,Head of Childrens Social Care,085632,Families First Seaham,Supplies and Services,364301,Grants to Voluntary Organisations,08-Oct-2021,000007744389662,ARGOS LTD,5310,Hardship,14.99,0.00,14.99
"Regeneration, Economy and Growth",Culture Sport and Tourism,054235,Bishop Auckland Town Hall Cafe,Supplies and Services,324117,Provisions E324,08-Oct-2021,000007744389690,JR HOLLAND FOODSERVICE,5499,Catering costs - provisions,185.18,0.00,185.18
"Regeneration, Economy and Growth",Transport and Contracted Services,031704,Care Connect - CCTV Countywide,Supplies and Services,304403,Equipment and Materials,08-Oct-2021,000007744389706,WWW.OFCOM.ORG.UK,8699,Other consumables,50.00,0.00,50.00
Children and Young Peoples Services,Head of Childrens Social Care,085333,Coxhoe Satelite Home,Supplies and Services,324117,Provisions E324,08-Oct-2021,000007744389808,TESCO STORES 2916,5411,Catering costs - provisions,60.30,0.00,60.30
Children and Young Peoples Services,Head of Education and Skills,071802,Louisa Cent Nursery,Supplies and Services,324117,Provisions E324,08-Oct-2021,000007744389814,ASDA GROCERIES ONLINE,5411,Catering costs - provisions,181.75,0.00,181.75
Children and Young Peoples Services,Head of Early Help Inclusion & Vulnerable Children.,088107,Ferryhill & Newton Aycliffe 0-19 Community Family Hub,Supplies and Services,304403,Equipment and Materials,08-Oct-2021,000007744389966,AMZNMktplace,5999,Other consumables,15.89,2.65,13.24
Children and Young Peoples Services,Head of Early Help Inclusion & Vulnerable Children.,085962,Aycliffe Secure - Durham,Supplies and Services,304403,Equipment and Materials,08-Oct-2021,000007744389982,AMZNMktplace,5999,Other consumables,3.98,0.66,3.32
Children and Young Peoples Services,Head of Early Help Inclusion & Vulnerable Children.,085962,Aycliffe Secure - Durham,Supplies and Services,304403,Equipment and Materials,08-Oct-2021,000007744389988,AMZNMktplace,5999,Other consumables,25.56,4.26,21.30
Children and Young Peoples Services,Head of Early Help Inclusion & Vulnerable Children.,085962,Aycliffe Secure - Durham,Supplies and Services,304403,Equipment and Materials,08-Oct-2021,000007744389990,AMZNMktplace,5999,Other consumables,18.99,3.17,15.82
Children and Young Peoples Services,Head of Early Help Inclusion & Vulnerable Children.,085962,Aycliffe Secure - Durham,Supplies and Services,304403,Equipment and Materials,08-Oct-2021,000007744389994,AMZNMktplace,5999,Other consumables,9.99,1.67,8.32
Children and Young Peoples Services,Head of Early Help Inclusion & Vulnerable Children.,085962,Aycliffe Secure - Durham,Supplies and Services,304403,Equipment and Materials,08-Oct-2021,000007744389996,AMZNMktplace,5999,Other consumables,31.24,5.21,26.03
Children and Young Peoples Services,Head of Childrens Social Care,085332,Middlestone Moor CU,Supplies and Services,348037,Subsistence E348,08-Oct-2021,000007744390108,Clems Fish & Chip Rest,5812,Subsistence,3.65,0.00,3.65
Children and Young Peoples Services,Head of Childrens Social Care,085332,Middlestone Moor CU,Supplies and Services,304221,Equipment and Materials,08-Oct-2021,000007744390110,SCREWFIX DIRECT,5211,Direct materials,16.99,0.00,16.99
Resources BK0010,Resources Management CK0450,069000,Resources Management 069000,Supplies and Services,304259,Equipment and Materials,08-Oct-2021,000007744390136,APPLE.COM/BILL,5735,Equipment-purchase and rental,0.79,0.00,0.79
Resources BK0010,Finance & Transactional Services,065162,Resources and Regeneration Finance,Supplies and Services,372009,Subscriptions E372,08-Oct-2021,000007744390138,CREATIVE_FED,8699,Subscriptions 372009,25.00,0.00,25.00
Adult and Health Services,Head of Adults,055310,Positive Journeys (Tudhoe),Supplies and Services,324117,Provisions E324,08-Oct-2021,000007744390168,SP TICKIT,5399,Catering costs - provisions,39.98,0.00,39.98
Adult and Health Services,Head of Adults,055310,Positive Journeys (Tudhoe),Supplies and Services,324117,Provisions E324,08-Oct-2021,000007744390170,ASDA SUPERSTORE 4987,5411,Catering costs - provisions,1.25,0.00,1.25
Adult and Health Services,Head of Adults,055309,Peterlee Pathways,Supplies and Services,312009,Newspapers books and periodicals E312,08-Oct-2021,000007744390238,WWW.BLACKWELLS.COM,5942,Newspapers books and periodicals,24.60,0.00,24.60
Children and Young Peoples Services,Head of Early Help Inclusion & Vulnerable Children.,088113,Seaham  0-19 Community Family Hub,Supplies and Services,324117,Provisions E324,08-Oct-2021,000007744390328,ASDA GROCERIES ONLINE,5411,Catering costs - provisions,284.98,0.00,284.98
"Regeneration, Economy and Growth",Development and Housing,030770,Durham Advance,Supplies and Services,304259,Equipment and Materials,08-Oct-2021,000007744390344,SPORTSDIRECT.COM,5941,Equipment-purchase and rental,54.98,0.00,54.98
"Regeneration, Economy and Growth",Culture Sport and Tourism,054812,Gala Theatre - Catering etc,Supplies and Services,324117,Provisions E324,08-Oct-2021,000007750158356,BATLEYS PERTH,5300,Catering costs - provisions,-51.00,-8.50,-42.50
"Regeneration, Economy and Growth",Culture Sport and Tourism,054812,Gala Theatre - Catering etc,Supplies and Services,324117,Provisions E324,08-Oct-2021,000007750158362,BATLEYS PERTH,5300,Catering costs - provisions,-11.06,0.00,-11.06
"Regeneration, Economy and Growth",Culture Sport and Tourism,054812,Gala Theatre - Catering etc,Supplies and Services,324117,Provisions E324,08-Oct-2021,000007750158368,BATLEYS PERTH,5300,Catering costs - provisions,-9.18,-1.53,-7.65
Neighbourhoods and Climate Change,Environmental Services,011060,C&G - Hardwick Park Catering,Supplies and Services,324117,Provisions E324,08-Oct-2021,000007750158738,BATLEYS PERTH,5300,Catering costs - provisions,-66.63,-11.10,-55.53
"Regeneration, Economy and Growth",Corporate Property and Land,010525,Catering - Green Lane,Supplies and Services,324117,Provisions E324,08-Oct-2021,000007750158798,BATLEYS PERTH,5300,Catering costs - provisions,95.34,15.89,79.45
"Regeneration, Economy and Growth",Corporate Property and Land,010525,Catering - Green Lane,Supplies and Services,324117,Provisions E324,08-Oct-2021,000007750158798 - 1,BATLEYS PERTH,5300,Catering costs - provisions,23.28,,23.28
"Regeneration, Economy and Growth",Corporate Property and Land,010525,Catering - Green Lane,Supplies and Services,324117,Provisions E324,08-Oct-2021,000007750158802,BATLEYS PERTH,5300,Catering costs - provisions,17.87,0.00,17.87
Adult and Health Services,Head of Adults,055643,Hawthorn House LD Respite Unit,Supplies and Services,324117,Provisions E324,08-Oct-2021,000007750158958,BATLEYS PERTH,5300,Catering costs - provisions,142.41,0.00,142.41
"Regeneration, Economy and Growth",Corporate Property and Land,010525,Catering - Green Lane,Supplies and Services,324117,Provisions E324,08-Oct-2021,000009795569621,BATLEYS PERTH,5300,Catering costs - provisions,-27.22,0.00,-27.22
"Regeneration, Economy and Growth",Business Durham CL0850,030689,Inward Investment and Aftercare,Supplies and Services,304999,Equipment and Materials,09-Oct-2021,000007744387816,MAILCHIMP MONTHLY,5968,Misc equipment tools and materials,77.74,0.00,77.74
Children and Young Peoples Services,Head of Early Help Inclusion & Vulnerable Children.,088102,Consett & Stanley 0-19 Targeted Family Support,Supplies and Services,304403,Equipment and Materials,09-Oct-2021,000007744387866,AMZNMKTPLACE AMAZON.CO,5999,Other consumables,7.99,1.33,6.66
Children and Young Peoples Services,Head of Childrens Social Care,085561,Social Work Academy,Supplies and Services,384999,Miscellaneous Expenses,09-Oct-2021,000007744387868,Amazon.co.uk NO9ZG51I5,5969,Other expenses,413.82,0.00,413.82
Children and Young Peoples Services,Head of Childrens Social Care,085341,High Etherley Satelite Home,Supplies and Services,324117,Provisions E324,09-Oct-2021,000007744387948,TESCO STORES 6329,5411,Catering costs - provisions,59.74,0.00,59.74
Children and Young Peoples Services,Head of Childrens Social Care,085341,High Etherley Satelite Home,Supplies and Services,332047,Printing Stationery and Gen Off Exps,09-Oct-2021,000007744387950,ODEON,7832,Stationery,13.50,0.00,13.50
Children and Young Peoples Services,Head of Childrens Social Care,085341,High Etherley Satelite Home,Supplies and Services,332047,Printing Stationery and Gen Off Exps,09-Oct-2021,000007744387956,ODEON CINEMAS,7832,Stationery,14.00,0.00,14.00
Children and Young Peoples Services,Head of Education and Skills,078100,Curric and Professional Development 078100,Supplies and Services,304403,Equipment and Materials,09-Oct-2021,000007744388072,ADOBE PRODUCTS,5734,Other consumables,25.28,0.00,25.28
"Regeneration, Economy and Growth",Development and Housing,030777,FLEX,Supplies and Services,342033,Computers and Communications,09-Oct-2021,000007744388350,crbdirect.org.uk,7372,Computer hardware,8.00,0.00,8.00
Children and Young Peoples Services,Head of Early Help Inclusion & Vulnerable Children.,085952,Secure Education,Supplies and Services,304403,Equipment and Materials,09-Oct-2021,000007744388466,AMZNMktplace,5999,Other consumables,17.07,2.85,14.22
Children and Young Peoples Services,Head of Early Help Inclusion & Vulnerable Children.,085954,Walworth,Supplies and Services,304403,Equipment and Materials,09-Oct-2021,000007744388472,AMZNMktplace,5999,Other consumables,13.49,2.25,11.24
Children and Young Peoples Services,Head of Childrens Social Care,085511,Emergency Duty Team,Supplies and Services,352001,Conference Expenses,09-Oct-2021,000007744388488,TRAVELODGE,3615,Conferencesseminars fees etc,211.00,0.00,211.00
Children and Young Peoples Services,Head of Childrens Social Care,085511,Emergency Duty Team,Supplies and Services,352001,Conference Expenses,09-Oct-2021,000007744388492,TRAVELODGE,3615,Conferencesseminars fees etc,102.99,0.00,102.99
Children and Young Peoples Services,Head of Education and Skills,071732,Dean Bank Childcare,Supplies and Services,304259,Equipment and Materials,09-Oct-2021,000007744388688,Amazon Music XQ23J4GR5,5735,Equipment-purchase and rental,14.99,0.00,14.99
Resources BK0010,Legal & Democratic Services,067910,Democratic Representation 067910,Supplies and Services,332047,Printing Stationery and Gen Off Exps,09-Oct-2021,000007744388712,RYMAN,5943,Stationery,9.99,0.00,9.99
Children and Young Peoples Services,Head of Childrens Social Care,085334,West Rainton Satelite Home,Supplies and Services,304999,Equipment and Materials,09-Oct-2021,000007744388720,Amazon Prime 1C4ZY23E5,5968,Misc equipment tools and materials,7.99,0.00,7.99
Children and Young Peoples Services,Head of Early Help Inclusion & Vulnerable Children.,085962,Aycliffe Secure - Durham,Supplies and Services,304403,Equipment and Materials,09-Oct-2021,000007744388740,AMZNMktplace,5999,Other consumables,57.99,9.67,48.32
"Regeneration, Economy and Growth",Development and Housing,030771,Durham Advance Flexible Fund,Transport,235057,Public Transport,09-Oct-2021,000007744388846,BLUE LINE TAXIS,4121,Staff travelling,5.00,0.00,5.00
Children and Young Peoples Services,Head of Early Help Inclusion & Vulnerable Children.,085956,Lumley,Supplies and Services,384302,Miscellaneous Expenses,09-Oct-2021,000007744388868,AMZNMktplace,5999,Activity expenses,29.98,5.00,24.98
Children and Young Peoples Services,Head of Early Help Inclusion & Vulnerable Children.,085956,Lumley,Supplies and Services,324117,Provisions E324,09-Oct-2021,000007744388874,TESCO STORES 6329,5411,Catering costs - provisions,43.35,0.00,43.35
Children and Young Peoples Services,Head of Early Help Inclusion & Vulnerable Children.,085957,Secure Management,Supplies and Services,384302,Miscellaneous Expenses,09-Oct-2021,000007744389592,Microsoft Ultimate 1 M,5816,Activity expenses,10.99,1.83,9.16
Children and Young Peoples Services,Head of Early Help Inclusion & Vulnerable Children.,088111,Easington & Peterlee 0-19 Community Family Hub,Supplies and Services,304259,Equipment and Materials,09-Oct-2021,000007744389672,Amazon.co.uk O55W64CK5,5969,Equipment-purchase and rental,25.00,4.17,20.83
Children and Young Peoples Services,Head of Childrens Social Care,085332,Middlestone Moor CU,Supplies and Services,324117,Provisions E324,09-Oct-2021,000007744389744,KEN WARNE LTD (O5),5411,Catering costs - provisions,8.36,0.00,8.36
Children and Young Peoples Services,Head of Childrens Social Care,085332,Middlestone Moor CU,Supplies and Services,332047,Printing Stationery and Gen Off Exps,09-Oct-2021,000007744389954,Vue Entertainment Ltd,7832,Stationery,13.98,0.00,13.98
Children and Young Peoples Services,Head of Early Help Inclusion & Vulnerable Children.,085962,Aycliffe Secure - Durham,Supplies and Services,304403,Equipment and Materials,09-Oct-2021,000007744390000,AMZNMktplace,5999,Other consumables,85.24,14.23,71.01
"Regeneration, Economy and Growth",Culture Sport and Tourism,054233,Bishop Auckland Town Hall Library,Supplies and Services,324117,Provisions E324,09-Oct-2021,000007744390014,HERON FOODS,5411,Catering costs - provisions,2.00,0.00,2.00
"Regeneration, Economy and Growth",Culture Sport and Tourism,054233,Bishop Auckland Town Hall Library,Supplies and Services,324117,Provisions E324,09-Oct-2021,000007744390018,HERON FOODS,5411,Catering costs - provisions,9.20,0.00,9.20
"Regeneration, Economy and Growth",Culture Sport and Tourism,054233,Bishop Auckland Town Hall Library,Supplies and Services,324117,Provisions E324,09-Oct-2021,000007744390022,WILKO RETAIL LIMITED,5399,Catering costs - provisions,4.25,0.00,4.25
Children and Young Peoples Services,Head of Childrens Social Care,085332,Middlestone Moor CU,Supplies and Services,324117,Provisions E324,09-Oct-2021,000007744390112,WM MORRISONS STORE,5411,Catering costs - provisions,24.04,0.00,24.04
"Regeneration, Economy and Growth",Communications Management,060270,Communications and Marketing,Supplies and Services,336005,Advertising E336,09-Oct-2021,000007744390142,LINKEDIN-689 7294263,7311,Advertising other than for staff,96.70,0.00,96.70
"Regeneration, Economy and Growth",Corporate Property and Land,021242,Catering - County Hall,Supplies and Services,328041,Clothing uniforms and laundry E328,09-Oct-2021,000007750158380,T K MAXX,5331,Clothing uniforms and laundry,69.93,0.00,69.93
"Regeneration, Economy and Growth",Culture Sport and Tourism,054798,dli Museum - WW1 Education Programme,Supplies and Services,304259,Equipment and Materials,10-Oct-2021,000007744387998,AMZNMKTPLACE AMAZON.CO,5999,Equipment-purchase and rental,17.99,3.00,14.99
Resources BK0010,Procurement Sales & Business Services,065503,Business Support - Spectrum,Supplies and Services,384999,Miscellaneous Expenses,10-Oct-2021,000007744388280,Amazon.co.uk 0M4JL5YP5,5969,Other expenses,106.11,0.00,106.11
"Regeneration, Economy and Growth",Culture Sport and Tourism,054967,Theatre - Technical Staffing,Third Party Payments,430100,Rendered by Private Contractors,10-Oct-2021,000007744388696,SPROUTVIDEO LLC,7399,Payments to sub-contractors,147.29,0.00,147.29
Children and Young Peoples Services,Head of Early Help Inclusion & Vulnerable Children.,085962,Aycliffe Secure - Durham,Supplies and Services,384999,Miscellaneous Expenses,10-Oct-2021,000007744388730,Amazon.co.uk S643M48B5,5969,Other expenses,6.42,1.07,5.35
Children and Young Peoples Services,Head of Early Help Inclusion & Vulnerable Children.,085962,Aycliffe Secure - Durham,Supplies and Services,384999,Miscellaneous Expenses,10-Oct-2021,000007744388730 - 1,Amazon.co.uk S643M48B5,5969,Other expenses,9.80,,9.80
Children and Young Peoples Services,Head of Early Help Inclusion & Vulnerable Children.,085954,Walworth,Supplies and Services,324117,Provisions E324,10-Oct-2021,000007744388880,TESCO STORES 6329,5411,Catering costs - provisions,120.57,0.00,120.57
Children and Young Peoples Services,Head of Early Help Inclusion & Vulnerable Children.,085956,Lumley,Supplies and Services,324117,Provisions E324,10-Oct-2021,000007744388884,TESCO STORES 6329,5411,Catering costs - provisions,-3.50,0.00,-3.50
Resources BK0010,Procurement Sales & Business Services,065503,Business Support - Spectrum,Supplies and Services,304403,Equipment and Materials,10-Oct-2021,000007744389404,AMZNMktplace,5999,Other consumables,13.99,2.33,11.66
Children and Young Peoples Services,Head of Early Help Inclusion & Vulnerable Children.,088111,Easington & Peterlee 0-19 Community Family Hub,Supplies and Services,304259,Equipment and Materials,10-Oct-2021,000007744389668,Amazon.co.uk FV78K8Q75,5969,Equipment-purchase and rental,9.99,1.67,8.32
Children and Young Peoples Services,Head of Childrens Social Care,085341,High Etherley Satelite Home,Supplies and Services,324117,Provisions E324,10-Oct-2021,000007744390092,TESCO STORES 6329,5411,Catering costs - provisions,1.98,0.00,1.98
Children and Young Peoples Services,Head of Childrens Social Care,085341,High Etherley Satelite Home,Supplies and Services,324117,Provisions E324,10-Oct-2021,000007744390096,TESCO STORES 6329,5411,Catering costs - provisions,1.95,0.00,1.95
Children and Young Peoples Services,Head of Childrens Social Care,085332,Middlestone Moor CU,Supplies and Services,324117,Provisions E324,10-Oct-2021,000007744390118,ASDA SUPERSTORE 4987,5411,Catering costs - provisions,1.97,0.00,1.97
Children and Young Peoples Services,Head of Childrens Social Care,085332,Middlestone Moor CU,Supplies and Services,348037,Subsistence E348,10-Oct-2021,000007744390120,Kaspa`s Desserts Darli,5812,Subsistence,11.50,0.00,11.50
Children and Young Peoples Services,Head of Childrens Social Care,085334,West Rainton Satelite Home,Supplies and Services,384237,Miscellaneous Expenses,10-Oct-2021,000007744390276,JUMP 360 NEWCASTLE ONL,7999,Recreational exps outings parties,23.00,0.00,23.00
Neighbourhoods and Climate Change,Environmental Services,031200,North Pennines Core,Supplies and Services,344033,Telephones,10-Oct-2021,000007744390288,ZOOM.US 888-799-9666,4814,Telephones general-all costs,134.40,0.00,134.40
"Regeneration, Economy and Growth",Business Durham CL0850,030689,Inward Investment and Aftercare,Third Party Payments,430100,Rendered by Private Contractors,10-Oct-2021,000007750158114,BLS monday.com,7399,Payments to sub-contractors,148.80,0.00,148.80
Neighbourhoods and Climate Change,Environmental Services,011060,C&G - Hardwick Park Catering,Supplies and Services,324117,Provisions E324,10-Oct-2021,000007750158724,BATLEYS PERTH,5300,Catering costs - provisions,127.80,21.30,106.50
Neighbourhoods and Climate Change,Environmental Services,011060,C&G - Hardwick Park Catering,Supplies and Services,324117,Provisions E324,10-Oct-2021,000007750158724 - 1,BATLEYS PERTH,5300,Catering costs - provisions,183.77,,183.77
Children and Young Peoples Services,Head of Childrens Social Care,085332,Middlestone Moor CU,Supplies and Services,348037,Subsistence E348,10-Oct-2021,000007750159146,MCDONALD`S,5812,Subsistence,2.10,0.00,2.10
Children and Young Peoples Services,Head of Childrens Social Care,085334,West Rainton Satelite Home,Supplies and Services,348037,Subsistence E348,10-Oct-2021,000007750159574,MCDONALDS,5814,Subsistence,2.48,0.00,2.48
Children and Young Peoples Services,Head of Childrens Social Care,085334,West Rainton Satelite Home,Supplies and Services,348037,Subsistence E348,10-Oct-2021,000007750159580,MCDONALDS,5814,Subsistence,19.76,0.00,19.76
"Regeneration, Economy and Growth",Business Durham CL0850,030689,Inward Investment and Aftercare,Supplies and Services,304999,Equipment and Materials,11-Oct-2021,000007744387822,MAILCHIMP MONTHLY,5968,Misc equipment tools and materials,2.14,0.00,2.14
Children and Young Peoples Services,Head of Education and Skills,071801,Selby Cottage Childcare Centre,Supplies and Services,384999,Miscellaneous Expenses,11-Oct-2021,000007744387852,Amazon.co.uk 3S0Q36UW5,5969,Other expenses,14.76,2.46,12.30
Children and Young Peoples Services,Head of Education and Skills,071801,Selby Cottage Childcare Centre,Supplies and Services,304403,Equipment and Materials,11-Oct-2021,000007744387854,AMZNMktplace,5999,Other consumables,24.99,4.17,20.82
"Regeneration, Economy and Growth",Culture Sport and Tourism,054967,Theatre - Technical Staffing,Third Party Payments,430100,Rendered by Private Contractors,11-Oct-2021,000007744388700,SPROUTVIDEO LLC,7399,Payments to sub-contractors,4.05,0.00,4.05
Children and Young Peoples Services,Head of Early Help Inclusion & Vulnerable Children.,085962,Aycliffe Secure - Durham,Supplies and Services,384999,Miscellaneous Expenses,11-Oct-2021,000007744388736,Amazon.co.uk ZB1KF0PN5,5969,Other expenses,49.91,8.33,41.58
"Regeneration, Economy and Growth",Business Durham CL0850,030714,Salvus House,Supplies and Services,384999,Miscellaneous Expenses,11-Oct-2021,000007744388834,Amazon.co.uk TX1E93895,5969,Other expenses,34.99,5.83,29.16
"Regeneration, Economy and Growth",Communications Management,060270,Communications and Marketing,Supplies and Services,336005,Advertising E336,11-Oct-2021,000007744390146,FACEBK KQCUH5F4B2,7311,Advertising other than for staff,500.00,0.00,500.00
"Regeneration, Economy and Growth",Business Durham CL0850,030689,Inward Investment and Aftercare,Supplies and Services,304403,Equipment and Materials,11-Oct-2021,000007750158122,WWW.PARTYDELIGHTS.CO.U,5947,Other consumables,62.81,0.00,62.81
Children and Young Peoples Services,Head of Education and Skills,071801,Selby Cottage Childcare Centre,Supplies and Services,304403,Equipment and Materials,11-Oct-2021,000007750158144,AMZNMktplace,5999,Other consumables,1.85,0.31,1.54
Children and Young Peoples Services,Head of Childrens Social Care,085634,Families First Easington,Supplies and Services,344033,Telephones,11-Oct-2021,000007750158150,WWW.MTRGROUP.CO.UK,4812,Telephones general-all costs,10.20,0.00,10.20
Children and Young Peoples Services,Head of Childrens Social Care,085341,High Etherley Satelite Home,Supplies and Services,324117,Provisions E324,11-Oct-2021,000007750158196,TESCO STORES 6329,5411,Catering costs - provisions,34.18,0.00,34.18
Children and Young Peoples Services,Head of Childrens Social Care,085341,High Etherley Satelite Home,Supplies and Services,324117,Provisions E324,11-Oct-2021,000007750158202,TESCO STORES 6329,5411,Catering costs - provisions,4.70,0.00,4.70
Children and Young Peoples Services,Head of Education and Skills,075021,DurhamWorks Progression and Learning,Supplies and Services,364301,Grants to Voluntary Organisations,11-Oct-2021,000007750158214,SQ BETTER BIKE TRAINI,8299,Hardship,110.00,0.00,110.00
Children and Young Peoples Services,Head of Childrens Social Care,085332,Middlestone Moor CU,Supplies and Services,324117,Provisions E324,11-Oct-2021,000007750158232,TESCO STORES 2371,5411,Catering costs - provisions,105.00,0.00,105.00
Children and Young Peoples Services,Head of Childrens Social Care,085341,High Etherley Satelite Home,Supplies and Services,324117,Provisions E324,11-Oct-2021,000007750158254,HASWELLS HOMER HILL FA,5499,Catering costs - provisions,9.90,0.00,9.90
Children and Young Peoples Services,Head of Early Help Inclusion & Vulnerable Children.,071440,Barnard Castle One Point Hub,Supplies and Services,324117,Provisions E324,11-Oct-2021,000007750158294,ASDA GROCERIES ONLINE,5411,Catering costs - provisions,26.63,0.00,26.63
"Regeneration, Economy and Growth",Corporate Property and Land,021242,Catering - County Hall,Supplies and Services,324117,Provisions E324,11-Oct-2021,000007750158298,JR HOLLAND FOODSERVICE,5499,Catering costs - provisions,69.12,0.00,69.12
"Regeneration, Economy and Growth",Development and Housing,030777,FLEX,Supplies and Services,324117,Provisions E324,11-Oct-2021,000007750158300,ASDA GROCERIES ONLINE,5411,Catering costs - provisions,23.98,0.00,23.98
"Regeneration, Economy and Growth",Culture Sport and Tourism,054812,Gala Theatre - Catering etc,Supplies and Services,324117,Provisions E324,11-Oct-2021,000007750158346,FREEMAN CATERING BUTCH,5422,Catering costs - provisions,48.36,0.00,48.36
"Regeneration, Economy and Growth",Culture Sport and Tourism,054812,Gala Theatre - Catering etc,Supplies and Services,324117,Provisions E324,11-Oct-2021,000007750158354,JR HOLLAND FOODSERVICE,5499,Catering costs - provisions,18.40,0.00,18.40
"Regeneration, Economy and Growth",Corporate Property and Land,021242,Catering - County Hall,Supplies and Services,304403,Equipment and Materials,11-Oct-2021,000007750158378,AMZNMktplace,5999,Other consumables,126.31,0.00,126.31
Neighbourhoods and Climate Change,Environmental Services,010367,C&G - South Grounds Maintenance,Supplies and Services,304403,Equipment and Materials,11-Oct-2021,000007750158470,BESCOL,5231,Other consumables,22.10,0.00,22.10
Children and Young Peoples Services,Head of Childrens Social Care,085358,Orchard House Sacriston Solo Home,Supplies and Services,324117,Provisions E324,11-Oct-2021,000007750158518,TESCO STORES 6334,5411,Catering costs - provisions,21.25,0.00,21.25
Children and Young Peoples Services,Head of Education and Skills,071732,Dean Bank Childcare,Third Party Payments,430100,Rendered by Private Contractors,11-Oct-2021,000007750158602,WWW.EYFS.INFO,7399,Payments to sub-contractors,121.20,0.00,121.20
Children and Young Peoples Services,Head of Education and Skills,071732,Dean Bank Childcare,Supplies and Services,324117,Provisions E324,11-Oct-2021,000007750158606,ASDA GROCERIES ONLINE,5411,Catering costs - provisions,56.23,0.00,56.23
Children and Young Peoples Services,Head of Education and Skills,071732,Dean Bank Childcare,Supplies and Services,324117,Provisions E324,11-Oct-2021,000007750158610,ASDA GROCERIES ONLINE,5411,Catering costs - provisions,-4.19,0.00,-4.19
"Regeneration, Economy and Growth",Culture Sport and Tourism,054967,Theatre - Technical Staffing,Supplies and Services,324117,Provisions E324,11-Oct-2021,000007750158618,SP MSUPPLIES,5399,Catering costs - provisions,12.22,0.00,12.22
"Regeneration, Economy and Growth",Culture Sport and Tourism,054967,Theatre - Technical Staffing,Supplies and Services,328041,Clothing uniforms and laundry E328,11-Oct-2021,000007750158624,SP JOKE.CO.UK,5691,Clothing uniforms and laundry,24.98,0.00,24.98
"Regeneration, Economy and Growth",Culture Sport and Tourism,054967,Theatre - Technical Staffing,Third Party Payments,430100,Rendered by Private Contractors,11-Oct-2021,000007750158628,AMZ Pulcranet Srl,7399,Payments to sub-contractors,45.28,0.00,45.28
"Regeneration, Economy and Growth",Culture Sport and Tourism,054967,Theatre - Technical Staffing,Supplies and Services,384999,Miscellaneous Expenses,11-Oct-2021,000007750158636,SWELL UK,5995,Other expenses,355.25,0.00,355.25
Neighbourhoods and Climate Change,Environmental Services,010301,C&G - North Grounds Maintenance,Supplies and Services,304999,Equipment and Materials,11-Oct-2021,000007750158672,IZ Durham Turf,780,Misc equipment tools and materials,30.00,0.00,30.00
Children and Young Peoples Services,Head of Early Help Inclusion & Vulnerable Children.,085952,Secure Education,Supplies and Services,324117,Provisions E324,11-Oct-2021,000007750158704,TESCO STORES 6329,5411,Catering costs - provisions,7.45,0.00,7.45
Neighbourhoods and Climate Change,Environmental Services,011060,C&G - Hardwick Park Catering,Supplies and Services,324117,Provisions E324,11-Oct-2021,000007750158734,FREEMAN CATERING BUTCH,5422,Catering costs - provisions,53.10,0.00,53.10
"Regeneration, Economy and Growth",Corporate Property and Land,021234,Catering - Locomotion,Supplies and Services,324117,Provisions E324,11-Oct-2021,000007750158782,FREEMAN CATERING BUTCH,5422,Catering costs - provisions,24.67,0.00,24.67
"Regeneration, Economy and Growth",Corporate Property and Land,010525,Catering - Green Lane,Supplies and Services,324117,Provisions E324,11-Oct-2021,000007750158804,JR HOLLAND FOODSERVICE,5499,Catering costs - provisions,51.28,0.00,51.28
Children and Young Peoples Services,Head of Childrens Social Care,085551,Short Break Services-Park Hse Sher,Supplies and Services,304403,Equipment and Materials,11-Oct-2021,000007750158812,AMZNMKTPLACE AMAZON.CO,5999,Other consumables,52.07,0.00,52.07
Children and Young Peoples Services,Head of Childrens Social Care,085551,Short Break Services-Park Hse Sher,Supplies and Services,324117,Provisions E324,11-Oct-2021,000007750158814,J FREEMAN & SONS LTD,5499,Catering costs - provisions,198.56,0.00,198.56
Children and Young Peoples Services,Head of Childrens Social Care,085551,Short Break Services-Park Hse Sher,Supplies and Services,324117,Provisions E324,11-Oct-2021,000007750158818,JR HOLLAND FOODSERVICE,5499,Catering costs - provisions,287.56,0.00,287.56
Dedicated Schools Grant BG0015,DSG Schools Block,418502,Belmont Community School 004185 - Science,Supplies and Services,304403,Equipment and Materials,11-Oct-2021,000007750158828,AMZNMktplace,5999,Other consumables,46.74,7.80,38.94
Children and Young Peoples Services,Head of Childrens Social Care,085341,High Etherley Satelite Home,Supplies and Services,304999,Equipment and Materials,11-Oct-2021,000007750158836,CHARLES DICKENS (SPENN,5251,Misc equipment tools and materials,6.48,0.00,6.48
Children and Young Peoples Services,Head of Childrens Social Care,085341,High Etherley Satelite Home,Supplies and Services,304999,Equipment and Materials,11-Oct-2021,000007750158842,HOME BARGAINS,5251,Misc equipment tools and materials,15.94,0.00,15.94
"Regeneration, Economy and Growth",Corporate Property and Land,011001,FM-Civic Bldgs-Green Lane Council Offices Spennymoor,Premises,145015,Cleaning and Domestic Supplies,11-Oct-2021,000007750158884,PAYPAL PCW PAYPAL,5732,Cleaning and domestic equipment,758.00,126.33,631.67
"Regeneration, Economy and Growth",Corporate Property and Land,030691,Catering - Durham Dales Centre,Supplies and Services,324117,Provisions E324,11-Oct-2021,000007750158942,FREEMAN CATERING BUTCH,5422,Catering costs - provisions,47.04,0.00,47.04
Adult and Health Services,Head of Adults,055643,Hawthorn House LD Respite Unit,Supplies and Services,324117,Provisions E324,11-Oct-2021,000007750158964,FREEMAN CATERING BUTCH,5422,Catering costs - provisions,29.52,0.00,29.52
Adult and Health Services,Head of Adults,055643,Hawthorn House LD Respite Unit,Supplies and Services,324117,Provisions E324,11-Oct-2021,000007750158968,FREEMAN CATERING BUTCH,5422,Catering costs - provisions,16.61,0.00,16.61
Adult and Health Services,Head of Adults,055643,Hawthorn House LD Respite Unit,Supplies and Services,324117,Provisions E324,11-Oct-2021,000007750158974,JR HOLLAND FOODSERVICE,5499,Catering costs - provisions,16.42,0.00,16.42
Adult and Health Services,Head of Adults,055643,Hawthorn House LD Respite Unit,Supplies and Services,324117,Provisions E324,11-Oct-2021,000007750158978,JR HOLLAND FOODSERVICE,5499,Catering costs - provisions,9.29,0.00,9.29
Children and Young Peoples Services,Head of Childrens Social Care,085334,West Rainton Satelite Home,Supplies and Services,324117,Provisions E324,11-Oct-2021,000007750158992,TESCO STORES 2371,5411,Catering costs - provisions,191.03,0.00,191.03
Children and Young Peoples Services,Head of Early Help Inclusion & Vulnerable Children.,085957,Secure Management,Supplies and Services,384302,Miscellaneous Expenses,11-Oct-2021,000007750159080,Amazon MP3,5735,Activity expenses,0.98,0.16,0.82
Children and Young Peoples Services,Head of Early Help Inclusion & Vulnerable Children.,085957,Secure Management,Supplies and Services,384302,Miscellaneous Expenses,11-Oct-2021,000007750159084,Amazon MP3,5735,Activity expenses,14.70,2.45,12.25
Children and Young Peoples Services,Head of Early Help Inclusion & Vulnerable Children.,085957,Secure Management,Supplies and Services,384302,Miscellaneous Expenses,11-Oct-2021,000007750159084 - 1,Amazon MP3,5735,Activity expenses,0.29,,0.29
Children and Young Peoples Services,Head of Early Help Inclusion & Vulnerable Children.,085957,Secure Management,Premises,108251,Service Repairs and Maintenance,11-Oct-2021,000007750159088,AMZNMktplace,5999,Alarm and security maintenance,4.99,0.83,4.16
Children and Young Peoples Services,Head of Early Help Inclusion & Vulnerable Children.,085957,Secure Management,Premises,108251,Service Repairs and Maintenance,11-Oct-2021,000007750159094,AMZNMktplace,5999,Alarm and security maintenance,16.99,2.83,14.16
Children and Young Peoples Services,Head of Early Help Inclusion & Vulnerable Children.,085962,Aycliffe Secure - Durham,Transfer Payments,515002,Social Services Clients,11-Oct-2021,000007750159096,Hachette Partworks,2741,Pocket money,39.96,0.00,39.96
Children and Young Peoples Services,Head of Childrens Social Care,085631,Families First Peterlee,Supplies and Services,364301,Grants to Voluntary Organisations,11-Oct-2021,000007750159104,ASDA GEORGE COM LEEDS,5411,Hardship,43.00,0.00,43.00
"Regeneration, Economy and Growth",Business Durham CL0850,030690,Durham Dales Centre - Tourist Information Centre,Supplies and Services,304403,Equipment and Materials,11-Oct-2021,000007750159108,JOE DAVIES (MANCHESTER,5947,Other consumables,839.26,0.00,839.26
Children and Young Peoples Services,Head of Education and Skills,071903,Early Years Sustainability,Supplies and Services,328041,Clothing uniforms and laundry E328,11-Oct-2021,000007750159118,WWW.MUDDYFACES.CO.UK,5641,Clothing uniforms and laundry,407.64,0.00,407.64
"Regeneration, Economy and Growth",Culture Sport and Tourism,054235,Bishop Auckland Town Hall Cafe,Supplies and Services,324117,Provisions E324,11-Oct-2021,000007750159122,JR HOLLAND FOODSERVICE,5499,Catering costs - provisions,226.47,0.00,226.47
"Regeneration, Economy and Growth",Culture Sport and Tourism,054235,Bishop Auckland Town Hall Cafe,Supplies and Services,324117,Provisions E324,11-Oct-2021,000007750159124,JR HOLLAND FOODSERVICE,5499,Catering costs - provisions,10.60,0.00,10.60
Children and Young Peoples Services,Head of Childrens Social Care,085334,West Rainton Satelite Home,Supplies and Services,304999,Equipment and Materials,11-Oct-2021,000007750159158,HOME BARGAINS,5251,Misc equipment tools and materials,15.96,0.00,15.96
Children and Young Peoples Services,Head of Childrens Social Care,085334,West Rainton Satelite Home,Supplies and Services,328041,Clothing uniforms and laundry E328,11-Oct-2021,000007750159164,TK MAXX,5331,Clothing uniforms and laundry,16.99,0.00,16.99
Neighbourhoods and Climate Change,Environmental Services,010301,C&G - North Grounds Maintenance,Supplies and Services,304999,Equipment and Materials,11-Oct-2021,000007750159188,GRALANDS WOODWORK SUPP,5251,Misc equipment tools and materials,39.50,0.00,39.50
Neighbourhoods and Climate Change,Environmental Services,010301,C&G - North Grounds Maintenance,Supplies and Services,304999,Equipment and Materials,11-Oct-2021,000007750159192,GRALANDS WOODWORK SUPP,5251,Misc equipment tools and materials,35.90,0.00,35.90
Children and Young Peoples Services,Head of Early Help Inclusion & Vulnerable Children.,085801,CDYJS - Support,Supplies and Services,304403,Equipment and Materials,11-Oct-2021,000007750159208,AMZNMktplace,5999,Other consumables,21.00,3.50,17.50
Children and Young Peoples Services,Head of Early Help Inclusion & Vulnerable Children.,085801,CDYJS - Support,Supplies and Services,304403,Equipment and Materials,11-Oct-2021,000007750159212,AMZNMktplace,5999,Other consumables,2.25,0.38,1.87
Children and Young Peoples Services,Head of Early Help Inclusion & Vulnerable Children.,085801,CDYJS - Support,Supplies and Services,304403,Equipment and Materials,11-Oct-2021,000007750159214,AMZNMktplace,5999,Other consumables,9.98,1.66,8.32
Children and Young Peoples Services,Head of Early Help Inclusion & Vulnerable Children.,085801,CDYJS - Support,Supplies and Services,304403,Equipment and Materials,11-Oct-2021,000007750159218,AMZNMktplace,5999,Other consumables,22.99,3.83,19.16
Children and Young Peoples Services,Head of Childrens Social Care,085351,Framwellgate Moor CU,Supplies and Services,352001,Conference Expenses,11-Oct-2021,000007750159270,Hotel at Booking.com,7011,Conferencesseminars fees etc,287.76,0.00,287.76
Children and Young Peoples Services,Head of Childrens Social Care,085351,Framwellgate Moor CU,Supplies and Services,324117,Provisions E324,11-Oct-2021,000007750159276,STARBUCKS THINFORD,5499,Catering costs - provisions,8.10,0.00,8.10
Children and Young Peoples Services,Head of Early Help Inclusion & Vulnerable Children.,085962,Aycliffe Secure - Durham,Supplies and Services,304403,Equipment and Materials,11-Oct-2021,000007750159386,AMZNMktplace,5999,Other consumables,16.48,2.75,13.73
"Regeneration, Economy and Growth",Culture Sport and Tourism,054233,Bishop Auckland Town Hall Library,Supplies and Services,324117,Provisions E324,11-Oct-2021,000007750159396,WILKO RETAIL LIMITED,5399,Catering costs - provisions,3.00,0.00,3.00
"Regeneration, Economy and Growth",Culture Sport and Tourism,054233,Bishop Auckland Town Hall Library,Supplies and Services,324117,Provisions E324,11-Oct-2021,000007750159400,HERON FOODS,5411,Catering costs - provisions,1.00,0.00,1.00
"Regeneration, Economy and Growth",Culture Sport and Tourism,054820,Gala Theatre - Overheads,Supplies and Services,324117,Provisions E324,11-Oct-2021,000007750159430,TESCO STORES 6029,5411,Catering costs - provisions,4.60,0.00,4.60
Children and Young Peoples Services,Head of Childrens Social Care,085332,Middlestone Moor CU,Supplies and Services,324117,Provisions E324,11-Oct-2021,000007750159474,TESCO STORES 2916,5411,Catering costs - provisions,2.30,0.00,2.30
Children and Young Peoples Services,Head of Childrens Social Care,085334,West Rainton Satelite Home,Supplies and Services,324117,Provisions E324,11-Oct-2021,000007750159480,TESCO STORES 2371,5411,Catering costs - provisions,21.30,0.00,21.30
Resources BK0010,Procurement Sales & Business Services,065501,Business Support - Executive Support,Supplies and Services,384999,Miscellaneous Expenses,11-Oct-2021,000007750159512,ALPHATEC BUSINESS,5946,Other expenses,-315.00,0.00,-315.00
"Regeneration, Economy and Growth",Corporate Property and Land,021235,Catering - Wharton Park,Supplies and Services,324117,Provisions E324,11-Oct-2021,000007750159556,JR HOLLAND FOODSERVICE,5499,Catering costs - provisions,16.47,0.00,16.47
"Regeneration, Economy and Growth",Development and Housing,031634,LOCAL LETTINGS AGENCY,Supplies and Services,304259,Equipment and Materials,11-Oct-2021,000007753275186,Durham County CNCL,9399,Equipment-purchase and rental,216.25,0.00,216.25
"Regeneration, Economy and Growth",Development and Housing,030776,LINKCD Flexible Fund,Supplies and Services,328041,Clothing uniforms and laundry E328,11-Oct-2021,000007753275214,ARGOS LTD,5310,Clothing uniforms and laundry,49.99,0.00,49.99
Children and Young Peoples Services,Head of Childrens Social Care,085331,New Lea Childrens Home,Supplies and Services,304221,Equipment and Materials,11-Oct-2021,000007753275222,SCREWFIX DIRECT,5211,Direct materials,99.99,0.00,99.99
"Regeneration, Economy and Growth",Development and Housing,030544,Rural Employability - Client Engagement,Supplies and Services,304221,Equipment and Materials,11-Oct-2021,000007753275274,SCREWFIX DIRECT,5211,Direct materials,30.42,5.07,25.35
"Regeneration, Economy and Growth",Development and Housing,030544,Rural Employability - Client Engagement,Supplies and Services,304221,Equipment and Materials,11-Oct-2021,000007753275274 - 1,SCREWFIX DIRECT,5211,Direct materials,29.83,,29.83
"Regeneration, Economy and Growth",Development and Housing,030544,Rural Employability - Client Engagement,Supplies and Services,304259,Equipment and Materials,11-Oct-2021,000007753275300,DURHAM TEA ROOM,9399,Equipment-purchase and rental,3.75,0.00,3.75
Children and Young Peoples Services,Head of Early Help Inclusion & Vulnerable Children.,085955,Auckland,Supplies and Services,304403,Equipment and Materials,11-Oct-2021,000007753275318,AMZNMKTPLACE AMAZON.CO,5999,Other consumables,18.98,3.17,15.81
Children and Young Peoples Services,Head of Early Help Inclusion & Vulnerable Children.,085955,Auckland,Supplies and Services,304403,Equipment and Materials,11-Oct-2021,000007753275320,AMZNMKTPLACE AMAZON.CO,5999,Other consumables,6.98,0.00,6.98
